Workbook

Sheet 사원정보(입력)
A1: 직원(사무직, 직영 및 지입 택배기사) 현황표
B3: 사원 현황 | C3: 등록 | D3: 재직 | E3: 퇴사
C4: =D4+E4 -> 8 | D4: =COUNTIF(표1[상태],"재직") -> 8 | E4: =COUNTIF(표1[상태],"퇴사") -> 0
B6: 사원명 | C6: 사원번호 | D6: 계약구분 | E6: 직책 | F6: 상태 | G6: 입사일 (yyyy-mm-dd) | H6: 퇴사일 (yyyy-mm-dd) | I6: 급여계좌 | J6: 부양가족 | K6: 20세이하 자녀 | L6: 열3 | M6: 열1 | N6: 열2 | O6: 국민연금 | P6: 건강보험 | Q6: 노인장기 요양보험 | R6: 고용보험 | S6: 소득세 | U6: 4대보험 요율(%) | W6: 상한액 | X6: 하한액
B7: 홍길동 | C7: lgl600001 | E7: OP | F7: 재직 | J7: 2 | K7: 1 | O7: 1) 공제 | P7: 1) 공제 | Q7: 1) 공제 | R7: 1) 공제 | S7: 1) 일반_100% | U7: 국민연금_근로자분 | V7: 4.5 | W7: 226350 | X7: 14400
B8: 아무개 | C8: 600002 | E8: OP | F8: 재직 | J8: 1 | O8: 1) 공제 | P8: 1) 공제 | Q8: 1) 공제 | R8: 1) 공제 | S8: 1) 일반_100% | U8: 건강보험_근로자분 | V8: 3.43 | W8: 3322170 | X8: 9300
B9: 김 | C9: 600003 | D9: 직영 | E9: SM | F9: 재직 | J9: 2 | K9: 1 | O9: 1) 공제 | P9: 1) 공제 | Q9: 1) 공제 | R9: 1) 공제 | S9: 1) 일반_100% | U9: 노인장기요양_근로자분 | V9: 11.52
B10: 이 | C10: 600004 | D10: 직영 | E10: SM | F10: 재직 | J10: 1 | O10: 1) 공제 | P10: 1) 공제 | Q10: 1) 공제 | R10: 1) 공제 | S10: 1) 일반_100% | U10: 고용보험_근로자분 | V10: 0.8
B11: 박 | C11: 600005 | D11: 직영 | E11: SM | F11: 재직 | J11: 2 | O11: 1) 공제 | P11: 1) 공제 | Q11: 1) 공제 | R11: 1) 공제 | S11: 1) 일반_100% | U11: 고용보험_특고직 | V11: 0.7
B12: 오 | C12: 600006 | D12: 지입 | E12: SM | F12: 재직 | J12: 2 | K12: 1 | U12: 산재보험_특고직 | V12: 0.95 | Z12: 책정 기준급여 : 242만원 (2023.6월한 한시적으로 50% 감면)
B13: 최 | C13: 600007 | D13: 지입 | E13: SM | F13: 재직 | J13: 1 | U13: 사업소득 | V13: 3.3
B14: 권 | C14: 600008 | D14: 지입 | E14: SM | F14: 재직 | J14: 2 | U14: 기타소득 | V14: 8.8

Sheet 급여대장(입력)
A1: 급여대장(근로소득/사업소득) Pay Management
B3: 2021년 8월 | AM3: (단위:원, VAT포함)
B4: 사원현황 | G4: 지급 금액 | W4: 공제 금액 | AM4: 지급액
B5: 번호 | C5: 사원명 | D5: 사원번호 | E5: 계약구분 | F5: 직책 | G5: 기본급 | H5: 식대 | I5: 개발수수료 | J5: 집하수수료 | K5: 배송수수료 | L5: 분류비 | M5: 유류지원금 | N5: 교통비 | O5: 연장근로수당 | P5: 근속수당 | Q5: 직책수당 | V5: 지급합계 | W5: 소득세 | X5: 지방소득세 | Y5: 국민연금 | Z5: 건강보험 | AA5: 노인장기요양 | AB5: 고용보험(근로) | AC5: 고용보험(특고) | AD5: 산재보험(특고) | AE5: 운송장 | AF5: 포장 테이프 | AG5: 전산장비 | AH5: 화물사고 분담 | AL5: 공제합계
B6: 1 | C6: ='사원정보(입력)'!B7 -> 홍길동 | D6: =IFERROR(VLOOKUP(C6,표1[],2,0),"") -> lgl600001 | E6: =IFERROR(VLOOKUP(C6,표1[],3,0),"") -> 0 | F6: =IFERROR(VLOOKUP(C6,표1[],4,0),"") -> OP | G6: 2500000 | H6: 100000 | N6: 100000 | O6: 100000 | P6: 100000 | Q6: 100000 | V6: =SUM(G6:U6) -> 3000000 | W6: =IF(LEN(C6)=0,0,IFERROR(IF(LEN(VLOOKUP(C6,표1[],18,0))=0,0,ROUNDDOWN(CHOOSE(LEFT(VLOOKUP(C6,표1[],18,0),1),INTAX(SUMIF(option!$C$2:$Q$2,0,G6:U6),VLOOKUP(C6,표1[],9,0),VLOOKUP(C6,표1[],10,0)),INTAX(SUMIF(option!$C$2:$Q$2,0,G6:U6),VLOOKUP(C6,표1[],9,0),VLOOKUP(C6,표1[],10,0))*1.2,INTAX(SUMIF(option!$C$2:$Q$2,0,G6:U6),VLOOKUP(C6,표1[],9,0),VLOOKUP(C6,표1[],10,0))*0.8,V6*(('사원정보(입력)'!V$13/1.1)/100),V6*(('사원정보(입력)'!V$14/1.1)/100)),option!$C$3*-1)),0)) -> 28480 | X6: =IF(W6=0,0,ROUNDDOWN(W6*0.1,option!$D$3*-1)) -> 2848 | Y6: =IF(LEN(C6)=0,0,IFERROR(ROUNDDOWN(ctax(LEFT(VLOOKUP(C6,표1[],14,0),FIND(")",VLOOKUP(C6,표1[],14,0))-1),SUMIF(option!$C$2:$Q$2,0,G6:U6),'사원정보(입력)'!V$7,VLOOKUP(C6,표1[],12,0)),option!$E$3*-1),0)) -> 130500 | Z6: =IF(LEN(C6)=0,0,IFERROR(ROUNDDOWN(HTAX(LEFT(VLOOKUP(C6,표1[],15,0),FIND(")",VLOOKUP(C6,표1[],15,0))-1),SUMIF(option!$C$2:$Q$2,0,G6:U6),'사원정보(입력)'!V$8,VLOOKUP(C6,표1[],13,0)),option!$F$3*-1),0)) -> 99470 | AA6: =IF(Z6=0,0,IF(LEFT(VLOOKUP(C6,표1[],16,0),FIND(")",VLOOKUP(C6,표1[],16,0))-1)="2",0,ROUNDDOWN(IF(LEFT(VLOOKUP(C6,표1[],16,0),FIND(")",VLOOKUP(C6,표1[],16,0))-1)="1",Z6*('사원정보(입력)'!V$9/100),Z6*('사원정보(입력)'!V$9/100)*(1-((LEFT(VLOOKUP(C6,표1[],16,0),FIND(")",VLOOKUP(C6,표1[],16,0))-1)-2)/10))),option!$G$3*-1))) -> 11458 | AB6: =IF(LEN(C6)=0,0,IF(LEFT(VLOOKUP(C6,표1[],17,0),1)="2",0,ROUNDDOWN(SUMIF(option!$C$2:$Q$2,0,G6:U6)*('사원정보(입력)'!V$10/100),option!$H$3*-1))) -> 23200 | AC6: =IF(E6="지입",((V6/1.1)*79.8%)*0.7%,"") ->  | AD6: =IF(E6="지입",11495,"") ->  | AL6: =SUM(W6:AK6) -> 295956 | AM6: =V6-AL6 -> 2704044
B7: 2 | C7: ='사원정보(입력)'!B8 -> 아무개 | D7: =IFERROR(VLOOKUP(C7,표1[],2,0),"") -> 600002 | E7: =IFERROR(VLOOKUP(C7,표1[],3,0),"") -> 0 | F7: =IFERROR(VLOOKUP(C7,표1[],4,0),"") -> OP | G7: 2500000 | H7: 100000 | N7: 100000 | O7: 100000 | P7: 100000 | V7: 2900000 | W7: =IF(LEN(C7)=0,0,IFERROR(IF(LEN(VLOOKUP(C7,표1[],18,0))=0,0,ROUNDDOWN(CHOOSE(LEFT(VLOOKUP(C7,표1[],18,0),1),INTAX(SUMIF(option!$C$2:$Q$2,0,G7:U7),VLOOKUP(C7,표1[],9,0),VLOOKUP(C7,표1[],10,0)),INTAX(SUMIF(option!$C$2:$Q$2,0,G7:U7),VLOOKUP(C7,표1[],9,0),VLOOKUP(C7,표1[],10,0))*1.2,INTAX(SUMIF(option!$C$2:$Q$2,0,G7:U7),VLOOKUP(C7,표1[],9,0),VLOOKUP(C7,표1[],10,0))*0.8,V7*(('사원정보(입력)'!V$13/1.1)/100),V7*(('사원정보(입력)'!V$14/1.1)/100)),option!$C$3*-1)),0)) -> 67300 | X7: =IF(W7=0,0,ROUNDDOWN(W7*0.1,option!$D$3*-1)) -> 6730 | Y7: =IF(LEN(C7)=0,0,IFERROR(ROUNDDOWN(ctax(LEFT(VLOOKUP(C7,표1[],14,0),FIND(")",VLOOKUP(C7,표1[],14,0))-1),SUMIF(option!$C$2:$Q$2,0,G7:U7),'사원정보(입력)'!V$7,VLOOKUP(C7,표1[],12,0)),option!$E$3*-1),0)) -> 126000 | Z7: =IF(LEN(C7)=0,0,IFERROR(ROUNDDOWN(HTAX(LEFT(VLOOKUP(C7,표1[],15,0),FIND(")",VLOOKUP(C7,표1[],15,0))-1),SUMIF(option!$C$2:$Q$2,0,G7:U7),'사원정보(입력)'!V$8,VLOOKUP(C7,표1[],13,0)),option!$F$3*-1),0)) -> 96040 | AA7: =IF(Z7=0,0,IF(LEFT(VLOOKUP(C7,표1[],16,0),FIND(")",VLOOKUP(C7,표1[],16,0))-1)="2",0,ROUNDDOWN(IF(LEFT(VLOOKUP(C7,표1[],16,0),FIND(")",VLOOKUP(C7,표1[],16,0))-1)="1",Z7*('사원정보(입력)'!V$9/100),Z7*('사원정보(입력)'!V$9/100)*(1-((LEFT(VLOOKUP(C7,표1[],16,0),FIND(")",VLOOKUP(C7,표1[],16,0))-1)-2)/10))),option!$G$3*-1))) -> 11063 | AB7: =IF(LEN(C7)=0,0,IF(LEFT(VLOOKUP(C7,표1[],17,0),1)="2",0,ROUNDDOWN(SUMIF(option!$C$2:$Q$2,0,G7:U7)*('사원정보(입력)'!V$10/100),option!$H$3*-1))) -> 22400 | AH7: 50000 | AL7: =SUM(W7:AK7) -> 379533 | AM7: =V7-AL7 -> 2520467
B8: 3 | C8: ='사원정보(입력)'!B9 -> 김 | D8: =IFERROR(VLOOKUP(C8,표1[],2,0),"") -> 600003 | E8: =IFERROR(VLOOKUP(C8,표1[],3,0),"") -> 직영 | F8: =IFERROR(VLOOKUP(C8,표1[],4,0),"") -> SM | G8: 3500000 | H8: 100000 | N8: 100000 | O8: 100000 | P8: 100000 | Q8: 100000 | V8: 4000000 | W8: =IF(LEN(C8)=0,0,IFERROR(IF(LEN(VLOOKUP(C8,표1[],18,0))=0,0,ROUNDDOWN(CHOOSE(LEFT(VLOOKUP(C8,표1[],18,0),1),INTAX(SUMIF(option!$C$2:$Q$2,0,G8:U8),VLOOKUP(C8,표1[],9,0),VLOOKUP(C8,표1[],10,0)),INTAX(SUMIF(option!$C$2:$Q$2,0,G8:U8),VLOOKUP(C8,표1[],9,0),VLOOKUP(C8,표1[],10,0))*1.2,INTAX(SUMIF(option!$C$2:$Q$2,0,G8:U8),VLOOKUP(C8,표1[],9,0),VLOOKUP(C8,표1[],10,0))*0.8,V8*(('사원정보(입력)'!V$13/1.1)/100),V8*(('사원정보(입력)'!V$14/1.1)/100)),option!$C$3*-1)),0)) -> 112370 | X8: =IF(W8=0,0,ROUNDDOWN(W8*0.1,option!$D$3*-1)) -> 11237 | Y8: =IF(LEN(C8)=0,0,IFERROR(ROUNDDOWN(ctax(LEFT(VLOOKUP(C8,표1[],14,0),FIND(")",VLOOKUP(C8,표1[],14,0))-1),SUMIF(option!$C$2:$Q$2,0,G8:U8),'사원정보(입력)'!V$7,VLOOKUP(C8,표1[],12,0)),option!$E$3*-1),0)) -> 175500 | Z8: =IF(LEN(C8)=0,0,IFERROR(ROUNDDOWN(HTAX(LEFT(VLOOKUP(C8,표1[],15,0),FIND(")",VLOOKUP(C8,표1[],15,0))-1),SUMIF(option!$C$2:$Q$2,0,G8:U8),'사원정보(입력)'!V$8,VLOOKUP(C8,표1[],13,0)),option!$F$3*-1),0)) -> 133770 | AA8: =IF(Z8=0,0,IF(LEFT(VLOOKUP(C8,표1[],16,0),FIND(")",VLOOKUP(C8,표1[],16,0))-1)="2",0,ROUNDDOWN(IF(LEFT(VLOOKUP(C8,표1[],16,0),FIND(")",VLOOKUP(C8,표1[],16,0))-1)="1",Z8*('사원정보(입력)'!V$9/100),Z8*('사원정보(입력)'!V$9/100)*(1-((LEFT(VLOOKUP(C8,표1[],16,0),FIND(")",VLOOKUP(C8,표1[],16,0))-1)-2)/10))),option!$G$3*-1))) -> 15410 | AB8: =IF(LEN(C8)=0,0,IF(LEFT(VLOOKUP(C8,표1[],17,0),1)="2",0,ROUNDDOWN(SUMIF(option!$C$2:$Q$2,0,G8:U8)*('사원정보(입력)'!V$10/100),option!$H$3*-1))) -> 31200 | AL8: 479487 | AM8: =V8-AL8 -> 3520513
B9: 4 | C9: ='사원정보(입력)'!B10 -> 이 | D9: =IFERROR(VLOOKUP(C9,표1[],2,0),"") -> 600004 | E9: =IFERROR(VLOOKUP(C9,표1[],3,0),"") -> 직영 | F9: =IFERROR(VLOOKUP(C9,표1[],4,0),"") -> SM | G9: 3500000 | H9: 100000 | N9: 100000 | O9: 100000 | P9: 100000 | V9: 3900000 | W9: =IF(LEN(C9)=0,0,IFERROR(IF(LEN(VLOOKUP(C9,표1[],18,0))=0,0,ROUNDDOWN(CHOOSE(LEFT(VLOOKUP(C9,표1[],18,0),1),INTAX(SUMIF(option!$C$2:$Q$2,0,G9:U9),VLOOKUP(C9,표1[],9,0),VLOOKUP(C9,표1[],10,0)),INTAX(SUMIF(option!$C$2:$Q$2,0,G9:U9),VLOOKUP(C9,표1[],9,0),VLOOKUP(C9,표1[],10,0))*1.2,INTAX(SUMIF(option!$C$2:$Q$2,0,G9:U9),VLOOKUP(C9,표1[],9,0),VLOOKUP(C9,표1[],10,0))*0.8,V9*(('사원정보(입력)'!V$13/1.1)/100),V9*(('사원정보(입력)'!V$14/1.1)/100)),option!$C$3*-1)),0)) -> 184260 | X9: =IF(W9=0,0,ROUNDDOWN(W9*0.1,option!$D$3*-1)) -> 18426 | Y9: =IF(LEN(C9)=0,0,IFERROR(ROUNDDOWN(ctax(LEFT(VLOOKUP(C9,표1[],14,0),FIND(")",VLOOKUP(C9,표1[],14,0))-1),SUMIF(option!$C$2:$Q$2,0,G9:U9),'사원정보(입력)'!V$7,VLOOKUP(C9,표1[],12,0)),option!$E$3*-1),0)) -> 171000 | Z9: =IF(LEN(C9)=0,0,IFERROR(ROUNDDOWN(HTAX(LEFT(VLOOKUP(C9,표1[],15,0),FIND(")",VLOOKUP(C9,표1[],15,0))-1),SUMIF(option!$C$2:$Q$2,0,G9:U9),'사원정보(입력)'!V$8,VLOOKUP(C9,표1[],13,0)),option!$F$3*-1),0)) -> 130340 | AA9: =IF(Z9=0,0,IF(LEFT(VLOOKUP(C9,표1[],16,0),FIND(")",VLOOKUP(C9,표1[],16,0))-1)="2",0,ROUNDDOWN(IF(LEFT(VLOOKUP(C9,표1[],16,0),FIND(")",VLOOKUP(C9,표1[],16,0))-1)="1",Z9*('사원정보(입력)'!V$9/100),Z9*('사원정보(입력)'!V$9/100)*(1-((LEFT(VLOOKUP(C9,표1[],16,0),FIND(")",VLOOKUP(C9,표1[],16,0))-1)-2)/10))),option!$G$3*-1))) -> 15015 | AB9: =IF(LEN(C9)=0,0,IF(LEFT(VLOOKUP(C9,표1[],17,0),1)="2",0,ROUNDDOWN(SUMIF(option!$C$2:$Q$2,0,G9:U9)*('사원정보(입력)'!V$10/100),option!$H$3*-1))) -> 30400 | AL9: 549441 | AM9: =V9-AL9 -> 3350559
B10: 5 | C10: ='사원정보(입력)'!B11 -> 박 | D10: =IFERROR(VLOOKUP(C10,표1[],2,0),"") -> 600005 | E10: =IFERROR(VLOOKUP(C10,표1[],3,0),"") -> 직영 | F10: =IFERROR(VLOOKUP(C10,표1[],4,0),"") -> SM | G10: 3500000 | H10: 100000 | N10: 100000 | O10: 100000 | V10: 3800000 | W10: =IF(LEN(C10)=0,0,IFERROR(IF(LEN(VLOOKUP(C10,표1[],18,0))=0,0,ROUNDDOWN(CHOOSE(LEFT(VLOOKUP(C10,표1[],18,0),1),INTAX(SUMIF(option!$C$2:$Q$2,0,G10:U10),VLOOKUP(C10,표1[],9,0),VLOOKUP(C10,표1[],10,0)),INTAX(SUMIF(option!$C$2:$Q$2,0,G10:U10),VLOOKUP(C10,표1[],9,0),VLOOKUP(C10,표1[],10,0))*1.2,INTAX(SUMIF(option!$C$2:$Q$2,0,G10:U10),VLOOKUP(C10,표1[],9,0),VLOOKUP(C10,표1[],10,0))*0.8,V10*(('사원정보(입력)'!V$13/1.1)/100),V10*(('사원정보(입력)'!V$14/1.1)/100)),option!$C$3*-1)),0)) -> 141670 | X10: =IF(W10=0,0,ROUNDDOWN(W10*0.1,option!$D$3*-1)) -> 14167 | Y10: =IF(LEN(C10)=0,0,IFERROR(ROUNDDOWN(ctax(LEFT(VLOOKUP(C10,표1[],14,0),FIND(")",VLOOKUP(C10,표1[],14,0))-1),SUMIF(option!$C$2:$Q$2,0,G10:U10),'사원정보(입력)'!V$7,VLOOKUP(C10,표1[],12,0)),option!$E$3*-1),0)) -> 166500 | Z10: =IF(LEN(C10)=0,0,IFERROR(ROUNDDOWN(HTAX(LEFT(VLOOKUP(C10,표1[],15,0),FIND(")",VLOOKUP(C10,표1[],15,0))-1),SUMIF(option!$C$2:$Q$2,0,G10:U10),'사원정보(입력)'!V$8,VLOOKUP(C10,표1[],13,0)),option!$F$3*-1),0)) -> 126910 | AA10: =IF(Z10=0,0,IF(LEFT(VLOOKUP(C10,표1[],16,0),FIND(")",VLOOKUP(C10,표1[],16,0))-1)="2",0,ROUNDDOWN(IF(LEFT(VLOOKUP(C10,표1[],16,0),FIND(")",VLOOKUP(C10,표1[],16,0))-1)="1",Z10*('사원정보(입력)'!V$9/100),Z10*('사원정보(입력)'!V$9/100)*(1-((LEFT(VLOOKUP(C10,표1[],16,0),FIND(")",VLOOKUP(C10,표1[],16,0))-1)-2)/10))),option!$G$3*-1))) -> 14620 | AB10: =IF(LEN(C10)=0,0,IF(LEFT(VLOOKUP(C10,표1[],17,0),1)="2",0,ROUNDDOWN(SUMIF(option!$C$2:$Q$2,0,G10:U10)*('사원정보(입력)'!V$10/100),option!$H$3*-1))) -> 29600 | AL10: 493467 | AM10: =V10-AL10 -> 3306533
B11: 6 | C11: ='사원정보(입력)'!B12 -> 오 | D11: =IFERROR(VLOOKUP(C11,표1[],2,0),"") -> 600006 | E11: =IFERROR(VLOOKUP(C11,표1[],3,0),"") -> 지입 | F11: =IFERROR(VLOOKUP(C11,표1[],4,0),"") -> SM | G11: =IFERROR(VLOOKUP(C11,표1[],11,0),0) -> 0 | J11: 1000000 | K11: 3000000 | L11: 350000 | Q11: 100000 | V11: =SUM(G11:U11) -> 4450000 | W11: =IF(LEN(C11)=0,0,IFERROR(IF(LEN(VLOOKUP(C11,표1[],18,0))=0,0,ROUNDDOWN(CHOOSE(LEFT(VLOOKUP(C11,표1[],18,0),1),INTAX(SUMIF(option!$C$2:$Q$2,0,G11:U11),VLOOKUP(C11,표1[],9,0),VLOOKUP(C11,표1[],10,0)),INTAX(SUMIF(option!$C$2:$Q$2,0,G11:U11),VLOOKUP(C11,표1[],9,0),VLOOKUP(C11,표1[],10,0))*1.2,INTAX(SUMIF(option!$C$2:$Q$2,0,G11:U11),VLOOKUP(C11,표1[],9,0),VLOOKUP(C11,표1[],10,0))*0.8,V11*(('사원정보(입력)'!V$13/1.1)/100),V11*(('사원정보(입력)'!V$14/1.1)/100)),option!$C$3*-1)),0)) -> 0 | X11: =IF(W11=0,0,ROUNDDOWN(W11*0.1,option!$D$3*-1)) -> 0 | Y11: =IF(LEN(C11)=0,0,IFERROR(ROUNDDOWN(ctax(LEFT(VLOOKUP(C11,표1[],14,0),FIND(")",VLOOKUP(C11,표1[],14,0))-1),SUMIF(option!$C$2:$Q$2,0,G11:U11),'사원정보(입력)'!V$7,VLOOKUP(C11,표1[],12,0)),option!$E$3*-1),0)) -> 0 | Z11: =IF(LEN(C11)=0,0,IFERROR(ROUNDDOWN(HTAX(LEFT(VLOOKUP(C11,표1[],15,0),FIND(")",VLOOKUP(C11,표1[],15,0))-1),SUMIF(option!$C$2:$Q$2,0,G11:U11),'사원정보(입력)'!V$8,VLOOKUP(C11,표1[],13,0)),option!$F$3*-1),0)) -> 0 | AA11: =IF(Z11=0,0,IF(LEFT(VLOOKUP(C11,표1[],16,0),FIND(")",VLOOKUP(C11,표1[],16,0))-1)="2",0,ROUNDDOWN(IF(LEFT(VLOOKUP(C11,표1[],16,0),FIND(")",VLOOKUP(C11,표1[],16,0))-1)="1",Z11*('사원정보(입력)'!V$9/100),Z11*('사원정보(입력)'!V$9/100)*(1-((LEFT(VLOOKUP(C11,표1[],16,0),FIND(")",VLOOKUP(C11,표1[],16,0))-1)-2)/10))),option!$G$3*-1))) -> 0 | AC11: =IF(E11="지입",((V11/1.1)*79.8%)*0.7%,"") -> 22597.90909 | AD11: =IF(E11="지입",11495,"") -> 11495 | AE11: 100000 | AF11: 50000 | AH11: 300000 | AL11: =SUM(W11:AK11) -> 484092.9091 | AM11: =V11-AL11 -> 3965907.091
B12: 7 | C12: ='사원정보(입력)'!B13 -> 최 | D12: =IFERROR(VLOOKUP(C12,표1[],2,0),"") -> 600007 | E12: =IFERROR(VLOOKUP(C12,표1[],3,0),"") -> 지입 | F12: =IFERROR(VLOOKUP(C12,표1[],4,0),"") -> SM | J12: 1000000 | K12: 3000000 | L12: 350000 | N12: 100000 | O12: 100000 | P12: 100000 | Q12: 100000 | V12: 4750000 | W12: =IF(LEN(C12)=0,0,IFERROR(IF(LEN(VLOOKUP(C12,표1[],18,0))=0,0,ROUNDDOWN(CHOOSE(LEFT(VLOOKUP(C12,표1[],18,0),1),INTAX(SUMIF(option!$C$2:$Q$2,0,G12:U12),VLOOKUP(C12,표1[],9,0),VLOOKUP(C12,표1[],10,0)),INTAX(SUMIF(option!$C$2:$Q$2,0,G12:U12),VLOOKUP(C12,표1[],9,0),VLOOKUP(C12,표1[],10,0))*1.2,INTAX(SUMIF(option!$C$2:$Q$2,0,G12:U12),VLOOKUP(C12,표1[],9,0),VLOOKUP(C12,표1[],10,0))*0.8,V12*(('사원정보(입력)'!V$13/1.1)/100),V12*(('사원정보(입력)'!V$14/1.1)/100)),option!$C$3*-1)),0)) -> 0 | X12: =IF(W12=0,0,ROUNDDOWN(W12*0.1,option!$D$3*-1)) -> 0 | Y12: =IF(LEN(C12)=0,0,IFERROR(ROUNDDOWN(ctax(LEFT(VLOOKUP(C12,표1[],14,0),FIND(")",VLOOKUP(C12,표1[],14,0))-1),SUMIF(option!$C$2:$Q$2,0,G12:U12),'사원정보(입력)'!V$7,VLOOKUP(C12,표1[],12,0)),option!$E$3*-1),0)) -> 0 | Z12: =IF(LEN(C12)=0,0,IFERROR(ROUNDDOWN(HTAX(LEFT(VLOOKUP(C12,표1[],15,0),FIND(")",VLOOKUP(C12,표1[],15,0))-1),SUMIF(option!$C$2:$Q$2,0,G12:U12),'사원정보(입력)'!V$8,VLOOKUP(C12,표1[],13,0)),option!$F$3*-1),0)) -> 0 | AA12: =IF(Z12=0,0,IF(LEFT(VLOOKUP(C12,표1[],16,0),FIND(")",VLOOKUP(C12,표1[],16,0))-1)="2",0,ROUNDDOWN(IF(LEFT(VLOOKUP(C12,표1[],16,0),FIND(")",VLOOKUP(C12,표1[],16,0))-1)="1",Z12*('사원정보(입력)'!V$9/100),Z12*('사원정보(입력)'!V$9/100)*(1-((LEFT(VLOOKUP(C12,표1[],16,0),FIND(")",VLOOKUP(C12,표1[],16,0))-1)-2)/10))),option!$G$3*-1))) -> 0 | AC12: 24121.36364 | AD12: 11495 | AF12: 50000 | AH12: 100000 | AL12: 185616.3636 | AM12: 4564383.636
B13: 8 | C13: ='사원정보(입력)'!B14 -> 권 | D13: =IFERROR(VLOOKUP(C13,표1[],2,0),"") -> 600008 | E13: =IFERROR(VLOOKUP(C13,표1[],3,0),"") -> 지입 | F13: =IFERROR(VLOOKUP(C13,표1[],4,0),"") -> SM | J13: 1000000 | K13: 3000000 | L13: 350000 | M13: 300000 | O13: 100000 | P13: 100000 | V13: 4850000 | W13: =IF(LEN(C13)=0,0,IFERROR(IF(LEN(VLOOKUP(C13,표1[],18,0))=0,0,ROUNDDOWN(CHOOSE(LEFT(VLOOKUP(C13,표1[],18,0),1),INTAX(SUMIF(option!$C$2:$Q$2,0,G13:U13),VLOOKUP(C13,표1[],9,0),VLOOKUP(C13,표1[],10,0)),INTAX(SUMIF(option!$C$2:$Q$2,0,G13:U13),VLOOKUP(C13,표1[],9,0),VLOOKUP(C13,표1[],10,0))*1.2,INTAX(SUMIF(option!$C$2:$Q$2,0,G13:U13),VLOOKUP(C13,표1[],9,0),VLOOKUP(C13,표1[],10,0))*0.8,V13*(('사원정보(입력)'!V$13/1.1)/100),V13*(('사원정보(입력)'!V$14/1.1)/100)),option!$C$3*-1)),0)) -> 0 | X13: =IF(W13=0,0,ROUNDDOWN(W13*0.1,option!$D$3*-1)) -> 0 | Y13: =IF(LEN(C13)=0,0,IFERROR(ROUNDDOWN(ctax(LEFT(VLOOKUP(C13,표1[],14,0),FIND(")",VLOOKUP(C13,표1[],14,0))-1),SUMIF(option!$C$2:$Q$2,0,G13:U13),'사원정보(입력)'!V$7,VLOOKUP(C13,표1[],12,0)),option!$E$3*-1),0)) -> 0 | Z13: =IF(LEN(C13)=0,0,IFERROR(ROUNDDOWN(HTAX(LEFT(VLOOKUP(C13,표1[],15,0),FIND(")",VLOOKUP(C13,표1[],15,0))-1),SUMIF(option!$C$2:$Q$2,0,G13:U13),'사원정보(입력)'!V$8,VLOOKUP(C13,표1[],13,0)),option!$F$3*-1),0)) -> 0 | AA13: =IF(Z13=0,0,IF(LEFT(VLOOKUP(C13,표1[],16,0),FIND(")",VLOOKUP(C13,표1[],16,0))-1)="2",0,ROUNDDOWN(IF(LEFT(VLOOKUP(C13,표1[],16,0),FIND(")",VLOOKUP(C13,표1[],16,0))-1)="1",Z13*('사원정보(입력)'!V$9/100),Z13*('사원정보(입력)'!V$9/100)*(1-((LEFT(VLOOKUP(C13,표1[],16,0),FIND(")",VLOOKUP(C13,표1[],16,0))-1)-2)/10))),option!$G$3*-1))) -> 0 | AC13: =IF(E13="지입",((V13/1.1)*79.8%)*0.7%,"") -> 24629.18182 | AD13: 11495 | AE13: 100000 | AF13: 50000 | AH13: 200000 | AL13: 386124.1818 | AM13: 4463875.818
B14: 9 | C14: ='사원정보(입력)'!B15 -> 0 | D14: =IFERROR(VLOOKUP(C14,표1[],2,0),"") ->  | E14: =IFERROR(VLOOKUP(C14,표1[],3,0),"") ->  | F14: =IFERROR(VLOOKUP(C14,표1[],4,0),"") ->  | V14: 0 | W14: =IF(LEN(C14)=0,0,IFERROR(IF(LEN(VLOOKUP(C14,표1[],18,0))=0,0,ROUNDDOWN(CHOOSE(LEFT(VLOOKUP(C14,표1[],18,0),1),INTAX(SUMIF(option!$C$2:$Q$2,0,G14:U14),VLOOKUP(C14,표1[],9,0),VLOOKUP(C14,표1[],10,0)),INTAX(SUMIF(option!$C$2:$Q$2,0,G14:U14),VLOOKUP(C14,표1[],9,0),VLOOKUP(C14,표1[],10,0))*1.2,INTAX(SUMIF(option!$C$2:$Q$2,0,G14:U14),VLOOKUP(C14,표1[],9,0),VLOOKUP(C14,표1[],10,0))*0.8,V14*(('사원정보(입력)'!V$13/1.1)/100),V14*(('사원정보(입력)'!V$14/1.1)/100)),option!$C$3*-1)),0)) -> 0 | X14: =IF(W14=0,0,ROUNDDOWN(W14*0.1,option!$D$3*-1)) -> 0 | Y14: =IF(LEN(C14)=0,0,IFERROR(ROUNDDOWN(ctax(LEFT(VLOOKUP(C14,표1[],14,0),FIND(")",VLOOKUP(C14,표1[],14,0))-1),SUMIF(option!$C$2:$Q$2,0,G14:U14),'사원정보(입력)'!V$7,VLOOKUP(C14,표1[],12,0)),option!$E$3*-1),0)) -> 0 | Z14: =IF(LEN(C14)=0,0,IFERROR(ROUNDDOWN(HTAX(LEFT(VLOOKUP(C14,표1[],15,0),FIND(")",VLOOKUP(C14,표1[],15,0))-1),SUMIF(option!$C$2:$Q$2,0,G14:U14),'사원정보(입력)'!V$8,VLOOKUP(C14,표1[],13,0)),option!$F$3*-1),0)) -> 0 | AA14: =IF(Z14=0,0,IF(LEFT(VLOOKUP(C14,표1[],16,0),FIND(")",VLOOKUP(C14,표1[],16,0))-1)="2",0,ROUNDDOWN(IF(LEFT(VLOOKUP(C14,표1[],16,0),FIND(")",VLOOKUP(C14,표1[],16,0))-1)="1",Z14*('사원정보(입력)'!V$9/100),Z14*('사원정보(입력)'!V$9/100)*(1-((LEFT(VLOOKUP(C14,표1[],16,0),FIND(")",VLOOKUP(C14,표1[],16,0))-1)-2)/10))),option!$G$3*-1))) -> 0 | AB14: =IF(LEN(C14)=0,0,IF(LEFT(VLOOKUP(C14,표1[],17,0),1)="2",0,ROUNDDOWN(SUMIF(option!$C$2:$Q$2,0,G14:U14)*('사원정보(입력)'!V$10/100),option!$H$3*-1))) ->  | AC14: =IF(E14="지입",((V14/1.1)*79.8%)*0.7%,"") ->  | AD14: =IF(E14="지입",11495,"") -> 
B15: 10 | C15: ='사원정보(입력)'!B16 -> 0 | D15: =IFERROR(VLOOKUP(C15,표1[],2,0),"") ->  | E15: =IFERROR(VLOOKUP(C15,표1[],3,0),"") ->  | F15: =IFERROR(VLOOKUP(C15,표1[],4,0),"") ->  | V15: 0 | W15: =IF(LEN(C15)=0,0,IFERROR(IF(LEN(VLOOKUP(C15,표1[],18,0))=0,0,ROUNDDOWN(CHOOSE(LEFT(VLOOKUP(C15,표1[],18,0),1),INTAX(SUMIF(option!$C$2:$Q$2,0,G15:U15),VLOOKUP(C15,표1[],9,0),VLOOKUP(C15,표1[],10,0)),INTAX(SUMIF(option!$C$2:$Q$2,0,G15:U15),VLOOKUP(C15,표1[],9,0),VLOOKUP(C15,표1[],10,0))*1.2,INTAX(SUMIF(option!$C$2:$Q$2,0,G15:U15),VLOOKUP(C15,표1[],9,0),VLOOKUP(C15,표1[],10,0))*0.8,V15*(('사원정보(입력)'!V$13/1.1)/100),V15*(('사원정보(입력)'!V$14/1.1)/100)),option!$C$3*-1)),0)) -> 0 | X15: =IF(W15=0,0,ROUNDDOWN(W15*0.1,option!$D$3*-1)) -> 0 | Y15: =IF(LEN(C15)=0,0,IFERROR(ROUNDDOWN(ctax(LEFT(VLOOKUP(C15,표1[],14,0),FIND(")",VLOOKUP(C15,표1[],14,0))-1),SUMIF(option!$C$2:$Q$2,0,G15:U15),'사원정보(입력)'!V$7,VLOOKUP(C15,표1[],12,0)),option!$E$3*-1),0)) -> 0 | Z15: =IF(LEN(C15)=0,0,IFERROR(ROUNDDOWN(HTAX(LEFT(VLOOKUP(C15,표1[],15,0),FIND(")",VLOOKUP(C15,표1[],15,0))-1),SUMIF(option!$C$2:$Q$2,0,G15:U15),'사원정보(입력)'!V$8,VLOOKUP(C15,표1[],13,0)),option!$F$3*-1),0)) -> 0 | AA15: =IF(Z15=0,0,IF(LEFT(VLOOKUP(C15,표1[],16,0),FIND(")",VLOOKUP(C15,표1[],16,0))-1)="2",0,ROUNDDOWN(IF(LEFT(VLOOKUP(C15,표1[],16,0),FIND(")",VLOOKUP(C15,표1[],16,0))-1)="1",Z15*('사원정보(입력)'!V$9/100),Z15*('사원정보(입력)'!V$9/100)*(1-((LEFT(VLOOKUP(C15,표1[],16,0),FIND(")",VLOOKUP(C15,표1[],16,0))-1)-2)/10))),option!$G$3*-1))) -> 0 | AB15: =IF(LEN(C15)=0,0,IF(LEFT(VLOOKUP(C15,표1[],17,0),1)="2",0,ROUNDDOWN(SUMIF(option!$C$2:$Q$2,0,G15:U15)*('사원정보(입력)'!V$10/100),option!$H$3*-1))) -> 
B16: 11 | C16: ='사원정보(입력)'!B17 -> 0 | D16: =IFERROR(VLOOKUP(C16,표1[],2,0),"") ->  | E16: =IFERROR(VLOOKUP(C16,표1[],3,0),"") ->  | F16: =IFERROR(VLOOKUP(C16,표1[],4,0),"") ->  | V16: 0 | W16: =IF(LEN(C16)=0,0,IFERROR(IF(LEN(VLOOKUP(C16,표1[],18,0))=0,0,ROUNDDOWN(CHOOSE(LEFT(VLOOKUP(C16,표1[],18,0),1),INTAX(SUMIF(option!$C$2:$Q$2,0,G16:U16),VLOOKUP(C16,표1[],9,0),VLOOKUP(C16,표1[],10,0)),INTAX(SUMIF(option!$C$2:$Q$2,0,G16:U16),VLOOKUP(C16,표1[],9,0),VLOOKUP(C16,표1[],10,0))*1.2,INTAX(SUMIF(option!$C$2:$Q$2,0,G16:U16),VLOOKUP(C16,표1[],9,0),VLOOKUP(C16,표1[],10,0))*0.8,V16*(('사원정보(입력)'!V$13/1.1)/100),V16*(('사원정보(입력)'!V$14/1.1)/100)),option!$C$3*-1)),0)) -> 0 | X16: =IF(W16=0,0,ROUNDDOWN(W16*0.1,option!$D$3*-1)) -> 0 | Y16: =IF(LEN(C16)=0,0,IFERROR(ROUNDDOWN(ctax(LEFT(VLOOKUP(C16,표1[],14,0),FIND(")",VLOOKUP(C16,표1[],14,0))-1),SUMIF(option!$C$2:$Q$2,0,G16:U16),'사원정보(입력)'!V$7,VLOOKUP(C16,표1[],12,0)),option!$E$3*-1),0)) -> 0 | Z16: =IF(LEN(C16)=0,0,IFERROR(ROUNDDOWN(HTAX(LEFT(VLOOKUP(C16,표1[],15,0),FIND(")",VLOOKUP(C16,표1[],15,0))-1),SUMIF(option!$C$2:$Q$2,0,G16:U16),'사원정보(입력)'!V$8,VLOOKUP(C16,표1[],13,0)),option!$F$3*-1),0)) -> 0 | AA16: =IF(Z16=0,0,IF(LEFT(VLOOKUP(C16,표1[],16,0),FIND(")",VLOOKUP(C16,표1[],16,0))-1)="2",0,ROUNDDOWN(IF(LEFT(VLOOKUP(C16,표1[],16,0),FIND(")",VLOOKUP(C16,표1[],16,0))-1)="1",Z16*('사원정보(입력)'!V$9/100),Z16*('사원정보(입력)'!V$9/100)*(1-((LEFT(VLOOKUP(C16,표1[],16,0),FIND(")",VLOOKUP(C16,표1[],16,0))-1)-2)/10))),option!$G$3*-1))) -> 0 | AB16: =IF(LEN(C16)=0,0,IF(LEFT(VLOOKUP(C16,표1[],17,0),1)="2",0,ROUNDDOWN(SUMIF(option!$C$2:$Q$2,0,G16:U16)*('사원정보(입력)'!V$10/100),option!$H$3*-1))) -> 
B17: 12 | C17: ='사원정보(입력)'!B18 -> 0 | D17: =IFERROR(VLOOKUP(C17,표1[],2,0),"") ->  | E17: =IFERROR(VLOOKUP(C17,표1[],3,0),"") ->  | F17: =IFERROR(VLOOKUP(C17,표1[],4,0),"") ->  | V17: 0 | W17: =IF(LEN(C17)=0,0,IFERROR(IF(LEN(VLOOKUP(C17,표1[],18,0))=0,0,ROUNDDOWN(CHOOSE(LEFT(VLOOKUP(C17,표1[],18,0),1),INTAX(SUMIF(option!$C$2:$Q$2,0,G17:U17),VLOOKUP(C17,표1[],9,0),VLOOKUP(C17,표1[],10,0)),INTAX(SUMIF(option!$C$2:$Q$2,0,G17:U17),VLOOKUP(C17,표1[],9,0),VLOOKUP(C17,표1[],10,0))*1.2,INTAX(SUMIF(option!$C$2:$Q$2,0,G17:U17),VLOOKUP(C17,표1[],9,0),VLOOKUP(C17,표1[],10,0))*0.8,V17*(('사원정보(입력)'!V$13/1.1)/100),V17*(('사원정보(입력)'!V$14/1.1)/100)),option!$C$3*-1)),0)) -> 0 | X17: =IF(W17=0,0,ROUNDDOWN(W17*0.1,option!$D$3*-1)) -> 0 | Y17: =IF(LEN(C17)=0,0,IFERROR(ROUNDDOWN(ctax(LEFT(VLOOKUP(C17,표1[],14,0),FIND(")",VLOOKUP(C17,표1[],14,0))-1),SUMIF(option!$C$2:$Q$2,0,G17:U17),'사원정보(입력)'!V$7,VLOOKUP(C17,표1[],12,0)),option!$E$3*-1),0)) -> 0 | Z17: =IF(LEN(C17)=0,0,IFERROR(ROUNDDOWN(HTAX(LEFT(VLOOKUP(C17,표1[],15,0),FIND(")",VLOOKUP(C17,표1[],15,0))-1),SUMIF(option!$C$2:$Q$2,0,G17:U17),'사원정보(입력)'!V$8,VLOOKUP(C17,표1[],13,0)),option!$F$3*-1),0)) -> 0 | AA17: =IF(Z17=0,0,IF(LEFT(VLOOKUP(C17,표1[],16,0),FIND(")",VLOOKUP(C17,표1[],16,0))-1)="2",0,ROUNDDOWN(IF(LEFT(VLOOKUP(C17,표1[],16,0),FIND(")",VLOOKUP(C17,표1[],16,0))-1)="1",Z17*('사원정보(입력)'!V$9/100),Z17*('사원정보(입력)'!V$9/100)*(1-((LEFT(VLOOKUP(C17,표1[],16,0),FIND(")",VLOOKUP(C17,표1[],16,0))-1)-2)/10))),option!$G$3*-1))) -> 0 | AB17: =IF(LEN(C17)=0,0,IF(LEFT(VLOOKUP(C17,표1[],17,0),1)="2",0,ROUNDDOWN(SUMIF(option!$C$2:$Q$2,0,G17:U17)*('사원정보(입력)'!V$10/100),option!$H$3*-1))) -> 
B18: 13 | C18: ='사원정보(입력)'!B19 -> 0 | D18: =IFERROR(VLOOKUP(C18,표1[],2,0),"") ->  | E18: =IFERROR(VLOOKUP(C18,표1[],3,0),"") ->  | F18: =IFERROR(VLOOKUP(C18,표1[],4,0),"") ->  | G18: =IFERROR(VLOOKUP(C18,표1[],11,0),0) -> 0 | V18: 0 | W18: =IF(LEN(C18)=0,0,IFERROR(IF(LEN(VLOOKUP(C18,표1[],18,0))=0,0,ROUNDDOWN(CHOOSE(LEFT(VLOOKUP(C18,표1[],18,0),1),INTAX(SUMIF(option!$C$2:$Q$2,0,G18:U18),VLOOKUP(C18,표1[],9,0),VLOOKUP(C18,표1[],10,0)),INTAX(SUMIF(option!$C$2:$Q$2,0,G18:U18),VLOOKUP(C18,표1[],9,0),VLOOKUP(C18,표1[],10,0))*1.2,INTAX(SUMIF(option!$C$2:$Q$2,0,G18:U18),VLOOKUP(C18,표1[],9,0),VLOOKUP(C18,표1[],10,0))*0.8,V18*(('사원정보(입력)'!V$13/1.1)/100),V18*(('사원정보(입력)'!V$14/1.1)/100)),option!$C$3*-1)),0)) -> 0 | X18: =IF(W18=0,0,ROUNDDOWN(W18*0.1,option!$D$3*-1)) -> 0 | Y18: =IF(LEN(C18)=0,0,IFERROR(ROUNDDOWN(ctax(LEFT(VLOOKUP(C18,표1[],14,0),FIND(")",VLOOKUP(C18,표1[],14,0))-1),SUMIF(option!$C$2:$Q$2,0,G18:U18),'사원정보(입력)'!V$7,VLOOKUP(C18,표1[],12,0)),option!$E$3*-1),0)) -> 0 | Z18: =IF(LEN(C18)=0,0,IFERROR(ROUNDDOWN(HTAX(LEFT(VLOOKUP(C18,표1[],15,0),FIND(")",VLOOKUP(C18,표1[],15,0))-1),SUMIF(option!$C$2:$Q$2,0,G18:U18),'사원정보(입력)'!V$8,VLOOKUP(C18,표1[],13,0)),option!$F$3*-1),0)) -> 0 | AA18: =IF(Z18=0,0,IF(LEFT(VLOOKUP(C18,표1[],16,0),FIND(")",VLOOKUP(C18,표1[],16,0))-1)="2",0,ROUNDDOWN(IF(LEFT(VLOOKUP(C18,표1[],16,0),FIND(")",VLOOKUP(C18,표1[],16,0))-1)="1",Z18*('사원정보(입력)'!V$9/100),Z18*('사원정보(입력)'!V$9/100)*(1-((LEFT(VLOOKUP(C18,표1[],16,0),FIND(")",VLOOKUP(C18,표1[],16,0))-1)-2)/10))),option!$G$3*-1))) -> 0 | AB18: =IF(LEN(C18)=0,0,IF(LEFT(VLOOKUP(C18,표1[],17,0),1)="2",0,ROUNDDOWN(SUMIF(option!$C$2:$Q$2,0,G18:U18)*('사원정보(입력)'!V$10/100),option!$H$3*-1))) -> 
B19: 14 | C19: ='사원정보(입력)'!B20 -> 0 | D19: =IFERROR(VLOOKUP(C19,표1[],2,0),"") ->  | E19: =IFERROR(VLOOKUP(C19,표1[],3,0),"") ->  | F19: =IFERROR(VLOOKUP(C19,표1[],4,0),"") ->  | G19: =IFERROR(VLOOKUP(C19,표1[],11,0),0) -> 0 | V19: 0 | W19: =IF(LEN(C19)=0,0,IFERROR(IF(LEN(VLOOKUP(C19,표1[],18,0))=0,0,ROUNDDOWN(CHOOSE(LEFT(VLOOKUP(C19,표1[],18,0),1),INTAX(SUMIF(option!$C$2:$Q$2,0,G19:U19),VLOOKUP(C19,표1[],9,0),VLOOKUP(C19,표1[],10,0)),INTAX(SUMIF(option!$C$2:$Q$2,0,G19:U19),VLOOKUP(C19,표1[],9,0),VLOOKUP(C19,표1[],10,0))*1.2,INTAX(SUMIF(option!$C$2:$Q$2,0,G19:U19),VLOOKUP(C19,표1[],9,0),VLOOKUP(C19,표1[],10,0))*0.8,V19*(('사원정보(입력)'!V$13/1.1)/100),V19*(('사원정보(입력)'!V$14/1.1)/100)),option!$C$3*-1)),0)) -> 0 | X19: =IF(W19=0,0,ROUNDDOWN(W19*0.1,option!$D$3*-1)) -> 0 | Y19: =IF(LEN(C19)=0,0,IFERROR(ROUNDDOWN(ctax(LEFT(VLOOKUP(C19,표1[],14,0),FIND(")",VLOOKUP(C19,표1[],14,0))-1),SUMIF(option!$C$2:$Q$2,0,G19:U19),'사원정보(입력)'!V$7,VLOOKUP(C19,표1[],12,0)),option!$E$3*-1),0)) -> 0 | Z19: =IF(LEN(C19)=0,0,IFERROR(ROUNDDOWN(HTAX(LEFT(VLOOKUP(C19,표1[],15,0),FIND(")",VLOOKUP(C19,표1[],15,0))-1),SUMIF(option!$C$2:$Q$2,0,G19:U19),'사원정보(입력)'!V$8,VLOOKUP(C19,표1[],13,0)),option!$F$3*-1),0)) -> 0 | AA19: =IF(Z19=0,0,IF(LEFT(VLOOKUP(C19,표1[],16,0),FIND(")",VLOOKUP(C19,표1[],16,0))-1)="2",0,ROUNDDOWN(IF(LEFT(VLOOKUP(C19,표1[],16,0),FIND(")",VLOOKUP(C19,표1[],16,0))-1)="1",Z19*('사원정보(입력)'!V$9/100),Z19*('사원정보(입력)'!V$9/100)*(1-((LEFT(VLOOKUP(C19,표1[],16,0),FIND(")",VLOOKUP(C19,표1[],16,0))-1)-2)/10))),option!$G$3*-1))) -> 0 | AB19: =IF(LEN(C19)=0,0,IF(LEFT(VLOOKUP(C19,표1[],17,0),1)="2",0,ROUNDDOWN(SUMIF(option!$C$2:$Q$2,0,G19:U19)*('사원정보(입력)'!V$10/100),option!$H$3*-1))) -> 
B20: 15 | C20: ='사원정보(입력)'!B21 -> 0 | D20: =IFERROR(VLOOKUP(C20,표1[],2,0),"") ->  | E20: =IFERROR(VLOOKUP(C20,표1[],3,0),"") ->  | F20: =IFERROR(VLOOKUP(C20,표1[],4,0),"") ->  | G20: =IFERROR(VLOOKUP(C20,표1[],11,0),0) -> 0 | V20: 0 | W20: =IF(LEN(C20)=0,0,IFERROR(IF(LEN(VLOOKUP(C20,표1[],18,0))=0,0,ROUNDDOWN(CHOOSE(LEFT(VLOOKUP(C20,표1[],18,0),1),INTAX(SUMIF(option!$C$2:$Q$2,0,G20:U20),VLOOKUP(C20,표1[],9,0),VLOOKUP(C20,표1[],10,0)),INTAX(SUMIF(option!$C$2:$Q$2,0,G20:U20),VLOOKUP(C20,표1[],9,0),VLOOKUP(C20,표1[],10,0))*1.2,INTAX(SUMIF(option!$C$2:$Q$2,0,G20:U20),VLOOKUP(C20,표1[],9,0),VLOOKUP(C20,표1[],10,0))*0.8,V20*(('사원정보(입력)'!V$13/1.1)/100),V20*(('사원정보(입력)'!V$14/1.1)/100)),option!$C$3*-1)),0)) -> 0 | X20: =IF(W20=0,0,ROUNDDOWN(W20*0.1,option!$D$3*-1)) -> 0 | Y20: =IF(LEN(C20)=0,0,IFERROR(ROUNDDOWN(ctax(LEFT(VLOOKUP(C20,표1[],14,0),FIND(")",VLOOKUP(C20,표1[],14,0))-1),SUMIF(option!$C$2:$Q$2,0,G20:U20),'사원정보(입력)'!V$7,VLOOKUP(C20,표1[],12,0)),option!$E$3*-1),0)) -> 0 | Z20: =IF(LEN(C20)=0,0,IFERROR(ROUNDDOWN(HTAX(LEFT(VLOOKUP(C20,표1[],15,0),FIND(")",VLOOKUP(C20,표1[],15,0))-1),SUMIF(option!$C$2:$Q$2,0,G20:U20),'사원정보(입력)'!V$8,VLOOKUP(C20,표1[],13,0)),option!$F$3*-1),0)) -> 0 | AA20: =IF(Z20=0,0,IF(LEFT(VLOOKUP(C20,표1[],16,0),FIND(")",VLOOKUP(C20,표1[],16,0))-1)="2",0,ROUNDDOWN(IF(LEFT(VLOOKUP(C20,표1[],16,0),FIND(")",VLOOKUP(C20,표1[],16,0))-1)="1",Z20*('사원정보(입력)'!V$9/100),Z20*('사원정보(입력)'!V$9/100)*(1-((LEFT(VLOOKUP(C20,표1[],16,0),FIND(")",VLOOKUP(C20,표1[],16,0))-1)-2)/10))),option!$G$3*-1))) -> 0 | AB20: =IF(LEN(C20)=0,0,IF(LEFT(VLOOKUP(C20,표1[],17,0),1)="2",0,ROUNDDOWN(SUMIF(option!$C$2:$Q$2,0,G20:U20)*('사원정보(입력)'!V$10/100),option!$H$3*-1))) -> 
B21: 16 | C21: ='사원정보(입력)'!B22 -> 0 | D21: =IFERROR(VLOOKUP(C21,표1[],2,0),"") ->  | E21: =IFERROR(VLOOKUP(C21,표1[],3,0),"") ->  | F21: =IFERROR(VLOOKUP(C21,표1[],4,0),"") ->  | G21: =IFERROR(VLOOKUP(C21,표1[],11,0),0) -> 0 | V21: 0 | W21: =IF(LEN(C21)=0,0,IFERROR(IF(LEN(VLOOKUP(C21,표1[],18,0))=0,0,ROUNDDOWN(CHOOSE(LEFT(VLOOKUP(C21,표1[],18,0),1),INTAX(SUMIF(option!$C$2:$Q$2,0,G21:U21),VLOOKUP(C21,표1[],9,0),VLOOKUP(C21,표1[],10,0)),INTAX(SUMIF(option!$C$2:$Q$2,0,G21:U21),VLOOKUP(C21,표1[],9,0),VLOOKUP(C21,표1[],10,0))*1.2,INTAX(SUMIF(option!$C$2:$Q$2,0,G21:U21),VLOOKUP(C21,표1[],9,0),VLOOKUP(C21,표1[],10,0))*0.8,V21*(('사원정보(입력)'!V$13/1.1)/100),V21*(('사원정보(입력)'!V$14/1.1)/100)),option!$C$3*-1)),0)) -> 0 | X21: =IF(W21=0,0,ROUNDDOWN(W21*0.1,option!$D$3*-1)) -> 0 | Y21: =IF(LEN(C21)=0,0,IFERROR(ROUNDDOWN(ctax(LEFT(VLOOKUP(C21,표1[],14,0),FIND(")",VLOOKUP(C21,표1[],14,0))-1),SUMIF(option!$C$2:$Q$2,0,G21:U21),'사원정보(입력)'!V$7,VLOOKUP(C21,표1[],12,0)),option!$E$3*-1),0)) -> 0 | Z21: =IF(LEN(C21)=0,0,IFERROR(ROUNDDOWN(HTAX(LEFT(VLOOKUP(C21,표1[],15,0),FIND(")",VLOOKUP(C21,표1[],15,0))-1),SUMIF(option!$C$2:$Q$2,0,G21:U21),'사원정보(입력)'!V$8,VLOOKUP(C21,표1[],13,0)),option!$F$3*-1),0)) -> 0 | AA21: =IF(Z21=0,0,IF(LEFT(VLOOKUP(C21,표1[],16,0),FIND(")",VLOOKUP(C21,표1[],16,0))-1)="2",0,ROUNDDOWN(IF(LEFT(VLOOKUP(C21,표1[],16,0),FIND(")",VLOOKUP(C21,표1[],16,0))-1)="1",Z21*('사원정보(입력)'!V$9/100),Z21*('사원정보(입력)'!V$9/100)*(1-((LEFT(VLOOKUP(C21,표1[],16,0),FIND(")",VLOOKUP(C21,표1[],16,0))-1)-2)/10))),option!$G$3*-1))) -> 0 | AB21: =IF(LEN(C21)=0,0,IF(LEFT(VLOOKUP(C21,표1[],17,0),1)="2",0,ROUNDDOWN(SUMIF(option!$C$2:$Q$2,0,G21:U21)*('사원정보(입력)'!V$10/100),option!$H$3*-1))) -> 
B22: 17 | C22: ='사원정보(입력)'!B23 -> 0 | D22: =IFERROR(VLOOKUP(C22,표1[],2,0),"") ->  | E22: =IFERROR(VLOOKUP(C22,표1[],3,0),"") ->  | F22: =IFERROR(VLOOKUP(C22,표1[],4,0),"") ->  | G22: =IFERROR(VLOOKUP(C22,표1[],11,0),0) -> 0 | V22: 0 | W22: =IF(LEN(C22)=0,0,IFERROR(IF(LEN(VLOOKUP(C22,표1[],18,0))=0,0,ROUNDDOWN(CHOOSE(LEFT(VLOOKUP(C22,표1[],18,0),1),INTAX(SUMIF(option!$C$2:$Q$2,0,G22:U22),VLOOKUP(C22,표1[],9,0),VLOOKUP(C22,표1[],10,0)),INTAX(SUMIF(option!$C$2:$Q$2,0,G22:U22),VLOOKUP(C22,표1[],9,0),VLOOKUP(C22,표1[],10,0))*1.2,INTAX(SUMIF(option!$C$2:$Q$2,0,G22:U22),VLOOKUP(C22,표1[],9,0),VLOOKUP(C22,표1[],10,0))*0.8,V22*(('사원정보(입력)'!V$13/1.1)/100),V22*(('사원정보(입력)'!V$14/1.1)/100)),option!$C$3*-1)),0)) -> 0 | X22: =IF(W22=0,0,ROUNDDOWN(W22*0.1,option!$D$3*-1)) -> 0 | Y22: =IF(LEN(C22)=0,0,IFERROR(ROUNDDOWN(ctax(LEFT(VLOOKUP(C22,표1[],14,0),FIND(")",VLOOKUP(C22,표1[],14,0))-1),SUMIF(option!$C$2:$Q$2,0,G22:U22),'사원정보(입력)'!V$7,VLOOKUP(C22,표1[],12,0)),option!$E$3*-1),0)) -> 0 | Z22: =IF(LEN(C22)=0,0,IFERROR(ROUNDDOWN(HTAX(LEFT(VLOOKUP(C22,표1[],15,0),FIND(")",VLOOKUP(C22,표1[],15,0))-1),SUMIF(option!$C$2:$Q$2,0,G22:U22),'사원정보(입력)'!V$8,VLOOKUP(C22,표1[],13,0)),option!$F$3*-1),0)) -> 0 | AA22: =IF(Z22=0,0,IF(LEFT(VLOOKUP(C22,표1[],16,0),FIND(")",VLOOKUP(C22,표1[],16,0))-1)="2",0,ROUNDDOWN(IF(LEFT(VLOOKUP(C22,표1[],16,0),FIND(")",VLOOKUP(C22,표1[],16,0))-1)="1",Z22*('사원정보(입력)'!V$9/100),Z22*('사원정보(입력)'!V$9/100)*(1-((LEFT(VLOOKUP(C22,표1[],16,0),FIND(")",VLOOKUP(C22,표1[],16,0))-1)-2)/10))),option!$G$3*-1))) -> 0 | AB22: =IF(LEN(C22)=0,0,IF(LEFT(VLOOKUP(C22,표1[],17,0),1)="2",0,ROUNDDOWN(SUMIF(option!$C$2:$Q$2,0,G22:U22)*('사원정보(입력)'!V$10/100),option!$H$3*-1))) -> 
B23: 18 | C23: ='사원정보(입력)'!B24 -> 0 | D23: =IFERROR(VLOOKUP(C23,표1[],2,0),"") ->  | E23: =IFERROR(VLOOKUP(C23,표1[],3,0),"") ->  | F23: =IFERROR(VLOOKUP(C23,표1[],4,0),"") ->  | G23: =IFERROR(VLOOKUP(C23,표1[],11,0),0) -> 0 | V23: 0 | W23: =IF(LEN(C23)=0,0,IFERROR(IF(LEN(VLOOKUP(C23,표1[],18,0))=0,0,ROUNDDOWN(CHOOSE(LEFT(VLOOKUP(C23,표1[],18,0),1),INTAX(SUMIF(option!$C$2:$Q$2,0,G23:U23),VLOOKUP(C23,표1[],9,0),VLOOKUP(C23,표1[],10,0)),INTAX(SUMIF(option!$C$2:$Q$2,0,G23:U23),VLOOKUP(C23,표1[],9,0),VLOOKUP(C23,표1[],10,0))*1.2,INTAX(SUMIF(option!$C$2:$Q$2,0,G23:U23),VLOOKUP(C23,표1[],9,0),VLOOKUP(C23,표1[],10,0))*0.8,V23*(('사원정보(입력)'!V$13/1.1)/100),V23*(('사원정보(입력)'!V$14/1.1)/100)),option!$C$3*-1)),0)) -> 0 | X23: =IF(W23=0,0,ROUNDDOWN(W23*0.1,option!$D$3*-1)) -> 0 | Y23: =IF(LEN(C23)=0,0,IFERROR(ROUNDDOWN(ctax(LEFT(VLOOKUP(C23,표1[],14,0),FIND(")",VLOOKUP(C23,표1[],14,0))-1),SUMIF(option!$C$2:$Q$2,0,G23:U23),'사원정보(입력)'!V$7,VLOOKUP(C23,표1[],12,0)),option!$E$3*-1),0)) -> 0 | Z23: =IF(LEN(C23)=0,0,IFERROR(ROUNDDOWN(HTAX(LEFT(VLOOKUP(C23,표1[],15,0),FIND(")",VLOOKUP(C23,표1[],15,0))-1),SUMIF(option!$C$2:$Q$2,0,G23:U23),'사원정보(입력)'!V$8,VLOOKUP(C23,표1[],13,0)),option!$F$3*-1),0)) -> 0 | AA23: =IF(Z23=0,0,IF(LEFT(VLOOKUP(C23,표1[],16,0),FIND(")",VLOOKUP(C23,표1[],16,0))-1)="2",0,ROUNDDOWN(IF(LEFT(VLOOKUP(C23,표1[],16,0),FIND(")",VLOOKUP(C23,표1[],16,0))-1)="1",Z23*('사원정보(입력)'!V$9/100),Z23*('사원정보(입력)'!V$9/100)*(1-((LEFT(VLOOKUP(C23,표1[],16,0),FIND(")",VLOOKUP(C23,표1[],16,0))-1)-2)/10))),option!$G$3*-1))) -> 0 | AB23: =IF(LEN(C23)=0,0,IF(LEFT(VLOOKUP(C23,표1[],17,0),1)="2",0,ROUNDDOWN(SUMIF(option!$C$2:$Q$2,0,G23:U23)*('사원정보(입력)'!V$10/100),option!$H$3*-1))) -> 
B24: 19 | C24: ='사원정보(입력)'!B25 -> 0 | D24: =IFERROR(VLOOKUP(C24,표1[],2,0),"") ->  | E24: =IFERROR(VLOOKUP(C24,표1[],3,0),"") ->  | F24: =IFERROR(VLOOKUP(C24,표1[],4,0),"") ->  | G24: =IFERROR(VLOOKUP(C24,표1[],11,0),0) -> 0 | V24: =SUM(G24:U24) -> 0 | W24: =IF(LEN(C24)=0,0,IFERROR(IF(LEN(VLOOKUP(C24,표1[],18,0))=0,0,ROUNDDOWN(CHOOSE(LEFT(VLOOKUP(C24,표1[],18,0),1),INTAX(SUMIF(option!$C$2:$Q$2,0,G24:U24),VLOOKUP(C24,표1[],9,0),VLOOKUP(C24,표1[],10,0)),INTAX(SUMIF(option!$C$2:$Q$2,0,G24:U24),VLOOKUP(C24,표1[],9,0),VLOOKUP(C24,표1[],10,0))*1.2,INTAX(SUMIF(option!$C$2:$Q$2,0,G24:U24),VLOOKUP(C24,표1[],9,0),VLOOKUP(C24,표1[],10,0))*0.8,V24*(('사원정보(입력)'!V$13/1.1)/100),V24*(('사원정보(입력)'!V$14/1.1)/100)),option!$C$3*-1)),0)) -> 0 | X24: =IF(W24=0,0,ROUNDDOWN(W24*0.1,option!$D$3*-1)) -> 0 | Y24: =IF(LEN(C24)=0,0,IFERROR(ROUNDDOWN(ctax(LEFT(VLOOKUP(C24,표1[],14,0),FIND(")",VLOOKUP(C24,표1[],14,0))-1),SUMIF(option!$C$2:$Q$2,0,G24:U24),'사원정보(입력)'!V$7,VLOOKUP(C24,표1[],12,0)),option!$E$3*-1),0)) -> 0 | Z24: =IF(LEN(C24)=0,0,IFERROR(ROUNDDOWN(HTAX(LEFT(VLOOKUP(C24,표1[],15,0),FIND(")",VLOOKUP(C24,표1[],15,0))-1),SUMIF(option!$C$2:$Q$2,0,G24:U24),'사원정보(입력)'!V$8,VLOOKUP(C24,표1[],13,0)),option!$F$3*-1),0)) -> 0 | AA24: =IF(Z24=0,0,IF(LEFT(VLOOKUP(C24,표1[],16,0),FIND(")",VLOOKUP(C24,표1[],16,0))-1)="2",0,ROUNDDOWN(IF(LEFT(VLOOKUP(C24,표1[],16,0),FIND(")",VLOOKUP(C24,표1[],16,0))-1)="1",Z24*('사원정보(입력)'!V$9/100),Z24*('사원정보(입력)'!V$9/100)*(1-((LEFT(VLOOKUP(C24,표1[],16,0),FIND(")",VLOOKUP(C24,표1[],16,0))-1)-2)/10))),option!$G$3*-1))) -> 0 | AB24: =IF(LEN(C24)=0,0,IF(LEFT(VLOOKUP(C24,표1[],17,0),1)="2",0,ROUNDDOWN(SUMIF(option!$C$2:$Q$2,0,G24:U24)*('사원정보(입력)'!V$10/100),option!$H$3*-1))) ->  | AC24: =IF(E24="지입",((V24/1.1)*79.8%)*0.7%,"") ->  | AD24: =IF(E24="지입",11495,"") ->  | AL24: =SUM(W24:AK24) -> 
B25: 20 | C25: ='사원정보(입력)'!B26 -> 0 | D25: =IFERROR(VLOOKUP(C25,표1[],2,0),"") ->  | E25: =IFERROR(VLOOKUP(C25,표1[],3,0),"") ->  | F25: =IFERROR(VLOOKUP(C25,표1[],4,0),"") ->  | G25: =IFERROR(VLOOKUP(C25,표1[],11,0),0) -> 0 | V25: 0 | W25: =IF(LEN(C25)=0,0,IFERROR(IF(LEN(VLOOKUP(C25,표1[],18,0))=0,0,ROUNDDOWN(CHOOSE(LEFT(VLOOKUP(C25,표1[],18,0),1),INTAX(SUMIF(option!$C$2:$Q$2,0,G25:U25),VLOOKUP(C25,표1[],9,0),VLOOKUP(C25,표1[],10,0)),INTAX(SUMIF(option!$C$2:$Q$2,0,G25:U25),VLOOKUP(C25,표1[],9,0),VLOOKUP(C25,표1[],10,0))*1.2,INTAX(SUMIF(option!$C$2:$Q$2,0,G25:U25),VLOOKUP(C25,표1[],9,0),VLOOKUP(C25,표1[],10,0))*0.8,V25*(('사원정보(입력)'!V$13/1.1)/100),V25*(('사원정보(입력)'!V$14/1.1)/100)),option!$C$3*-1)),0)) -> 0 | X25: =IF(W25=0,0,ROUNDDOWN(W25*0.1,option!$D$3*-1)) -> 0 | Y25: =IF(LEN(C25)=0,0,IFERROR(ROUNDDOWN(ctax(LEFT(VLOOKUP(C25,표1[],14,0),FIND(")",VLOOKUP(C25,표1[],14,0))-1),SUMIF(option!$C$2:$Q$2,0,G25:U25),'사원정보(입력)'!V$7,VLOOKUP(C25,표1[],12,0)),option!$E$3*-1),0)) -> 0 | Z25: =IF(LEN(C25)=0,0,IFERROR(ROUNDDOWN(HTAX(LEFT(VLOOKUP(C25,표1[],15,0),FIND(")",VLOOKUP(C25,표1[],15,0))-1),SUMIF(option!$C$2:$Q$2,0,G25:U25),'사원정보(입력)'!V$8,VLOOKUP(C25,표1[],13,0)),option!$F$3*-1),0)) -> 0 | AA25: =IF(Z25=0,0,IF(LEFT(VLOOKUP(C25,표1[],16,0),FIND(")",VLOOKUP(C25,표1[],16,0))-1)="2",0,ROUNDDOWN(IF(LEFT(VLOOKUP(C25,표1[],16,0),FIND(")",VLOOKUP(C25,표1[],16,0))-1)="1",Z25*('사원정보(입력)'!V$9/100),Z25*('사원정보(입력)'!V$9/100)*(1-((LEFT(VLOOKUP(C25,표1[],16,0),FIND(")",VLOOKUP(C25,표1[],16,0))-1)-2)/10))),option!$G$3*-1))) -> 0 | AB25: =IF(LEN(C25)=0,0,IF(LEFT(VLOOKUP(C25,표1[],17,0),1)="2",0,ROUNDDOWN(SUMIF(option!$C$2:$Q$2,0,G25:U25)*('사원정보(입력)'!V$10/100),option!$H$3*-1))) -> 
B26: 21 | C26: ='사원정보(입력)'!B27 -> 0 | D26: =IFERROR(VLOOKUP(C26,표1[],2,0),"") ->  | E26: =IFERROR(VLOOKUP(C26,표1[],3,0),"") ->  | F26: =IFERROR(VLOOKUP(C26,표1[],4,0),"") ->  | G26: =IFERROR(VLOOKUP(C26,표1[],11,0),0) -> 0 | V26: =SUM(G26:U26) -> 0 | W26: =IF(LEN(C26)=0,0,IFERROR(IF(LEN(VLOOKUP(C26,표1[],18,0))=0,0,ROUNDDOWN(CHOOSE(LEFT(VLOOKUP(C26,표1[],18,0),1),INTAX(SUMIF(option!$C$2:$Q$2,0,G26:U26),VLOOKUP(C26,표1[],9,0),VLOOKUP(C26,표1[],10,0)),INTAX(SUMIF(option!$C$2:$Q$2,0,G26:U26),VLOOKUP(C26,표1[],9,0),VLOOKUP(C26,표1[],10,0))*1.2,INTAX(SUMIF(option!$C$2:$Q$2,0,G26:U26),VLOOKUP(C26,표1[],9,0),VLOOKUP(C26,표1[],10,0))*0.8,V26*(('사원정보(입력)'!V$13/1.1)/100),V26*(('사원정보(입력)'!V$14/1.1)/100)),option!$C$3*-1)),0)) -> 0 | X26: =IF(W26=0,0,ROUNDDOWN(W26*0.1,option!$D$3*-1)) -> 0 | Y26: =IF(LEN(C26)=0,0,IFERROR(ROUNDDOWN(ctax(LEFT(VLOOKUP(C26,표1[],14,0),FIND(")",VLOOKUP(C26,표1[],14,0))-1),SUMIF(option!$C$2:$Q$2,0,G26:U26),'사원정보(입력)'!V$7,VLOOKUP(C26,표1[],12,0)),option!$E$3*-1),0)) -> 0 | Z26: =IF(LEN(C26)=0,0,IFERROR(ROUNDDOWN(HTAX(LEFT(VLOOKUP(C26,표1[],15,0),FIND(")",VLOOKUP(C26,표1[],15,0))-1),SUMIF(option!$C$2:$Q$2,0,G26:U26),'사원정보(입력)'!V$8,VLOOKUP(C26,표1[],13,0)),option!$F$3*-1),0)) -> 0 | AA26: =IF(Z26=0,0,IF(LEFT(VLOOKUP(C26,표1[],16,0),FIND(")",VLOOKUP(C26,표1[],16,0))-1)="2",0,ROUNDDOWN(IF(LEFT(VLOOKUP(C26,표1[],16,0),FIND(")",VLOOKUP(C26,표1[],16,0))-1)="1",Z26*('사원정보(입력)'!V$9/100),Z26*('사원정보(입력)'!V$9/100)*(1-((LEFT(VLOOKUP(C26,표1[],16,0),FIND(")",VLOOKUP(C26,표1[],16,0))-1)-2)/10))),option!$G$3*-1))) -> 0 | AB26: =IF(LEN(C26)=0,0,IF(LEFT(VLOOKUP(C26,표1[],17,0),1)="2",0,ROUNDDOWN(SUMIF(option!$C$2:$Q$2,0,G26:U26)*('사원정보(입력)'!V$10/100),option!$H$3*-1))) ->  | AL26: =SUM(W26:AK26) ->  | AM26: =V26-AL26 -> 
B27: 22 | C27: ='사원정보(입력)'!B28 -> 0 | D27: =IFERROR(VLOOKUP(C27,표1[],2,0),"") ->  | E27: =IFERROR(VLOOKUP(C27,표1[],3,0),"") ->  | F27: =IFERROR(VLOOKUP(C27,표1[],4,0),"") ->  | G27: =IFERROR(VLOOKUP(C27,표1[],11,0),0) -> 0 | V27: =SUM(G27:U27) -> 0 | W27: =IF(LEN(C27)=0,0,IFERROR(IF(LEN(VLOOKUP(C27,표1[],18,0))=0,0,ROUNDDOWN(CHOOSE(LEFT(VLOOKUP(C27,표1[],18,0),1),INTAX(SUMIF(option!$C$2:$Q$2,0,G27:U27),VLOOKUP(C27,표1[],9,0),VLOOKUP(C27,표1[],10,0)),INTAX(SUMIF(option!$C$2:$Q$2,0,G27:U27),VLOOKUP(C27,표1[],9,0),VLOOKUP(C27,표1[],10,0))*1.2,INTAX(SUMIF(option!$C$2:$Q$2,0,G27:U27),VLOOKUP(C27,표1[],9,0),VLOOKUP(C27,표1[],10,0))*0.8,V27*(('사원정보(입력)'!V$13/1.1)/100),V27*(('사원정보(입력)'!V$14/1.1)/100)),option!$C$3*-1)),0)) -> 0 | X27: =IF(W27=0,0,ROUNDDOWN(W27*0.1,option!$D$3*-1)) -> 0 | Y27: =IF(LEN(C27)=0,0,IFERROR(ROUNDDOWN(ctax(LEFT(VLOOKUP(C27,표1[],14,0),FIND(")",VLOOKUP(C27,표1[],14,0))-1),SUMIF(option!$C$2:$Q$2,0,G27:U27),'사원정보(입력)'!V$7,VLOOKUP(C27,표1[],12,0)),option!$E$3*-1),0)) -> 0 | Z27: =IF(LEN(C27)=0,0,IFERROR(ROUNDDOWN(HTAX(LEFT(VLOOKUP(C27,표1[],15,0),FIND(")",VLOOKUP(C27,표1[],15,0))-1),SUMIF(option!$C$2:$Q$2,0,G27:U27),'사원정보(입력)'!V$8,VLOOKUP(C27,표1[],13,0)),option!$F$3*-1),0)) -> 0 | AA27: =IF(Z27=0,0,IF(LEFT(VLOOKUP(C27,표1[],16,0),FIND(")",VLOOKUP(C27,표1[],16,0))-1)="2",0,ROUNDDOWN(IF(LEFT(VLOOKUP(C27,표1[],16,0),FIND(")",VLOOKUP(C27,표1[],16,0))-1)="1",Z27*('사원정보(입력)'!V$9/100),Z27*('사원정보(입력)'!V$9/100)*(1-((LEFT(VLOOKUP(C27,표1[],16,0),FIND(")",VLOOKUP(C27,표1[],16,0))-1)-2)/10))),option!$G$3*-1))) -> 0 | AB27: =IF(LEN(C27)=0,0,IF(LEFT(VLOOKUP(C27,표1[],17,0),1)="2",0,ROUNDDOWN(SUMIF(option!$C$2:$Q$2,0,G27:U27)*('사원정보(입력)'!V$10/100),option!$H$3*-1))) ->  | AL27: =SUM(W27:AK27) ->  | AM27: =V27-AL27 -> 
B28: 23 | C28: ='사원정보(입력)'!B29 -> 0 | D28: =IFERROR(VLOOKUP(C28,표1[],2,0),"") ->  | E28: =IFERROR(VLOOKUP(C28,표1[],3,0),"") ->  | F28: =IFERROR(VLOOKUP(C28,표1[],4,0),"") ->  | G28: =IFERROR(VLOOKUP(C28,표1[],11,0),0) -> 0 | V28: 0 | W28: =IF(LEN(C28)=0,0,IFERROR(IF(LEN(VLOOKUP(C28,표1[],18,0))=0,0,ROUNDDOWN(CHOOSE(LEFT(VLOOKUP(C28,표1[],18,0),1),INTAX(SUMIF(option!$C$2:$Q$2,0,G28:U28),VLOOKUP(C28,표1[],9,0),VLOOKUP(C28,표1[],10,0)),INTAX(SUMIF(option!$C$2:$Q$2,0,G28:U28),VLOOKUP(C28,표1[],9,0),VLOOKUP(C28,표1[],10,0))*1.2,INTAX(SUMIF(option!$C$2:$Q$2,0,G28:U28),VLOOKUP(C28,표1[],9,0),VLOOKUP(C28,표1[],10,0))*0.8,V28*(('사원정보(입력)'!V$13/1.1)/100),V28*(('사원정보(입력)'!V$14/1.1)/100)),option!$C$3*-1)),0)) -> 0 | X28: =IF(W28=0,0,ROUNDDOWN(W28*0.1,option!$D$3*-1)) -> 0 | Y28: =IF(LEN(C28)=0,0,IFERROR(ROUNDDOWN(ctax(LEFT(VLOOKUP(C28,표1[],14,0),FIND(")",VLOOKUP(C28,표1[],14,0))-1),SUMIF(option!$C$2:$Q$2,0,G28:U28),'사원정보(입력)'!V$7,VLOOKUP(C28,표1[],12,0)),option!$E$3*-1),0)) -> 0 | Z28: =IF(LEN(C28)=0,0,IFERROR(ROUNDDOWN(HTAX(LEFT(VLOOKUP(C28,표1[],15,0),FIND(")",VLOOKUP(C28,표1[],15,0))-1),SUMIF(option!$C$2:$Q$2,0,G28:U28),'사원정보(입력)'!V$8,VLOOKUP(C28,표1[],13,0)),option!$F$3*-1),0)) -> 0 | AA28: =IF(Z28=0,0,IF(LEFT(VLOOKUP(C28,표1[],16,0),FIND(")",VLOOKUP(C28,표1[],16,0))-1)="2",0,ROUNDDOWN(IF(LEFT(VLOOKUP(C28,표1[],16,0),FIND(")",VLOOKUP(C28,표1[],16,0))-1)="1",Z28*('사원정보(입력)'!V$9/100),Z28*('사원정보(입력)'!V$9/100)*(1-((LEFT(VLOOKUP(C28,표1[],16,0),FIND(")",VLOOKUP(C28,표1[],16,0))-1)-2)/10))),option!$G$3*-1))) -> 0 | AB28: =IF(LEN(C28)=0,0,IF(LEFT(VLOOKUP(C28,표1[],17,0),1)="2",0,ROUNDDOWN(SUMIF(option!$C$2:$Q$2,0,G28:U28)*('사원정보(입력)'!V$10/100),option!$H$3*-1))) -> 
B29: 24 | C29: ='사원정보(입력)'!B30 -> 0 | D29: =IFERROR(VLOOKUP(C29,표1[],2,0),"") ->  | E29: =IFERROR(VLOOKUP(C29,표1[],3,0),"") ->  | F29: =IFERROR(VLOOKUP(C29,표1[],4,0),"") ->  | G29: =IFERROR(VLOOKUP(C29,표1[],11,0),0) -> 0 | V29: 0 | W29: =IF(LEN(C29)=0,0,IFERROR(IF(LEN(VLOOKUP(C29,표1[],18,0))=0,0,ROUNDDOWN(CHOOSE(LEFT(VLOOKUP(C29,표1[],18,0),1),INTAX(SUMIF(option!$C$2:$Q$2,0,G29:U29),VLOOKUP(C29,표1[],9,0),VLOOKUP(C29,표1[],10,0)),INTAX(SUMIF(option!$C$2:$Q$2,0,G29:U29),VLOOKUP(C29,표1[],9,0),VLOOKUP(C29,표1[],10,0))*1.2,INTAX(SUMIF(option!$C$2:$Q$2,0,G29:U29),VLOOKUP(C29,표1[],9,0),VLOOKUP(C29,표1[],10,0))*0.8,V29*(('사원정보(입력)'!V$13/1.1)/100),V29*(('사원정보(입력)'!V$14/1.1)/100)),option!$C$3*-1)),0)) -> 0 | X29: =IF(W29=0,0,ROUNDDOWN(W29*0.1,option!$D$3*-1)) -> 0 | Y29: =IF(LEN(C29)=0,0,IFERROR(ROUNDDOWN(ctax(LEFT(VLOOKUP(C29,표1[],14,0),FIND(")",VLOOKUP(C29,표1[],14,0))-1),SUMIF(option!$C$2:$Q$2,0,G29:U29),'사원정보(입력)'!V$7,VLOOKUP(C29,표1[],12,0)),option!$E$3*-1),0)) -> 0 | Z29: =IF(LEN(C29)=0,0,IFERROR(ROUNDDOWN(HTAX(LEFT(VLOOKUP(C29,표1[],15,0),FIND(")",VLOOKUP(C29,표1[],15,0))-1),SUMIF(option!$C$2:$Q$2,0,G29:U29),'사원정보(입력)'!V$8,VLOOKUP(C29,표1[],13,0)),option!$F$3*-1),0)) -> 0 | AA29: =IF(Z29=0,0,IF(LEFT(VLOOKUP(C29,표1[],16,0),FIND(")",VLOOKUP(C29,표1[],16,0))-1)="2",0,ROUNDDOWN(IF(LEFT(VLOOKUP(C29,표1[],16,0),FIND(")",VLOOKUP(C29,표1[],16,0))-1)="1",Z29*('사원정보(입력)'!V$9/100),Z29*('사원정보(입력)'!V$9/100)*(1-((LEFT(VLOOKUP(C29,표1[],16,0),FIND(")",VLOOKUP(C29,표1[],16,0))-1)-2)/10))),option!$G$3*-1))) -> 0 | AB29: =IF(LEN(C29)=0,0,IF(LEFT(VLOOKUP(C29,표1[],17,0),1)="2",0,ROUNDDOWN(SUMIF(option!$C$2:$Q$2,0,G29:U29)*('사원정보(입력)'!V$10/100),option!$H$3*-1))) -> 
B30: 25 | C30: ='사원정보(입력)'!B31 -> 0 | D30: =IFERROR(VLOOKUP(C30,표1[],2,0),"") ->  | E30: =IFERROR(VLOOKUP(C30,표1[],3,0),"") ->  | F30: =IFERROR(VLOOKUP(C30,표1[],4,0),"") ->  | G30: =IFERROR(VLOOKUP(C30,표1[],11,0),0) -> 0 | V30: 0 | W30: =IF(LEN(C30)=0,0,IFERROR(IF(LEN(VLOOKUP(C30,표1[],18,0))=0,0,ROUNDDOWN(CHOOSE(LEFT(VLOOKUP(C30,표1[],18,0),1),INTAX(SUMIF(option!$C$2:$Q$2,0,G30:U30),VLOOKUP(C30,표1[],9,0),VLOOKUP(C30,표1[],10,0)),INTAX(SUMIF(option!$C$2:$Q$2,0,G30:U30),VLOOKUP(C30,표1[],9,0),VLOOKUP(C30,표1[],10,0))*1.2,INTAX(SUMIF(option!$C$2:$Q$2,0,G30:U30),VLOOKUP(C30,표1[],9,0),VLOOKUP(C30,표1[],10,0))*0.8,V30*(('사원정보(입력)'!V$13/1.1)/100),V30*(('사원정보(입력)'!V$14/1.1)/100)),option!$C$3*-1)),0)) -> 0 | X30: =IF(W30=0,0,ROUNDDOWN(W30*0.1,option!$D$3*-1)) -> 0 | Y30: =IF(LEN(C30)=0,0,IFERROR(ROUNDDOWN(ctax(LEFT(VLOOKUP(C30,표1[],14,0),FIND(")",VLOOKUP(C30,표1[],14,0))-1),SUMIF(option!$C$2:$Q$2,0,G30:U30),'사원정보(입력)'!V$7,VLOOKUP(C30,표1[],12,0)),option!$E$3*-1),0)) -> 0 | Z30: =IF(LEN(C30)=0,0,IFERROR(ROUNDDOWN(HTAX(LEFT(VLOOKUP(C30,표1[],15,0),FIND(")",VLOOKUP(C30,표1[],15,0))-1),SUMIF(option!$C$2:$Q$2,0,G30:U30),'사원정보(입력)'!V$8,VLOOKUP(C30,표1[],13,0)),option!$F$3*-1),0)) -> 0 | AA30: =IF(Z30=0,0,IF(LEFT(VLOOKUP(C30,표1[],16,0),FIND(")",VLOOKUP(C30,표1[],16,0))-1)="2",0,ROUNDDOWN(IF(LEFT(VLOOKUP(C30,표1[],16,0),FIND(")",VLOOKUP(C30,표1[],16,0))-1)="1",Z30*('사원정보(입력)'!V$9/100),Z30*('사원정보(입력)'!V$9/100)*(1-((LEFT(VLOOKUP(C30,표1[],16,0),FIND(")",VLOOKUP(C30,표1[],16,0))-1)-2)/10))),option!$G$3*-1))) -> 0 | AB30: =IF(LEN(C30)=0,0,IF(LEFT(VLOOKUP(C30,표1[],17,0),1)="2",0,ROUNDDOWN(SUMIF(option!$C$2:$Q$2,0,G30:U30)*('사원정보(입력)'!V$10/100),option!$H$3*-1))) -> 
B31: 26 | C31: ='사원정보(입력)'!B32 -> 0 | D31: =IFERROR(VLOOKUP(C31,표1[],2,0),"") ->  | E31: =IFERROR(VLOOKUP(C31,표1[],3,0),"") ->  | F31: =IFERROR(VLOOKUP(C31,표1[],4,0),"") ->  | G31: =IFERROR(VLOOKUP(C31,표1[],11,0),0) -> 0 | V31: 0 | W31: =IF(LEN(C31)=0,0,IFERROR(IF(LEN(VLOOKUP(C31,표1[],18,0))=0,0,ROUNDDOWN(CHOOSE(LEFT(VLOOKUP(C31,표1[],18,0),1),INTAX(SUMIF(option!$C$2:$Q$2,0,G31:U31),VLOOKUP(C31,표1[],9,0),VLOOKUP(C31,표1[],10,0)),INTAX(SUMIF(option!$C$2:$Q$2,0,G31:U31),VLOOKUP(C31,표1[],9,0),VLOOKUP(C31,표1[],10,0))*1.2,INTAX(SUMIF(option!$C$2:$Q$2,0,G31:U31),VLOOKUP(C31,표1[],9,0),VLOOKUP(C31,표1[],10,0))*0.8,V31*(('사원정보(입력)'!V$13/1.1)/100),V31*(('사원정보(입력)'!V$14/1.1)/100)),option!$C$3*-1)),0)) -> 0 | X31: =IF(W31=0,0,ROUNDDOWN(W31*0.1,option!$D$3*-1)) -> 0 | Y31: =IF(LEN(C31)=0,0,IFERROR(ROUNDDOWN(ctax(LEFT(VLOOKUP(C31,표1[],14,0),FIND(")",VLOOKUP(C31,표1[],14,0))-1),SUMIF(option!$C$2:$Q$2,0,G31:U31),'사원정보(입력)'!V$7,VLOOKUP(C31,표1[],12,0)),option!$E$3*-1),0)) -> 0 | Z31: =IF(LEN(C31)=0,0,IFERROR(ROUNDDOWN(HTAX(LEFT(VLOOKUP(C31,표1[],15,0),FIND(")",VLOOKUP(C31,표1[],15,0))-1),SUMIF(option!$C$2:$Q$2,0,G31:U31),'사원정보(입력)'!V$8,VLOOKUP(C31,표1[],13,0)),option!$F$3*-1),0)) -> 0 | AA31: =IF(Z31=0,0,IF(LEFT(VLOOKUP(C31,표1[],16,0),FIND(")",VLOOKUP(C31,표1[],16,0))-1)="2",0,ROUNDDOWN(IF(LEFT(VLOOKUP(C31,표1[],16,0),FIND(")",VLOOKUP(C31,표1[],16,0))-1)="1",Z31*('사원정보(입력)'!V$9/100),Z31*('사원정보(입력)'!V$9/100)*(1-((LEFT(VLOOKUP(C31,표1[],16,0),FIND(")",VLOOKUP(C31,표1[],16,0))-1)-2)/10))),option!$G$3*-1))) -> 0 | AB31: =IF(LEN(C31)=0,0,IF(LEFT(VLOOKUP(C31,표1[],17,0),1)="2",0,ROUNDDOWN(SUMIF(option!$C$2:$Q$2,0,G31:U31)*('사원정보(입력)'!V$10/100),option!$H$3*-1))) -> 
B32: 27 | C32: ='사원정보(입력)'!B33 -> 0 | D32: =IFERROR(VLOOKUP(C32,표1[],2,0),"") ->  | E32: =IFERROR(VLOOKUP(C32,표1[],3,0),"") ->  | F32: =IFERROR(VLOOKUP(C32,표1[],4,0),"") ->  | G32: =IFERROR(VLOOKUP(C32,표1[],11,0),0) -> 0 | V32: 0 | W32: =IF(LEN(C32)=0,0,IFERROR(IF(LEN(VLOOKUP(C32,표1[],18,0))=0,0,ROUNDDOWN(CHOOSE(LEFT(VLOOKUP(C32,표1[],18,0),1),INTAX(SUMIF(option!$C$2:$Q$2,0,G32:U32),VLOOKUP(C32,표1[],9,0),VLOOKUP(C32,표1[],10,0)),INTAX(SUMIF(option!$C$2:$Q$2,0,G32:U32),VLOOKUP(C32,표1[],9,0),VLOOKUP(C32,표1[],10,0))*1.2,INTAX(SUMIF(option!$C$2:$Q$2,0,G32:U32),VLOOKUP(C32,표1[],9,0),VLOOKUP(C32,표1[],10,0))*0.8,V32*(('사원정보(입력)'!V$13/1.1)/100),V32*(('사원정보(입력)'!V$14/1.1)/100)),option!$C$3*-1)),0)) -> 0 | X32: =IF(W32=0,0,ROUNDDOWN(W32*0.1,option!$D$3*-1)) -> 0 | Y32: =IF(LEN(C32)=0,0,IFERROR(ROUNDDOWN(ctax(LEFT(VLOOKUP(C32,표1[],14,0),FIND(")",VLOOKUP(C32,표1[],14,0))-1),SUMIF(option!$C$2:$Q$2,0,G32:U32),'사원정보(입력)'!V$7,VLOOKUP(C32,표1[],12,0)),option!$E$3*-1),0)) -> 0 | Z32: =IF(LEN(C32)=0,0,IFERROR(ROUNDDOWN(HTAX(LEFT(VLOOKUP(C32,표1[],15,0),FIND(")",VLOOKUP(C32,표1[],15,0))-1),SUMIF(option!$C$2:$Q$2,0,G32:U32),'사원정보(입력)'!V$8,VLOOKUP(C32,표1[],13,0)),option!$F$3*-1),0)) -> 0 | AA32: =IF(Z32=0,0,IF(LEFT(VLOOKUP(C32,표1[],16,0),FIND(")",VLOOKUP(C32,표1[],16,0))-1)="2",0,ROUNDDOWN(IF(LEFT(VLOOKUP(C32,표1[],16,0),FIND(")",VLOOKUP(C32,표1[],16,0))-1)="1",Z32*('사원정보(입력)'!V$9/100),Z32*('사원정보(입력)'!V$9/100)*(1-((LEFT(VLOOKUP(C32,표1[],16,0),FIND(")",VLOOKUP(C32,표1[],16,0))-1)-2)/10))),option!$G$3*-1))) -> 0 | AB32: =IF(LEN(C32)=0,0,IF(LEFT(VLOOKUP(C32,표1[],17,0),1)="2",0,ROUNDDOWN(SUMIF(option!$C$2:$Q$2,0,G32:U32)*('사원정보(입력)'!V$10/100),option!$H$3*-1))) -> 
B33: 28 | C33: ='사원정보(입력)'!B34 -> 0 | D33: =IFERROR(VLOOKUP(C33,표1[],2,0),"") ->  | E33: =IFERROR(VLOOKUP(C33,표1[],3,0),"") ->  | F33: =IFERROR(VLOOKUP(C33,표1[],4,0),"") ->  | G33: =IFERROR(VLOOKUP(C33,표1[],11,0),0) -> 0 | V33: 0 | W33: =IF(LEN(C33)=0,0,IFERROR(IF(LEN(VLOOKUP(C33,표1[],18,0))=0,0,ROUNDDOWN(CHOOSE(LEFT(VLOOKUP(C33,표1[],18,0),1),INTAX(SUMIF(option!$C$2:$Q$2,0,G33:U33),VLOOKUP(C33,표1[],9,0),VLOOKUP(C33,표1[],10,0)),INTAX(SUMIF(option!$C$2:$Q$2,0,G33:U33),VLOOKUP(C33,표1[],9,0),VLOOKUP(C33,표1[],10,0))*1.2,INTAX(SUMIF(option!$C$2:$Q$2,0,G33:U33),VLOOKUP(C33,표1[],9,0),VLOOKUP(C33,표1[],10,0))*0.8,V33*(('사원정보(입력)'!V$13/1.1)/100),V33*(('사원정보(입력)'!V$14/1.1)/100)),option!$C$3*-1)),0)) -> 0 | X33: =IF(W33=0,0,ROUNDDOWN(W33*0.1,option!$D$3*-1)) -> 0 | Y33: =IF(LEN(C33)=0,0,IFERROR(ROUNDDOWN(ctax(LEFT(VLOOKUP(C33,표1[],14,0),FIND(")",VLOOKUP(C33,표1[],14,0))-1),SUMIF(option!$C$2:$Q$2,0,G33:U33),'사원정보(입력)'!V$7,VLOOKUP(C33,표1[],12,0)),option!$E$3*-1),0)) -> 0 | Z33: =IF(LEN(C33)=0,0,IFERROR(ROUNDDOWN(HTAX(LEFT(VLOOKUP(C33,표1[],15,0),FIND(")",VLOOKUP(C33,표1[],15,0))-1),SUMIF(option!$C$2:$Q$2,0,G33:U33),'사원정보(입력)'!V$8,VLOOKUP(C33,표1[],13,0)),option!$F$3*-1),0)) -> 0 | AA33: =IF(Z33=0,0,IF(LEFT(VLOOKUP(C33,표1[],16,0),FIND(")",VLOOKUP(C33,표1[],16,0))-1)="2",0,ROUNDDOWN(IF(LEFT(VLOOKUP(C33,표1[],16,0),FIND(")",VLOOKUP(C33,표1[],16,0))-1)="1",Z33*('사원정보(입력)'!V$9/100),Z33*('사원정보(입력)'!V$9/100)*(1-((LEFT(VLOOKUP(C33,표1[],16,0),FIND(")",VLOOKUP(C33,표1[],16,0))-1)-2)/10))),option!$G$3*-1))) -> 0 | AB33: =IF(LEN(C33)=0,0,IF(LEFT(VLOOKUP(C33,표1[],17,0),1)="2",0,ROUNDDOWN(SUMIF(option!$C$2:$Q$2,0,G33:U33)*('사원정보(입력)'!V$10/100),option!$H$3*-1))) -> 
B34: 29 | C34: ='사원정보(입력)'!B35 -> 0 | D34: =IFERROR(VLOOKUP(C34,표1[],2,0),"") ->  | E34: =IFERROR(VLOOKUP(C34,표1[],3,0),"") ->  | F34: =IFERROR(VLOOKUP(C34,표1[],4,0),"") ->  | G34: =IFERROR(VLOOKUP(C34,표1[],11,0),0) -> 0 | V34: 0 | W34: =IF(LEN(C34)=0,0,IFERROR(IF(LEN(VLOOKUP(C34,표1[],18,0))=0,0,ROUNDDOWN(CHOOSE(LEFT(VLOOKUP(C34,표1[],18,0),1),INTAX(SUMIF(option!$C$2:$Q$2,0,G34:U34),VLOOKUP(C34,표1[],9,0),VLOOKUP(C34,표1[],10,0)),INTAX(SUMIF(option!$C$2:$Q$2,0,G34:U34),VLOOKUP(C34,표1[],9,0),VLOOKUP(C34,표1[],10,0))*1.2,INTAX(SUMIF(option!$C$2:$Q$2,0,G34:U34),VLOOKUP(C34,표1[],9,0),VLOOKUP(C34,표1[],10,0))*0.8,V34*(('사원정보(입력)'!V$13/1.1)/100),V34*(('사원정보(입력)'!V$14/1.1)/100)),option!$C$3*-1)),0)) -> 0 | X34: =IF(W34=0,0,ROUNDDOWN(W34*0.1,option!$D$3*-1)) -> 0 | Y34: =IF(LEN(C34)=0,0,IFERROR(ROUNDDOWN(ctax(LEFT(VLOOKUP(C34,표1[],14,0),FIND(")",VLOOKUP(C34,표1[],14,0))-1),SUMIF(option!$C$2:$Q$2,0,G34:U34),'사원정보(입력)'!V$7,VLOOKUP(C34,표1[],12,0)),option!$E$3*-1),0)) -> 0 | Z34: =IF(LEN(C34)=0,0,IFERROR(ROUNDDOWN(HTAX(LEFT(VLOOKUP(C34,표1[],15,0),FIND(")",VLOOKUP(C34,표1[],15,0))-1),SUMIF(option!$C$2:$Q$2,0,G34:U34),'사원정보(입력)'!V$8,VLOOKUP(C34,표1[],13,0)),option!$F$3*-1),0)) -> 0 | AA34: =IF(Z34=0,0,IF(LEFT(VLOOKUP(C34,표1[],16,0),FIND(")",VLOOKUP(C34,표1[],16,0))-1)="2",0,ROUNDDOWN(IF(LEFT(VLOOKUP(C34,표1[],16,0),FIND(")",VLOOKUP(C34,표1[],16,0))-1)="1",Z34*('사원정보(입력)'!V$9/100),Z34*('사원정보(입력)'!V$9/100)*(1-((LEFT(VLOOKUP(C34,표1[],16,0),FIND(")",VLOOKUP(C34,표1[],16,0))-1)-2)/10))),option!$G$3*-1))) -> 0 | AB34: =IF(LEN(C34)=0,0,IF(LEFT(VLOOKUP(C34,표1[],17,0),1)="2",0,ROUNDDOWN(SUMIF(option!$C$2:$Q$2,0,G34:U34)*('사원정보(입력)'!V$10/100),option!$H$3*-1))) -> 
B35: 30 | C35: ='사원정보(입력)'!B36 -> 0 | D35: =IFERROR(VLOOKUP(C35,표1[],2,0),"") ->  | E35: =IFERROR(VLOOKUP(C35,표1[],3,0),"") ->  | F35: =IFERROR(VLOOKUP(C35,표1[],4,0),"") ->  | G35: =IFERROR(VLOOKUP(C35,표1[],11,0),0) -> 0 | V35: 0 | W35: =IF(LEN(C35)=0,0,IFERROR(IF(LEN(VLOOKUP(C35,표1[],18,0))=0,0,ROUNDDOWN(CHOOSE(LEFT(VLOOKUP(C35,표1[],18,0),1),INTAX(SUMIF(option!$C$2:$Q$2,0,G35:U35),VLOOKUP(C35,표1[],9,0),VLOOKUP(C35,표1[],10,0)),INTAX(SUMIF(option!$C$2:$Q$2,0,G35:U35),VLOOKUP(C35,표1[],9,0),VLOOKUP(C35,표1[],10,0))*1.2,INTAX(SUMIF(option!$C$2:$Q$2,0,G35:U35),VLOOKUP(C35,표1[],9,0),VLOOKUP(C35,표1[],10,0))*0.8,V35*(('사원정보(입력)'!V$13/1.1)/100),V35*(('사원정보(입력)'!V$14/1.1)/100)),option!$C$3*-1)),0)) -> 0 | X35: =IF(W35=0,0,ROUNDDOWN(W35*0.1,option!$D$3*-1)) -> 0 | Y35: =IF(LEN(C35)=0,0,IFERROR(ROUNDDOWN(ctax(LEFT(VLOOKUP(C35,표1[],14,0),FIND(")",VLOOKUP(C35,표1[],14,0))-1),SUMIF(option!$C$2:$Q$2,0,G35:U35),'사원정보(입력)'!V$7,VLOOKUP(C35,표1[],12,0)),option!$E$3*-1),0)) -> 0 | Z35: =IF(LEN(C35)=0,0,IFERROR(ROUNDDOWN(HTAX(LEFT(VLOOKUP(C35,표1[],15,0),FIND(")",VLOOKUP(C35,표1[],15,0))-1),SUMIF(option!$C$2:$Q$2,0,G35:U35),'사원정보(입력)'!V$8,VLOOKUP(C35,표1[],13,0)),option!$F$3*-1),0)) -> 0 | AA35: =IF(Z35=0,0,IF(LEFT(VLOOKUP(C35,표1[],16,0),FIND(")",VLOOKUP(C35,표1[],16,0))-1)="2",0,ROUNDDOWN(IF(LEFT(VLOOKUP(C35,표1[],16,0),FIND(")",VLOOKUP(C35,표1[],16,0))-1)="1",Z35*('사원정보(입력)'!V$9/100),Z35*('사원정보(입력)'!V$9/100)*(1-((LEFT(VLOOKUP(C35,표1[],16,0),FIND(")",VLOOKUP(C35,표1[],16,0))-1)-2)/10))),option!$G$3*-1))) -> 0 | AB35: =IF(LEN(C35)=0,0,IF(LEFT(VLOOKUP(C35,표1[],17,0),1)="2",0,ROUNDDOWN(SUMIF(option!$C$2:$Q$2,0,G35:U35)*('사원정보(입력)'!V$10/100),option!$H$3*-1))) -> 
B36: 합 계 | G36: =SUM(G6:G23) -> 15500000 | H36: 500000 | I36: 0 | J36: 3000000 | K36: 9000000 | L36: 1050000 | M36: 300000 | N36: 600000 | O36: 700000 | P36: 600000 | Q36: 400000 | R36: 0 | S36: 0 | T36: 0 | U36: 0 | V36: 31650000 | W36: 534080 | X36: 53408 | Y36: 769500 | Z36: 586530 | AA36: 67566 | AC36: 71348.45455 | AD36: 34485 | AE36: 200000 | AF36: 150000 | AG36: 0 | AH36: 650000 | AI36: 0 | AJ36: 0 | AK36: 0

Sheet 급여명세서
A1: 급여명세서(근로소득/사업소득) (자동 정산서식)
B3: ='급여대장(입력)'!B3 -> 2021년 8월 | E3: 급여명세서
B5: 사원명 | C5: 오 | E5: 계약구분 | F5: 지입
B6: 귀속연월 | C6: ='급여대장(입력)'!B3 -> 2021년 8월 | E6: 직책 | F6: SM
B8: 지 급 내 역 | C8: 기본급 | D8: 0 | E8: 연장근로수당
C9: 식대 | E9: 근속수당
C10: 개발수수료 | E10: 직책수당 | G10: 100000
C11: 집하수수료 | D11: 1000000
C12: 배송수수료 | D12: 3000000
C13: 분류비 | D13: 350000
C14: 유류지원금
C15: 교통비
B16: 공 제 내 역 | C16: 소득세 | D16: 0 | E16: 운송장 | G16: 100000
C17: 지방소득세 | D17: 0 | E17: 포장 테이프 | G17: 50000
C18: 국민연금 | D18: 0 | E18: 전산장비
C19: 건강보험 | D19: 0 | E19: 화물사고 분담 | G19: 300000
C20: 노인장기요양 | D20: 0
C21: 고용보험(근로)
C22: 고용보험(특고) | D22: 22597.90909
C23: 산재보험(특고) | D23: 11495 | E23: 합 계 | G23: =D16+D17+D18+D19+D20+D21+D22+D23+G16+G17+G18+G19+G20+G21+G22 -> 484092.9091
B25: 실 지 급 액 | E25: =G15-G23 -> -484092.9091
B26: 귀하의 노고에 깊이 감사드립니다.
B27: 롯데택배 0 0 0 대리점

Sheet 4대보험료 계산
A1: 4대 사회보험료 내역서 (자동 정산서식/입력 금지)
B3: ='급여대장(입력)'!B3 -> 2021년 8월 | Z3: (단위:원, VAT포함)
B4: 성명 | C4: 월소득 (기준) | D4: 국민연금 | G4: 건강보험 | L4: 고용보험 | Q4: 산재보험 | U4: 4대보험료 합계
D5: 회사 | E5: 근로자 | F5: 합계 | G5: 회사 | I5: 근로자 | K5: 합계 | L5: 근로자(고용보험+직무개발) | N5: 특고직 | P5: 합계 | Q5: 근로자 | R5: 특고직 | T5: 합계 | U5: 근로자 | X5: 특고직
G6: 건강보험료 | H6: 장기요양보험 | I6: 건강보험료 | J6: 장기요양보험 | L6: 회사 | M6: 근로자 | N6: 회사 | O6: 특고직 | Q6: 회사 | R6: 회사 | S6: 특고직 | U6: 회사 | V6: 근로자 | W6: 합계 | X6: 회사 | Y6: 특고직 | Z6: 합계
B7: =표1[[#This Row],[사원명]] -> 홍길동 | C7: ='급여대장(입력)'!V6-100000 -> 2900000 | D7: =E7 -> 130500 | E7: ='급여대장(입력)'!Y6 -> 130500 | F7: =SUM(D7:E7) -> 261000 | G7: ='급여대장(입력)'!Z6 -> 99470 | H7: ='급여대장(입력)'!AA6 -> 11458 | I7: =G7 -> 99470 | J7: =H7 -> 11458 | K7: =SUM(G7:J7) -> 221856 | L7: =((M7/0.8%)*1.05%) -> 30450 | M7: ='급여대장(입력)'!AB6 -> 23200 | N7: =O7 ->  | O7: ='급여대장(입력)'!AC6 ->  | P7: =SUM(L7:O7) -> 53650 | Q7: =IF('급여대장(입력)'!E6="직영",((C7*19.63)/1000),"") ->  | R7: =S7 ->  | S7: =IF('급여대장(입력)'!E6="지입",11495,"") ->  | T7: =SUM(Q7:S7) -> 0 | U7: =D7+G7+H7+L7 -> 271878 | V7: =E7+I7+J7+M7 -> 264628 | W7: =U7+V7 -> 536506 | Z7: =X7+Y7 -> 0
B8: =표1[[#This Row],[사원명]] -> 아무개 | C8: ='급여대장(입력)'!V7-100000 -> 2800000 | D8: 126000 | E8: ='급여대장(입력)'!Y7 -> 126000 | F8: =SUM(D8:E8) -> 252000 | G8: ='급여대장(입력)'!Z7 -> 96040 | H8: ='급여대장(입력)'!AA7 -> 11063 | I8: =G8 -> 96040 | J8: =H8 -> 11063 | K8: =SUM(G8:J8) -> 214206 | L8: =((M8/0.8%)*1.05%) -> 29400 | M8: ='급여대장(입력)'!AB7 -> 22400 | O8: ='급여대장(입력)'!AC7 ->  | P8: =SUM(L8:O8) -> 51800 | Q8: =IF('급여대장(입력)'!E7="직영",((C8*19.63)/1000),"") ->  | S8: =IF('급여대장(입력)'!E7="지입",11495,"") ->  | T8: 0 | U8: =D8+G8+H8+L8 -> 262503 | V8: =E8+I8+J8+M8 -> 255503 | W8: =U8+V8 -> 518006 | Z8: 0
B9: =표1[[#This Row],[사원명]] -> 김 | C9: ='급여대장(입력)'!V8-100000 -> 3900000 | D9: 175500 | E9: ='급여대장(입력)'!Y8 -> 175500 | F9: 351000 | G9: ='급여대장(입력)'!Z8 -> 133770 | H9: ='급여대장(입력)'!AA8 -> 15410 | I9: =G9 -> 133770 | J9: =H9 -> 15410 | K9: 298360 | L9: =((M9/0.8%)*1.05%) -> 40950 | M9: ='급여대장(입력)'!AB8 -> 31200 | O9: ='급여대장(입력)'!AC8 ->  | P9: =SUM(L9:O9) -> 72150 | Q9: =IF('급여대장(입력)'!E8="직영",((C9*19.63)/1000),"") -> 76557 | S9: =IF('급여대장(입력)'!E8="지입",11495,"") ->  | T9: =SUM(Q9:S9) -> 76557 | U9: =D9+G9+H9+L9 -> 365630 | V9: =E9+I9+J9+M9 -> 355880 | W9: =U9+V9 -> 721510 | Z9: 0
B10: =표1[[#This Row],[사원명]] -> 이 | C10: ='급여대장(입력)'!V9-100000 -> 3800000 | D10: =E10 -> 171000 | E10: ='급여대장(입력)'!Y9 -> 171000 | F10: 342000 | G10: ='급여대장(입력)'!Z9 -> 130340 | H10: ='급여대장(입력)'!AA9 -> 15015 | I10: 130340 | J10: 15015 | K10: 290710 | L10: 39900 | M10: ='급여대장(입력)'!AB9 -> 30400 | O10: ='급여대장(입력)'!AC9 ->  | P10: 70300 | Q10: =IF('급여대장(입력)'!E9="직영",((C10*19.63)/1000),"") -> 74594 | S10: =IF('급여대장(입력)'!E9="지입",11495,"") ->  | T10: 74594 | U10: 356255 | V10: 346755 | W10: 703010 | Z10: 0
B11: =표1[[#This Row],[사원명]] -> 박 | C11: ='급여대장(입력)'!V10 -> 3800000 | D11: =E11 -> 166500 | E11: ='급여대장(입력)'!Y10 -> 166500 | F11: 333000 | G11: ='급여대장(입력)'!Z10 -> 126910 | H11: ='급여대장(입력)'!AA10 -> 14620 | I11: =G11 -> 126910 | J11: =H11 -> 14620 | K11: 283060 | L11: 38850 | M11: ='급여대장(입력)'!AB10 -> 29600 | O11: ='급여대장(입력)'!AC10 ->  | P11: =SUM(M11:O11) -> 29600 | Q11: =IF('급여대장(입력)'!E10="직영",((C11*19.63)/1000),"") -> 74594 | R11: =S11 ->  | S11: =IF('급여대장(입력)'!E10="지입",11495,"") ->  | T11: 74594 | U11: 346880 | V11: 337630 | W11: =U11+V11 -> 684510 | Z11: 0
B12: =표1[[#This Row],[사원명]] -> 오 | C12: ='급여대장(입력)'!V11 -> 4450000 | D12: 0 | E12: ='급여대장(입력)'!Y11 -> 0 | F12: =SUM(D12:E12) -> 0 | G12: ='급여대장(입력)'!Z11 -> 0 | H12: ='급여대장(입력)'!AA11 -> 0 | I12: 0 | J12: 0 | K12: =SUM(G12:J12) -> 0 | L12: 0 | M12: ='급여대장(입력)'!AB11 -> 0 | N12: 22597.90909 | O12: ='급여대장(입력)'!AC11 -> 22597.90909 | P12: =SUM(M12:O12) -> 45195.81818 | Q12: =IF('급여대장(입력)'!E11="직영",((C12*19.63)/1000),"") ->  | R12: =S12 -> 11495 | S12: =IF('급여대장(입력)'!E11="지입",11495,"") -> 11495 | T12: 22990 | U12: 0 | V12: 0 | W12: 0 | X12: =N12+R12 -> 34092.90909 | Y12: =O12+S12 -> 34092.90909 | Z12: =X12+Y12 -> 68185.81818
B13: =표1[[#This Row],[사원명]] -> 최 | C13: ='급여대장(입력)'!V12-100000 -> 4650000 | D13: 0 | E13: ='급여대장(입력)'!Y12 -> 0 | F13: 0 | G13: ='급여대장(입력)'!Z12 -> 0 | H13: ='급여대장(입력)'!AA12 -> 0 | I13: 0 | J13: 0 | K13: 0 | L13: =((M13/0.8%)*1.05%) -> 0 | M13: ='급여대장(입력)'!AB12 -> 0 | N13: 24121.36364 | O13: ='급여대장(입력)'!AC12 -> 24121.36364 | P13: =SUM(L13:O13) -> 48242.72727 | Q13: =IF('급여대장(입력)'!E12="직영",((C13*19.63)/1000),"") ->  | R13: 11495 | S13: =IF('급여대장(입력)'!E12="지입",11495,"") -> 11495 | T13: 22990 | U13: 0 | V13: 0 | W13: 0 | X13: =N13+R13 -> 35616.36364 | Y13: =O13+S13 -> 35616.36364 | Z13: =X13+Y13 -> 71232.72727
B14: =표1[[#This Row],[사원명]] -> 권 | C14: ='급여대장(입력)'!V13 -> 4850000 | D14: 0 | E14: ='급여대장(입력)'!Y13 -> 0 | F14: 0 | G14: ='급여대장(입력)'!Z13 -> 0 | H14: ='급여대장(입력)'!AA13 -> 0 | I14: 0 | J14: 0 | K14: 0 | L14: 0 | M14: ='급여대장(입력)'!AB13 -> 0 | N14: 24629.18182 | O14: ='급여대장(입력)'!AC13 -> 24629.18182 | P14: =SUM(M14:O14) -> 49258.36364 | Q14: =IF('급여대장(입력)'!E13="직영",((C14*19.63)/1000),"") ->  | R14: 11495 | S14: =IF('급여대장(입력)'!E13="지입",11495,"") -> 11495 | T14: 22990 | U14: 0 | V14: =E14+I14+J14+M14 -> 0 | W14: 0 | X14: 36124.18182 | Y14: 36124.18182 | Z14: =X14+Y14 -> 72248.36364
C15: ='급여대장(입력)'!V14 -> 0 | D15: 0 | E15: ='급여대장(입력)'!Y14 -> 0 | F15: 0 | G15: ='급여대장(입력)'!Z14 -> 0 | H15: ='급여대장(입력)'!AA14 -> 0 | I15: 0 | J15: 0 | K15: 0 | O15: ='급여대장(입력)'!AC14 ->  | P15: 0 | Q15: =IF('급여대장(입력)'!E14="직영",((C15*19.63)/1000),"") ->  | S15: =IF('급여대장(입력)'!E14="지입",11495,"") ->  | T15: 0 | U15: 0 | V15: 0 | W15: 0 | Z15: 0
C16: ='급여대장(입력)'!V15 -> 0 | D16: 0 | E16: ='급여대장(입력)'!Y15 -> 0 | F16: 0 | G16: ='급여대장(입력)'!Z15 -> 0 | H16: ='급여대장(입력)'!AA15 -> 0 | I16: 0 | J16: 0 | K16: 0 | O16: ='급여대장(입력)'!AC15 ->  | P16: 0 | Q16: =IF('급여대장(입력)'!E15="직영",((C16*19.63)/1000),"") ->  | S16: =IF('급여대장(입력)'!E15="지입",11495,"") ->  | T16: 0 | U16: 0 | V16: 0 | W16: 0 | Z16: 0
C17: ='급여대장(입력)'!V16 -> 0 | D17: 0 | E17: ='급여대장(입력)'!Y16 -> 0 | F17: 0 | G17: ='급여대장(입력)'!Z16 -> 0 | H17: ='급여대장(입력)'!AA16 -> 0 | I17: 0 | J17: 0 | K17: 0 | O17: ='급여대장(입력)'!AC16 ->  | P17: 0 | Q17: =IF('급여대장(입력)'!E16="직영",((C17*19.63)/1000),"") ->  | S17: =IF('급여대장(입력)'!E16="지입",11495,"") ->  | T17: 0 | U17: 0 | V17: 0 | W17: 0 | Z17: 0
C18: ='급여대장(입력)'!V17 -> 0 | D18: 0 | E18: ='급여대장(입력)'!Y17 -> 0 | F18: 0 | G18: ='급여대장(입력)'!Z17 -> 0 | H18: ='급여대장(입력)'!AA17 -> 0 | I18: 0 | J18: 0 | K18: 0 | O18: ='급여대장(입력)'!AC17 ->  | P18: 0 | Q18: =IF('급여대장(입력)'!E17="직영",((C18*19.63)/1000),"") ->  | S18: =IF('급여대장(입력)'!E17="지입",11495,"") ->  | T18: 0 | U18: 0 | V18: 0 | W18: 0 | Z18: 0
C19: ='급여대장(입력)'!V18 -> 0 | D19: 0 | E19: ='급여대장(입력)'!Y18 -> 0 | F19: 0 | G19: ='급여대장(입력)'!Z18 -> 0 | H19: ='급여대장(입력)'!AA18 -> 0 | I19: 0 | J19: 0 | K19: 0 | O19: ='급여대장(입력)'!AC18 ->  | P19: 0 | Q19: =IF('급여대장(입력)'!E18="직영",((C19*19.63)/1000),"") ->  | S19: =IF('급여대장(입력)'!E18="지입",11495,"") ->  | T19: 0 | U19: 0 | V19: 0 | W19: 0 | Z19: 0
C20: ='급여대장(입력)'!V19 -> 0 | D20: 0 | E20: ='급여대장(입력)'!Y19 -> 0 | F20: 0 | G20: ='급여대장(입력)'!Z19 -> 0 | H20: ='급여대장(입력)'!AA19 -> 0 | I20: 0 | J20: 0 | K20: 0 | O20: ='급여대장(입력)'!AC19 ->  | P20: 0 | Q20: =IF('급여대장(입력)'!E19="직영",((C20*19.63)/1000),"") ->  | S20: =IF('급여대장(입력)'!E19="지입",11495,"") ->  | T20: 0 | U20: 0 | V20: 0 | W20: 0 | Z20: 0
C21: ='급여대장(입력)'!V20 -> 0 | D21: 0 | E21: ='급여대장(입력)'!Y20 -> 0 | F21: 0 | G21: ='급여대장(입력)'!Z20 -> 0 | H21: ='급여대장(입력)'!AA20 -> 0 | I21: 0 | J21: 0 | K21: 0 | O21: ='급여대장(입력)'!AC20 ->  | P21: 0 | Q21: =IF('급여대장(입력)'!E20="직영",((C21*19.63)/1000),"") ->  | S21: =IF('급여대장(입력)'!E20="지입",11495,"") ->  | T21: 0 | U21: 0 | V21: 0 | W21: 0 | Z21: 0
C22: ='급여대장(입력)'!V21 -> 0 | D22: 0 | E22: ='급여대장(입력)'!Y21 -> 0 | F22: 0 | G22: ='급여대장(입력)'!Z21 -> 0 | H22: ='급여대장(입력)'!AA21 -> 0 | I22: 0 | J22: 0 | K22: 0 | O22: ='급여대장(입력)'!AC21 ->  | P22: 0 | Q22: =IF('급여대장(입력)'!E21="직영",((C22*19.63)/1000),"") ->  | S22: =IF('급여대장(입력)'!E21="지입",11495,"") ->  | T22: 0 | U22: 0 | V22: 0 | W22: 0 | Z22: 0
C23: ='급여대장(입력)'!V22 -> 0 | D23: 0 | E23: ='급여대장(입력)'!Y22 -> 0 | F23: 0 | G23: ='급여대장(입력)'!Z22 -> 0 | H23: ='급여대장(입력)'!AA22 -> 0 | I23: 0 | J23: 0 | K23: 0 | O23: ='급여대장(입력)'!AC22 ->  | P23: 0 | Q23: =IF('급여대장(입력)'!E22="직영",((C23*19.63)/1000),"") ->  | S23: =IF('급여대장(입력)'!E22="지입",11495,"") ->  | T23: 0 | U23: 0 | V23: 0 | W23: 0 | Z23: 0
C24: ='급여대장(입력)'!V23 -> 0 | D24: 0 | E24: ='급여대장(입력)'!Y23 -> 0 | F24: 0 | G24: ='급여대장(입력)'!Z23 -> 0 | H24: ='급여대장(입력)'!AA23 -> 0 | I24: 0 | J24: 0 | K24: 0 | O24: ='급여대장(입력)'!AC23 ->  | P24: 0 | Q24: =IF('급여대장(입력)'!E23="직영",((C24*19.63)/1000),"") ->  | S24: =IF('급여대장(입력)'!E23="지입",11495,"") ->  | T24: 0 | U24: 0 | V24: 0 | W24: 0 | Z24: 0
C25: ='급여대장(입력)'!V24 -> 0 | D25: 0 | E25: ='급여대장(입력)'!Y24 -> 0 | F25: 0 | G25: ='급여대장(입력)'!Z24 -> 0 | H25: ='급여대장(입력)'!AA24 -> 0 | I25: 0 | J25: 0 | K25: 0 | O25: ='급여대장(입력)'!AC24 ->  | P25: 0 | Q25: =IF('급여대장(입력)'!E24="직영",((C25*19.63)/1000),"") ->  | S25: =IF('급여대장(입력)'!E24="지입",11495,"") ->  | T25: 0 | U25: 0 | V25: 0 | W25: 0 | Z25: 0
C26: ='급여대장(입력)'!V25 -> 0 | D26: 0 | E26: ='급여대장(입력)'!Y25 -> 0 | F26: =SUM(D26:E26) -> 0 | G26: ='급여대장(입력)'!Z25 -> 0 | H26: ='급여대장(입력)'!AA25 -> 0 | I26: =G26 -> 0 | J26: =H26 -> 0 | K26: =SUM(G26:J26) -> 0 | O26: ='급여대장(입력)'!AC25 ->  | P26: =SUM(L26:O26) -> 0 | Q26: =IF('급여대장(입력)'!E25="직영",((C26*19.63)/1000),"") ->  | R26: =S26 ->  | S26: =IF('급여대장(입력)'!E25="지입",11495,"") ->  | T26: 0 | U26: 0 | V26: 0 | W26: =U26+V26 -> 0 | Z26: =X26+Y26 -> 0
C27: ='급여대장(입력)'!V26 -> 0 | D27: 0 | E27: ='급여대장(입력)'!Y26 -> 0 | F27: 0 | G27: ='급여대장(입력)'!Z26 -> 0 | H27: ='급여대장(입력)'!AA26 -> 0 | I27: 0 | J27: 0 | K27: 0 | O27: ='급여대장(입력)'!AC26 ->  | P27: 0 | Q27: =IF('급여대장(입력)'!E26="직영",((C27*19.63)/1000),"") ->  | S27: =IF('급여대장(입력)'!E26="지입",11495,"") ->  | T27: 0 | U27: 0 | V27: 0 | W27: 0 | Z27: 0
C28: ='급여대장(입력)'!V27 -> 0 | D28: 0 | E28: ='급여대장(입력)'!Y27 -> 0 | F28: 0 | G28: ='급여대장(입력)'!Z27 -> 0 | H28: ='급여대장(입력)'!AA27 -> 0 | I28: 0 | J28: 0 | K28: 0 | O28: ='급여대장(입력)'!AC27 ->  | P28: 0 | Q28: =IF('급여대장(입력)'!E27="직영",((C28*19.63)/1000),"") ->  | S28: =IF('급여대장(입력)'!E27="지입",11495,"") ->  | T28: 0 | U28: 0 | V28: 0 | W28: 0 | Z28: 0
C29: ='급여대장(입력)'!V28 -> 0 | D29: 0 | E29: ='급여대장(입력)'!Y28 -> 0 | F29: 0 | G29: ='급여대장(입력)'!Z28 -> 0 | H29: ='급여대장(입력)'!AA28 -> 0 | I29: 0 | J29: 0 | K29: 0 | O29: ='급여대장(입력)'!AC28 ->  | P29: 0 | Q29: =IF('급여대장(입력)'!E28="직영",((C29*19.63)/1000),"") ->  | S29: =IF('급여대장(입력)'!E28="지입",11495,"") ->  | T29: 0 | U29: 0 | V29: 0 | W29: 0 | Z29: 0
C30: ='급여대장(입력)'!V29 -> 0 | D30: 0 | E30: ='급여대장(입력)'!Y29 -> 0 | F30: 0 | G30: ='급여대장(입력)'!Z29 -> 0 | H30: ='급여대장(입력)'!AA29 -> 0 | I30: 0 | J30: 0 | K30: 0 | O30: ='급여대장(입력)'!AC29 ->  | P30: 0 | Q30: =IF('급여대장(입력)'!E29="직영",((C30*19.63)/1000),"") ->  | S30: =IF('급여대장(입력)'!E29="지입",11495,"") ->  | T30: 0 | U30: 0 | V30: 0 | W30: 0 | Z30: 0
C31: ='급여대장(입력)'!V30 -> 0 | D31: 0 | E31: ='급여대장(입력)'!Y30 -> 0 | F31: 0 | G31: ='급여대장(입력)'!Z30 -> 0 | H31: ='급여대장(입력)'!AA30 -> 0 | I31: 0 | J31: 0 | K31: 0 | O31: ='급여대장(입력)'!AC30 ->  | P31: 0 | Q31: =IF('급여대장(입력)'!E30="직영",((C31*19.63)/1000),"") ->  | S31: =IF('급여대장(입력)'!E30="지입",11495,"") ->  | T31: 0 | U31: 0 | V31: 0 | W31: 0 | Z31: 0
C32: ='급여대장(입력)'!V31 -> 0 | D32: 0 | E32: ='급여대장(입력)'!Y31 -> 0 | F32: 0 | G32: ='급여대장(입력)'!Z31 -> 0 | H32: ='급여대장(입력)'!AA31 -> 0 | I32: 0 | J32: 0 | K32: 0 | O32: ='급여대장(입력)'!AC31 ->  | P32: 0 | Q32: =IF('급여대장(입력)'!E31="직영",((C32*19.63)/1000),"") ->  | S32: =IF('급여대장(입력)'!E31="지입",11495,"") ->  | T32: 0 | U32: 0 | V32: 0 | W32: 0 | Z32: 0
C33: ='급여대장(입력)'!V32 -> 0 | D33: 0 | E33: ='급여대장(입력)'!Y32 -> 0 | F33: 0 | G33: ='급여대장(입력)'!Z32 -> 0 | H33: ='급여대장(입력)'!AA32 -> 0 | I33: 0 | J33: 0 | K33: 0 | O33: ='급여대장(입력)'!AC32 ->  | P33: 0 | Q33: =IF('급여대장(입력)'!E32="직영",((C33*19.63)/1000),"") ->  | S33: =IF('급여대장(입력)'!E32="지입",11495,"") ->  | T33: 0 | U33: 0 | V33: 0 | W33: 0 | Z33: 0
C34: ='급여대장(입력)'!V33 -> 0 | D34: 0 | E34: ='급여대장(입력)'!Y33 -> 0 | F34: 0 | G34: ='급여대장(입력)'!Z33 -> 0 | H34: ='급여대장(입력)'!AA33 -> 0 | I34: 0 | J34: 0 | K34: 0 | O34: ='급여대장(입력)'!AC33 ->  | P34: 0 | Q34: =IF('급여대장(입력)'!E33="직영",((C34*19.63)/1000),"") ->  | S34: =IF('급여대장(입력)'!E33="지입",11495,"") ->  | T34: 0 | U34: 0 | V34: 0 | W34: 0 | Z34: 0
B35: 합계 | D35: =SUM(D7:D34) -> 769500 | E35: =SUM(E7:E34) -> 769500 | F35: =+K35+P35+Q35 -> 1954133.909 | G35: =SUM(G7:G34) -> 586530 | H35: 67566 | I35: 586530 | J35: 67566 | K35: 1308192 | L35: 179550 | M35: =SUM(L7:L34) -> 179550 | N35: =SUM(M7:M34) -> 136800 | O35: 71348.45455 | P35: 420196.9091 | Q35: 225745 | R35: 34485 | S35: 34485 | T35: 294715 | U35: 1603146 | V35: 1560396 | W35: 3163542 | X35: 105833.4545 | Y35: 105833.4545 | Z35: 211666.9091
C37: 회사 | D37: 국민연금 | F37: 기준소득 * 4.5% | L37: 보험료부담 | O37: 4대보험료 합계 | Q37: 4대보험료 비용 분담 비율 | S37: 비고
D38: 건강보험 | F38: 기준소득*건강보험료(3.43%)+건강보험료*장기요양보험(11.52%) | L38: 근로자 | O38: =V35 -> 1560396 | Q38: =O38/$O$41 -> 0.462310939
D39: 산재보험 | F39: 기준소득*보험요율(19.63%)/1,000 | L39: 특고직 | O39: =Y35 -> 105833.4545 | Q39: =O39/$O$41 -> 0.03135611969
D40: 고용보험 | E40: 고용보험 | F40: 기준소득 * 0.8% | L40: 회사 | O40: =U35+X35 -> 1708979.455 | Q40: =O40/$O$41 -> 0.5063329413
E41: 고용안정 | F41: 기준소득 * 0.25% | L41: 합계 | O41: =SUM(O38:P40) -> 3375208.909 | Q41: =SUM(Q38:Q40) -> 1
C43: 근로자 | D43: 국민연금 | F43: 기준소득 * 4.5%
D44: 건강보험 | F44: 기준소득*건강보험료(3.43%)+건강보험료*장기요양보험(11.52%)
D45: 산재보험
D46: 고용보험 | E46: 고용보험 | F46: 기준소득 * 0.8%
E47: 고용안정
C49: 특고직 | D49: 국민연금 | Q49: ⓒ봄날(http://blog.naver.com/naya6415)
D50: 건강보험
D51: 산재보험 | F51: 기준소득(242만원) * 보험요율(0.95%)
D52: 고용보험 | F52: (총소득/1.1%(부가세) * 79.8%) * 보험요율(0.7%)

Sheet 2021_근로소득간이세액표
A1: 근로소득 간이세액표(제189조 제1항 관련)
A2: (단위: 원)
A3: 월급여액(천원) | C3: 공제대상가족의 수
A4: [비과세 및 학자금 제외］ | C4: 1 | D4: 2 | E4: 3 | F4: 4 | G4: 5 | H4: 6 | I4: 7 | J4: 8 | K4: 9 | L4: 10 | M4: 11
A5: 이상 | B5: 미만
A6: 770 | B6: 775 | C6: - | D6: - | E6: - | F6: - | G6: - | H6: - | I6: - | J6: - | K6: - | L6: - | M6: -
A7: 775 | B7: 780 | C7: - | D7: - | E7: - | F7: - | G7: - | H7: - | I7: - | J7: - | K7: - | L7: - | M7: -
A8: 780 | B8: 785 | C8: - | D8: - | E8: - | F8: - | G8: - | H8: - | I8: - | J8: - | K8: - | L8: - | M8: -
A9: 785 | B9: 790 | C9: - | D9: - | E9: - | F9: - | G9: - | H9: - | I9: - | J9: - | K9: - | L9: - | M9: -
A10: 790 | B10: 795 | C10: - | D10: - | E10: - | F10: - | G10: - | H10: - | I10: - | J10: - | K10: - | L10: - | M10: -
A11: 795 | B11: 800 | C11: - | D11: - | E11: - | F11: - | G11: - | H11: - | I11: - | J11: - | K11: - | L11: - | M11: -
A12: 800 | B12: 805 | C12: - | D12: - | E12: - | F12: - | G12: - | H12: - | I12: - | J12: - | K12: - | L12: - | M12: -
A13: 805 | B13: 810 | C13: - | D13: - | E13: - | F13: - | G13: - | H13: - | I13: - | J13: - | K13: - | L13: - | M13: -
A14: 810 | B14: 815 | C14: - | D14: - | E14: - | F14: - | G14: - | H14: - | I14: - | J14: - | K14: - | L14: - | M14: -
A15: 815 | B15: 820 | C15: - | D15: - | E15: - | F15: - | G15: - | H15: - | I15: - | J15: - | K15: - | L15: - | M15: -
A16: 820 | B16: 825 | C16: - | D16: - | E16: - | F16: - | G16: - | H16: - | I16: - | J16: - | K16: - | L16: - | M16: -
A17: 825 | B17: 830 | C17: - | D17: - | E17: - | F17: - | G17: - | H17: - | I17: - | J17: - | K17: - | L17: - | M17: -
A18: 830 | B18: 835 | C18: - | D18: - | E18: - | F18: - | G18: - | H18: - | I18: - | J18: - | K18: - | L18: - | M18: -
A19: 835 | B19: 840 | C19: - | D19: - | E19: - | F19: - | G19: - | H19: - | I19: - | J19: - | K19: - | L19: - | M19: -
A20: 840 | B20: 845 | C20: - | D20: - | E20: - | F20: - | G20: - | H20: - | I20: - | J20: - | K20: - | L20: - | M20: -
A21: 845 | B21: 850 | C21: - | D21: - | E21: - | F21: - | G21: - | H21: - | I21: - | J21: - | K21: - | L21: - | M21: -
A22: 850 | B22: 855 | C22: - | D22: - | E22: - | F22: - | G22: - | H22: - | I22: - | J22: - | K22: - | L22: - | M22: -
A23: 855 | B23: 860 | C23: - | D23: - | E23: - | F23: - | G23: - | H23: - | I23: - | J23: - | K23: - | L23: - | M23: -
A24: 860 | B24: 865 | C24: - | D24: - | E24: - | F24: - | G24: - | H24: - | I24: - | J24: - | K24: - | L24: - | M24: -
A25: 865 | B25: 870 | C25: - | D25: - | E25: - | F25: - | G25: - | H25: - | I25: - | J25: - | K25: - | L25: - | M25: -
A26: 870 | B26: 875 | C26: - | D26: - | E26: - | F26: - | G26: - | H26: - | I26: - | J26: - | K26: - | L26: - | M26: -
A27: 875 | B27: 880 | C27: - | D27: - | E27: - | F27: - | G27: - | H27: - | I27: - | J27: - | K27: - | L27: - | M27: -
A28: 880 | B28: 885 | C28: - | D28: - | E28: - | F28: - | G28: - | H28: - | I28: - | J28: - | K28: - | L28: - | M28: -
A29: 885 | B29: 890 | C29: - | D29: - | E29: - | F29: - | G29: - | H29: - | I29: - | J29: - | K29: - | L29: - | M29: -
A30: 890 | B30: 895 | C30: - | D30: - | E30: - | F30: - | G30: - | H30: - | I30: - | J30: - | K30: - | L30: - | M30: -
A31: 895 | B31: 900 | C31: - | D31: - | E31: - | F31: - | G31: - | H31: - | I31: - | J31: - | K31: - | L31: - | M31: -
A32: 900 | B32: 905 | C32: - | D32: - | E32: - | F32: - | G32: - | H32: - | I32: - | J32: - | K32: - | L32: - | M32: -
A33: 905 | B33: 910 | C33: - | D33: - | E33: - | F33: - | G33: - | H33: - | I33: - | J33: - | K33: - | L33: - | M33: -
A34: 910 | B34: 915 | C34: - | D34: - | E34: - | F34: - | G34: - | H34: - | I34: - | J34: - | K34: - | L34: - | M34: -
A35: 915 | B35: 920 | C35: - | D35: - | E35: - | F35: - | G35: - | H35: - | I35: - | J35: - | K35: - | L35: - | M35: -
A36: 920 | B36: 925 | C36: - | D36: - | E36: - | F36: - | G36: - | H36: - | I36: - | J36: - | K36: - | L36: - | M36: -
A37: 925 | B37: 930 | C37: - | D37: - | E37: - | F37: - | G37: - | H37: - | I37: - | J37: - | K37: - | L37: - | M37: -
A38: 930 | B38: 935 | C38: - | D38: - | E38: - | F38: - | G38: - | H38: - | I38: - | J38: - | K38: - | L38: - | M38: -
A39: 935 | B39: 940 | C39: - | D39: - | E39: - | F39: - | G39: - | H39: - | I39: - | J39: - | K39: - | L39: - | M39: -
A40: 940 | B40: 945 | C40: - | D40: - | E40: - | F40: - | G40: - | H40: - | I40: - | J40: - | K40: - | L40: - | M40: -
A41: 945 | B41: 950 | C41: - | D41: - | E41: - | F41: - | G41: - | H41: - | I41: - | J41: - | K41: - | L41: - | M41: -
A42: 950 | B42: 955 | C42: - | D42: - | E42: - | F42: - | G42: - | H42: - | I42: - | J42: - | K42: - | L42: - | M42: -
A43: 955 | B43: 960 | C43: - | D43: - | E43: - | F43: - | G43: - | H43: - | I43: - | J43: - | K43: - | L43: - | M43: -
A44: 960 | B44: 965 | C44: - | D44: - | E44: - | F44: - | G44: - | H44: - | I44: - | J44: - | K44: - | L44: - | M44: -
A45: 965 | B45: 970 | C45: - | D45: - | E45: - | F45: - | G45: - | H45: - | I45: - | J45: - | K45: - | L45: - | M45: -
A46: 970 | B46: 975 | C46: - | D46: - | E46: - | F46: - | G46: - | H46: - | I46: - | J46: - | K46: - | L46: - | M46: -
A47: 975 | B47: 980 | C47: - | D47: - | E47: - | F47: - | G47: - | H47: - | I47: - | J47: - | K47: - | L47: - | M47: -
A48: 980 | B48: 985 | C48: - | D48: - | E48: - | F48: - | G48: - | H48: - | I48: - | J48: - | K48: - | L48: - | M48: -
A49: 985 | B49: 990 | C49: - | D49: - | E49: - | F49: - | G49: - | H49: - | I49: - | J49: - | K49: - | L49: - | M49: -
A50: 990 | B50: 995 | C50: - | D50: - | E50: - | F50: - | G50: - | H50: - | I50: - | J50: - | K50: - | L50: - | M50: -
A51: 995 | B51: 1000 | C51: - | D51: - | E51: - | F51: - | G51: - | H51: - | I51: - | J51: - | K51: - | L51: - | M51: -
A52: 1000 | B52: 1005 | C52: - | D52: - | E52: - | F52: - | G52: - | H52: - | I52: - | J52: - | K52: - | L52: - | M52: -
A53: 1005 | B53: 1010 | C53: - | D53: - | E53: - | F53: - | G53: - | H53: - | I53: - | J53: - | K53: - | L53: - | M53: -
A54: 1010 | B54: 1015 | C54: - | D54: - | E54: - | F54: - | G54: - | H54: - | I54: - | J54: - | K54: - | L54: - | M54: -
A55: 1015 | B55: 1020 | C55: - | D55: - | E55: - | F55: - | G55: - | H55: - | I55: - | J55: - | K55: - | L55: - | M55: -
A56: 1020 | B56: 1025 | C56: - | D56: - | E56: - | F56: - | G56: - | H56: - | I56: - | J56: - | K56: - | L56: - | M56: -
A57: 1025 | B57: 1030 | C57: - | D57: - | E57: - | F57: - | G57: - | H57: - | I57: - | J57: - | K57: - | L57: - | M57: -
A58: 1030 | B58: 1035 | C58: - | D58: - | E58: - | F58: - | G58: - | H58: - | I58: - | J58: - | K58: - | L58: - | M58: -
A59: 1035 | B59: 1040 | C59: - | D59: - | E59: - | F59: - | G59: - | H59: - | I59: - | J59: - | K59: - | L59: - | M59: -
A60: 1040 | B60: 1045 | C60: - | D60: - | E60: - | F60: - | G60: - | H60: - | I60: - | J60: - | K60: - | L60: - | M60: -
A61: 1045 | B61: 1050 | C61: - | D61: - | E61: - | F61: - | G61: - | H61: - | I61: - | J61: - | K61: - | L61: - | M61: -
A62: 1050 | B62: 1055 | C62: - | D62: - | E62: - | F62: - | G62: - | H62: - | I62: - | J62: - | K62: - | L62: - | M62: -
A63: 1055 | B63: 1060 | C63: - | D63: - | E63: - | F63: - | G63: - | H63: - | I63: - | J63: - | K63: - | L63: - | M63: -
A64: 1060 | B64: 1065 | C64: 1040 | D64: - | E64: - | F64: - | G64: - | H64: - | I64: - | J64: - | K64: - | L64: - | M64: -
A65: 1065 | B65: 1070 | C65: 1110 | D65: - | E65: - | F65: - | G65: - | H65: - | I65: - | J65: - | K65: - | L65: - | M65: -
A66: 1070 | B66: 1075 | C66: 1180 | D66: - | E66: - | F66: - | G66: - | H66: - | I66: - | J66: - | K66: - | L66: - | M66: -
A67: 1075 | B67: 1080 | C67: 1250 | D67: - | E67: - | F67: - | G67: - | H67: - | I67: - | J67: - | K67: - | L67: - | M67: -
A68: 1080 | B68: 1085 | C68: 1320 | D68: - | E68: - | F68: - | G68: - | H68: - | I68: - | J68: - | K68: - | L68: - | M68: -
A69: 1085 | B69: 1090 | C69: 1390 | D69: - | E69: - | F69: - | G69: - | H69: - | I69: - | J69: - | K69: - | L69: - | M69: -
A70: 1090 | B70: 1095 | C70: 1460 | D70: - | E70: - | F70: - | G70: - | H70: - | I70: - | J70: - | K70: - | L70: - | M70: -
A71: 1095 | B71: 1100 | C71: 1530 | D71: - | E71: - | F71: - | G71: - | H71: - | I71: - | J71: - | K71: - | L71: - | M71: -
A72: 1100 | B72: 1105 | C72: 1600 | D72: - | E72: - | F72: - | G72: - | H72: - | I72: - | J72: - | K72: - | L72: - | M72: -
A73: 1105 | B73: 1110 | C73: 1670 | D73: - | E73: - | F73: - | G73: - | H73: - | I73: - | J73: - | K73: - | L73: - | M73: -
A74: 1110 | B74: 1115 | C74: 1740 | D74: - | E74: - | F74: - | G74: - | H74: - | I74: - | J74: - | K74: - | L74: - | M74: -
A75: 1115 | B75: 1120 | C75: 1810 | D75: - | E75: - | F75: - | G75: - | H75: - | I75: - | J75: - | K75: - | L75: - | M75: -
A76: 1120 | B76: 1125 | C76: 1880 | D76: - | E76: - | F76: - | G76: - | H76: - | I76: - | J76: - | K76: - | L76: - | M76: -
A77: 1125 | B77: 1130 | C77: 1950 | D77: - | E77: - | F77: - | G77: - | H77: - | I77: - | J77: - | K77: - | L77: - | M77: -
A78: 1130 | B78: 1135 | C78: 2020 | D78: - | E78: - | F78: - | G78: - | H78: - | I78: - | J78: - | K78: - | L78: - | M78: -
A79: 1135 | B79: 1140 | C79: 2090 | D79: - | E79: - | F79: - | G79: - | H79: - | I79: - | J79: - | K79: - | L79: - | M79: -
A80: 1140 | B80: 1145 | C80: 2160 | D80: - | E80: - | F80: - | G80: - | H80: - | I80: - | J80: - | K80: - | L80: - | M80: -
A81: 1145 | B81: 1150 | C81: 2230 | D81: - | E81: - | F81: - | G81: - | H81: - | I81: - | J81: - | K81: - | L81: - | M81: -
A82: 1150 | B82: 1155 | C82: 2300 | D82: - | E82: - | F82: - | G82: - | H82: - | I82: - | J82: - | K82: - | L82: - | M82: -
A83: 1155 | B83: 1160 | C83: 2370 | D83: - | E83: - | F83: - | G83: - | H83: - | I83: - | J83: - | K83: - | L83: - | M83: -
A84: 1160 | B84: 1165 | C84: 2440 | D84: - | E84: - | F84: - | G84: - | H84: - | I84: - | J84: - | K84: - | L84: - | M84: -
A85: 1165 | B85: 1170 | C85: 2500 | D85: - | E85: - | F85: - | G85: - | H85: - | I85: - | J85: - | K85: - | L85: - | M85: -
A86: 1170 | B86: 1175 | C86: 2570 | D86: - | E86: - | F86: - | G86: - | H86: - | I86: - | J86: - | K86: - | L86: - | M86: -
A87: 1175 | B87: 1180 | C87: 2640 | D87: - | E87: - | F87: - | G87: - | H87: - | I87: - | J87: - | K87: - | L87: - | M87: -
A88: 1180 | B88: 1185 | C88: 2710 | D88: - | E88: - | F88: - | G88: - | H88: - | I88: - | J88: - | K88: - | L88: - | M88: -
A89: 1185 | B89: 1190 | C89: 2780 | D89: - | E89: - | F89: - | G89: - | H89: - | I89: - | J89: - | K89: - | L89: - | M89: -
A90: 1190 | B90: 1195 | C90: 2850 | D90: - | E90: - | F90: - | G90: - | H90: - | I90: - | J90: - | K90: - | L90: - | M90: -
A91: 1195 | B91: 1200 | C91: 2920 | D91: - | E91: - | F91: - | G91: - | H91: - | I91: - | J91: - | K91: - | L91: - | M91: -
A92: 1200 | B92: 1205 | C92: 2990 | D92: - | E92: - | F92: - | G92: - | H92: - | I92: - | J92: - | K92: - | L92: - | M92: -
A93: 1205 | B93: 1210 | C93: 3060 | D93: - | E93: - | F93: - | G93: - | H93: - | I93: - | J93: - | K93: - | L93: - | M93: -
A94: 1210 | B94: 1215 | C94: 3130 | D94: - | E94: - | F94: - | G94: - | H94: - | I94: - | J94: - | K94: - | L94: - | M94: -
A95: 1215 | B95: 1220 | C95: 3200 | D95: - | E95: - | F95: - | G95: - | H95: - | I95: - | J95: - | K95: - | L95: - | M95: -
A96: 1220 | B96: 1225 | C96: 3270 | D96: - | E96: - | F96: - | G96: - | H96: - | I96: - | J96: - | K96: - | L96: - | M96: -
A97: 1225 | B97: 1230 | C97: 3340 | D97: - | E97: - | F97: - | G97: - | H97: - | I97: - | J97: - | K97: - | L97: - | M97: -
A98: 1230 | B98: 1235 | C98: 3410 | D98: - | E98: - | F98: - | G98: - | H98: - | I98: - | J98: - | K98: - | L98: - | M98: -
A99: 1235 | B99: 1240 | C99: 3480 | D99: - | E99: - | F99: - | G99: - | H99: - | I99: - | J99: - | K99: - | L99: - | M99: -
A100: 1240 | B100: 1245 | C100: 3550 | D100: - | E100: - | F100: - | G100: - | H100: - | I100: - | J100: - | K100: - | L100: - | M100: -
A101: 1245 | B101: 1250 | C101: 3620 | D101: - | E101: - | F101: - | G101: - | H101: - | I101: - | J101: - | K101: - | L101: - | M101: -
A102: 1250 | B102: 1255 | C102: 3700 | D102: - | E102: - | F102: - | G102: - | H102: - | I102: - | J102: - | K102: - | L102: - | M102: -
A103: 1255 | B103: 1260 | C103: 3810 | D103: - | E103: - | F103: - | G103: - | H103: - | I103: - | J103: - | K103: - | L103: - | M103: -
A104: 1260 | B104: 1265 | C104: 3910 | D104: - | E104: - | F104: - | G104: - | H104: - | I104: - | J104: - | K104: - | L104: - | M104: -
A105: 1265 | B105: 1270 | C105: 4010 | D105: - | E105: - | F105: - | G105: - | H105: - | I105: - | J105: - | K105: - | L105: - | M105: -
A106: 1270 | B106: 1275 | C106: 4120 | D106: - | E106: - | F106: - | G106: - | H106: - | I106: - | J106: - | K106: - | L106: - | M106: -
A107: 1275 | B107: 1280 | C107: 4220 | D107: - | E107: - | F107: - | G107: - | H107: - | I107: - | J107: - | K107: - | L107: - | M107: -
A108: 1280 | B108: 1285 | C108: 4320 | D108: - | E108: - | F108: - | G108: - | H108: - | I108: - | J108: - | K108: - | L108: - | M108: -
A109: 1285 | B109: 1290 | C109: 4430 | D109: - | E109: - | F109: - | G109: - | H109: - | I109: - | J109: - | K109: - | L109: - | M109: -
A110: 1290 | B110: 1295 | C110: 4530 | D110: - | E110: - | F110: - | G110: - | H110: - | I110: - | J110: - | K110: - | L110: - | M110: -
A111: 1295 | B111: 1300 | C111: 4630 | D111: - | E111: - | F111: - | G111: - | H111: - | I111: - | J111: - | K111: - | L111: - | M111: -
A112: 1300 | B112: 1305 | C112: 4740 | D112: - | E112: - | F112: - | G112: - | H112: - | I112: - | J112: - | K112: - | L112: - | M112: -
A113: 1305 | B113: 1310 | C113: 4840 | D113: - | E113: - | F113: - | G113: - | H113: - | I113: - | J113: - | K113: - | L113: - | M113: -
A114: 1310 | B114: 1315 | C114: 4940 | D114: - | E114: - | F114: - | G114: - | H114: - | I114: - | J114: - | K114: - | L114: - | M114: -
A115: 1315 | B115: 1320 | C115: 5050 | D115: - | E115: - | F115: - | G115: - | H115: - | I115: - | J115: - | K115: - | L115: - | M115: -
A116: 1320 | B116: 1325 | C116: 5150 | D116: - | E116: - | F116: - | G116: - | H116: - | I116: - | J116: - | K116: - | L116: - | M116: -
A117: 1325 | B117: 1330 | C117: 5250 | D117: - | E117: - | F117: - | G117: - | H117: - | I117: - | J117: - | K117: - | L117: - | M117: -
A118: 1330 | B118: 1335 | C118: 5360 | D118: - | E118: - | F118: - | G118: - | H118: - | I118: - | J118: - | K118: - | L118: - | M118: -
A119: 1335 | B119: 1340 | C119: 5460 | D119: - | E119: - | F119: - | G119: - | H119: - | I119: - | J119: - | K119: - | L119: - | M119: -
A120: 1340 | B120: 1345 | C120: 5560 | D120: 1060 | E120: - | F120: - | G120: - | H120: - | I120: - | J120: - | K120: - | L120: - | M120: -
A121: 1345 | B121: 1350 | C121: 5670 | D121: 1170 | E121: - | F121: - | G121: - | H121: - | I121: - | J121: - | K121: - | L121: - | M121: -
A122: 1350 | B122: 1355 | C122: 5770 | D122: 1270 | E122: - | F122: - | G122: - | H122: - | I122: - | J122: - | K122: - | L122: - | M122: -
A123: 1355 | B123: 1360 | C123: 5870 | D123: 1370 | E123: - | F123: - | G123: - | H123: - | I123: - | J123: - | K123: - | L123: - | M123: -
A124: 1360 | B124: 1365 | C124: 5980 | D124: 1480 | E124: - | F124: - | G124: - | H124: - | I124: - | J124: - | K124: - | L124: - | M124: -
A125: 1365 | B125: 1370 | C125: 6080 | D125: 1580 | E125: - | F125: - | G125: - | H125: - | I125: - | J125: - | K125: - | L125: - | M125: -
A126: 1370 | B126: 1375 | C126: 6180 | D126: 1680 | E126: - | F126: - | G126: - | H126: - | I126: - | J126: - | K126: - | L126: - | M126: -
A127: 1375 | B127: 1380 | C127: 6290 | D127: 1790 | E127: - | F127: - | G127: - | H127: - | I127: - | J127: - | K127: - | L127: - | M127: -
A128: 1380 | B128: 1385 | C128: 6390 | D128: 1890 | E128: - | F128: - | G128: - | H128: - | I128: - | J128: - | K128: - | L128: - | M128: -
A129: 1385 | B129: 1390 | C129: 6490 | D129: 1990 | E129: - | F129: - | G129: - | H129: - | I129: - | J129: - | K129: - | L129: - | M129: -
A130: 1390 | B130: 1395 | C130: 6600 | D130: 2100 | E130: - | F130: - | G130: - | H130: - | I130: - | J130: - | K130: - | L130: - | M130: -
A131: 1395 | B131: 1400 | C131: 6700 | D131: 2200 | E131: - | F131: - | G131: - | H131: - | I131: - | J131: - | K131: - | L131: - | M131: -
A132: 1400 | B132: 1405 | C132: 6800 | D132: 2300 | E132: - | F132: - | G132: - | H132: - | I132: - | J132: - | K132: - | L132: - | M132: -
A133: 1405 | B133: 1410 | C133: 6910 | D133: 2410 | E133: - | F133: - | G133: - | H133: - | I133: - | J133: - | K133: - | L133: - | M133: -
A134: 1410 | B134: 1415 | C134: 7010 | D134: 2510 | E134: - | F134: - | G134: - | H134: - | I134: - | J134: - | K134: - | L134: - | M134: -
A135: 1415 | B135: 1420 | C135: 7110 | D135: 2610 | E135: - | F135: - | G135: - | H135: - | I135: - | J135: - | K135: - | L135: - | M135: -
A136: 1420 | B136: 1425 | C136: 7210 | D136: 2710 | E136: - | F136: - | G136: - | H136: - | I136: - | J136: - | K136: - | L136: - | M136: -
A137: 1425 | B137: 1430 | C137: 7320 | D137: 2820 | E137: - | F137: - | G137: - | H137: - | I137: - | J137: - | K137: - | L137: - | M137: -
A138: 1430 | B138: 1435 | C138: 7420 | D138: 2920 | E138: - | F138: - | G138: - | H138: - | I138: - | J138: - | K138: - | L138: - | M138: -
A139: 1435 | B139: 1440 | C139: 7520 | D139: 3020 | E139: - | F139: - | G139: - | H139: - | I139: - | J139: - | K139: - | L139: - | M139: -
A140: 1440 | B140: 1445 | C140: 7630 | D140: 3130 | E140: - | F140: - | G140: - | H140: - | I140: - | J140: - | K140: - | L140: - | M140: -
A141: 1445 | B141: 1450 | C141: 7730 | D141: 3230 | E141: - | F141: - | G141: - | H141: - | I141: - | J141: - | K141: - | L141: - | M141: -
A142: 1450 | B142: 1455 | C142: 7830 | D142: 3330 | E142: - | F142: - | G142: - | H142: - | I142: - | J142: - | K142: - | L142: - | M142: -
A143: 1455 | B143: 1460 | C143: 7940 | D143: 3440 | E143: - | F143: - | G143: - | H143: - | I143: - | J143: - | K143: - | L143: - | M143: -
A144: 1460 | B144: 1465 | C144: 8040 | D144: 3540 | E144: - | F144: - | G144: - | H144: - | I144: - | J144: - | K144: - | L144: - | M144: -
A145: 1465 | B145: 1470 | C145: 8140 | D145: 3640 | E145: - | F145: - | G145: - | H145: - | I145: - | J145: - | K145: - | L145: - | M145: -
A146: 1470 | B146: 1475 | C146: 8250 | D146: 3750 | E146: - | F146: - | G146: - | H146: - | I146: - | J146: - | K146: - | L146: - | M146: -
A147: 1475 | B147: 1480 | C147: 8350 | D147: 3850 | E147: - | F147: - | G147: - | H147: - | I147: - | J147: - | K147: - | L147: - | M147: -
A148: 1480 | B148: 1485 | C148: 8450 | D148: 3950 | E148: - | F148: - | G148: - | H148: - | I148: - | J148: - | K148: - | L148: - | M148: -
A149: 1485 | B149: 1490 | C149: 8560 | D149: 4060 | E149: - | F149: - | G149: - | H149: - | I149: - | J149: - | K149: - | L149: - | M149: -
A150: 1490 | B150: 1495 | C150: 8660 | D150: 4160 | E150: - | F150: - | G150: - | H150: - | I150: - | J150: - | K150: - | L150: - | M150: -
A151: 1495 | B151: 1500 | C151: 8760 | D151: 4260 | E151: - | F151: - | G151: - | H151: - | I151: - | J151: - | K151: - | L151: - | M151: -
A152: 1500 | B152: 1510 | C152: 8920 | D152: 4420 | E152: - | F152: - | G152: - | H152: - | I152: - | J152: - | K152: - | L152: - | M152: -
A153: 1510 | B153: 1520 | C153: 9120 | D153: 4620 | E153: - | F153: - | G153: - | H153: - | I153: - | J153: - | K153: - | L153: - | M153: -
A154: 1520 | B154: 1530 | C154: 9330 | D154: 4830 | E154: - | F154: - | G154: - | H154: - | I154: - | J154: - | K154: - | L154: - | M154: -
A155: 1530 | B155: 1540 | C155: 9540 | D155: 5040 | E155: - | F155: - | G155: - | H155: - | I155: - | J155: - | K155: - | L155: - | M155: -
A156: 1540 | B156: 1550 | C156: 9740 | D156: 5240 | E156: - | F156: - | G156: - | H156: - | I156: - | J156: - | K156: - | L156: - | M156: -
A157: 1550 | B157: 1560 | C157: 9950 | D157: 5450 | E157: - | F157: - | G157: - | H157: - | I157: - | J157: - | K157: - | L157: - | M157: -
A158: 1560 | B158: 1570 | C158: 10160 | D158: 5660 | E158: - | F158: - | G158: - | H158: - | I158: - | J158: - | K158: - | L158: - | M158: -
A159: 1570 | B159: 1580 | C159: 10360 | D159: 5860 | E159: - | F159: - | G159: - | H159: - | I159: - | J159: - | K159: - | L159: - | M159: -
A160: 1580 | B160: 1590 | C160: 10570 | D160: 6070 | E160: - | F160: - | G160: - | H160: - | I160: - | J160: - | K160: - | L160: - | M160: -
A161: 1590 | B161: 1600 | C161: 10780 | D161: 6280 | E161: - | F161: - | G161: - | H161: - | I161: - | J161: - | K161: - | L161: - | M161: -
A162: 1600 | B162: 1610 | C162: 10980 | D162: 6480 | E162: - | F162: - | G162: - | H162: - | I162: - | J162: - | K162: - | L162: - | M162: -
A163: 1610 | B163: 1620 | C163: 11190 | D163: 6690 | E163: - | F163: - | G163: - | H163: - | I163: - | J163: - | K163: - | L163: - | M163: -
A164: 1620 | B164: 1630 | C164: 11400 | D164: 6900 | E164: - | F164: - | G164: - | H164: - | I164: - | J164: - | K164: - | L164: - | M164: -
A165: 1630 | B165: 1640 | C165: 11600 | D165: 7100 | E165: - | F165: - | G165: - | H165: - | I165: - | J165: - | K165: - | L165: - | M165: -
A166: 1640 | B166: 1650 | C166: 11810 | D166: 7310 | E166: - | F166: - | G166: - | H166: - | I166: - | J166: - | K166: - | L166: - | M166: -
A167: 1650 | B167: 1660 | C167: 12020 | D167: 7520 | E167: - | F167: - | G167: - | H167: - | I167: - | J167: - | K167: - | L167: - | M167: -
A168: 1660 | B168: 1670 | C168: 12220 | D168: 7720 | E168: - | F168: - | G168: - | H168: - | I168: - | J168: - | K168: - | L168: - | M168: -
A169: 1670 | B169: 1680 | C169: 12430 | D169: 7930 | E169: - | F169: - | G169: - | H169: - | I169: - | J169: - | K169: - | L169: - | M169: -
A170: 1680 | B170: 1690 | C170: 12640 | D170: 8140 | E170: - | F170: - | G170: - | H170: - | I170: - | J170: - | K170: - | L170: - | M170: -
A171: 1690 | B171: 1700 | C171: 12840 | D171: 8340 | E171: - | F171: - | G171: - | H171: - | I171: - | J171: - | K171: - | L171: - | M171: -
A172: 1700 | B172: 1710 | C172: 13050 | D172: 8550 | E172: - | F172: - | G172: - | H172: - | I172: - | J172: - | K172: - | L172: - | M172: -
A173: 1710 | B173: 1720 | C173: 13260 | D173: 8760 | E173: - | F173: - | G173: - | H173: - | I173: - | J173: - | K173: - | L173: - | M173: -
A174: 1720 | B174: 1730 | C174: 13460 | D174: 8960 | E174: 1040 | F174: - | G174: - | H174: - | I174: - | J174: - | K174: - | L174: - | M174: -
A175: 1730 | B175: 1740 | C175: 13670 | D175: 9170 | E175: 1240 | F175: - | G175: - | H175: - | I175: - | J175: - | K175: - | L175: - | M175: -
A176: 1740 | B176: 1750 | C176: 13880 | D176: 9380 | E176: 1440 | F176: - | G176: - | H176: - | I176: - | J176: - | K176: - | L176: - | M176: -
A177: 1750 | B177: 1760 | C177: 14080 | D177: 9580 | E177: 1640 | F177: - | G177: - | H177: - | I177: - | J177: - | K177: - | L177: - | M177: -
A178: 1760 | B178: 1770 | C178: 14290 | D178: 9790 | E178: 1830 | F178: - | G178: - | H178: - | I178: - | J178: - | K178: - | L178: - | M178: -
A179: 1770 | B179: 1780 | C179: 14500 | D179: 10000 | E179: 2030 | F179: - | G179: - | H179: - | I179: - | J179: - | K179: - | L179: - | M179: -
A180: 1780 | B180: 1790 | C180: 14700 | D180: 10200 | E180: 2230 | F180: - | G180: - | H180: - | I180: - | J180: - | K180: - | L180: - | M180: -
A181: 1790 | B181: 1800 | C181: 14910 | D181: 10410 | E181: 2430 | F181: - | G181: - | H181: - | I181: - | J181: - | K181: - | L181: - | M181: -
A182: 1800 | B182: 1810 | C182: 15110 | D182: 10610 | E182: 2630 | F182: - | G182: - | H182: - | I182: - | J182: - | K182: - | L182: - | M182: -
A183: 1810 | B183: 1820 | C183: 15320 | D183: 10820 | E183: 2830 | F183: - | G183: - | H183: - | I183: - | J183: - | K183: - | L183: - | M183: -
A184: 1820 | B184: 1830 | C184: 15530 | D184: 11030 | E184: 3020 | F184: - | G184: - | H184: - | I184: - | J184: - | K184: - | L184: - | M184: -
A185: 1830 | B185: 1840 | C185: 15730 | D185: 11230 | E185: 3220 | F185: - | G185: - | H185: - | I185: - | J185: - | K185: - | L185: - | M185: -
A186: 1840 | B186: 1850 | C186: 15940 | D186: 11440 | E186: 3420 | F186: - | G186: - | H186: - | I186: - | J186: - | K186: - | L186: - | M186: -
A187: 1850 | B187: 1860 | C187: 16150 | D187: 11650 | E187: 3620 | F187: - | G187: - | H187: - | I187: - | J187: - | K187: - | L187: - | M187: -
A188: 1860 | B188: 1870 | C188: 16350 | D188: 11850 | E188: 3820 | F188: - | G188: - | H188: - | I188: - | J188: - | K188: - | L188: - | M188: -
A189: 1870 | B189: 1880 | C189: 16560 | D189: 12060 | E189: 4020 | F189: - | G189: - | H189: - | I189: - | J189: - | K189: - | L189: - | M189: -
A190: 1880 | B190: 1890 | C190: 16770 | D190: 12270 | E190: 4220 | F190: - | G190: - | H190: - | I190: - | J190: - | K190: - | L190: - | M190: -
A191: 1890 | B191: 1900 | C191: 16970 | D191: 12470 | E191: 4410 | F191: 1040 | G191: - | H191: - | I191: - | J191: - | K191: - | L191: - | M191: -
A192: 1900 | B192: 1910 | C192: 17180 | D192: 12680 | E192: 4610 | F192: 1240 | G192: - | H192: - | I192: - | J192: - | K192: - | L192: - | M192: -
A193: 1910 | B193: 1920 | C193: 17390 | D193: 12890 | E193: 4810 | F193: 1440 | G193: - | H193: - | I193: - | J193: - | K193: - | L193: - | M193: -
A194: 1920 | B194: 1930 | C194: 17590 | D194: 13090 | E194: 5010 | F194: 1630 | G194: - | H194: - | I194: - | J194: - | K194: - | L194: - | M194: -
A195: 1930 | B195: 1940 | C195: 17800 | D195: 13300 | E195: 5210 | F195: 1830 | G195: - | H195: - | I195: - | J195: - | K195: - | L195: - | M195: -
A196: 1940 | B196: 1950 | C196: 18010 | D196: 13510 | E196: 5410 | F196: 2030 | G196: - | H196: - | I196: - | J196: - | K196: - | L196: - | M196: -
A197: 1950 | B197: 1960 | C197: 18210 | D197: 13710 | E197: 5600 | F197: 2230 | G197: - | H197: - | I197: - | J197: - | K197: - | L197: - | M197: -
A198: 1960 | B198: 1970 | C198: 18420 | D198: 13920 | E198: 5800 | F198: 2430 | G198: - | H198: - | I198: - | J198: - | K198: - | L198: - | M198: -
A199: 1970 | B199: 1980 | C199: 18630 | D199: 14130 | E199: 6000 | F199: 2630 | G199: - | H199: - | I199: - | J199: - | K199: - | L199: - | M199: -
A200: 1980 | B200: 1990 | C200: 18880 | D200: 14330 | E200: 6200 | F200: 2820 | G200: - | H200: - | I200: - | J200: - | K200: - | L200: - | M200: -
... 464 more rows

Sheet option (hidden)
A1: 과세 | B1: 항목 | C1: 1 | D1: 2 | E1: 3 | F1: 4 | G1: 5 | H1: 6 | I1: 7 | J1: 8 | K1: 9 | L1: 10 | M1: 11 | N1: 12 | O1: 13 | P1: 14 | Q1: 15
A2: 비과세 | B2: 과세 | C2: 0 | D2: 1 | E2: 0 | F2: 0 | G2: 0 | H2: 0 | I2: 0 | J2: 0 | K2: 0 | L2: 0 | M2: 0 | N2: 0 | O2: 0 | P2: 0 | Q2: 0
B3: 절사단위 | C3: 0 | D3: 0 | E3: 0 | F3: 0 | G3: 0 | H3: 0
A4: 직접입력
A5: 소득세 | S5: 5. 지급액 상위 5인
A6: 지방소득세 | C6: 1. 사원별 급여 통계비교 | F6: 0.사원 급여 통계 | T6: 사원명 | U6: 지급합계 | V6: 랭크 | W6: 랭크보정 | X6: 기본급 | Y6: 기본급 외 수당 | Z6: 랭크 | AA6: 랭크보정 | AC6: 지급액 상위 5인찾기 | AD6: 지급액합계 | AE6: 기본급 | AF6: 기본급 외 지급액
A7: 국민연금 | C7: 3 | D7: 15 | F7: 1 | G7: 직급 | S7: 1 | T7: ='급여대장(입력)'!C6 -> 홍길동 | U7: =_xlfn.IFNA(VLOOKUP(T7,'급여대장(입력)'!$C$6:$V$22,20,0),0) -> 3000000 | V7: =RANK(U7,$U$7:$U$306) ->  | W7: =$V7+COUNTIFS($V$7:$V$306,$V7,$S$7:$S$306,"<"&S7) ->  | X7: =IFERROR(VLOOKUP(T7,표1[[사원명]:[열3]],11,0),0) -> 0 | Y7: =U7-X7 -> 3000000 | Z7: =RANK(Y7,$Y$7:$Y$306) ->  | AA7: =$Z7+COUNTIFS($Z$7:$Z$306,$Z7,$S$7:$S$306,"<"&S7) ->  | AC7: =INDEX($S$7:$W$60,MATCH(1,$W$7:$W$60,0),2) ->  | AD7: =VLOOKUP(AC7,$T:$U,2,0) ->  | AE7: =IFERROR(VLOOKUP(AC7,'급여대장(입력)'!$C$6:$G$282,5,0),0) -> 0 | AF7: =AD7-AE7 -> 
A8: 건강보험 | C8: =OFFSET(표1[[#Headers],[사원명]],option!$C$7,0) -> 김 | D8: =OFFSET(표1[[#Headers],[사원명]],option!$D$7,0) -> 0 | F8: =OFFSET(표1[[#Headers],[사원명]],option!$F$7,0) -> 홍길동 | G8: =_xlfn.IFNA(VLOOKUP(F8,표1[[사원명]:[직책]],4,0),"") -> OP | S8: 2 | T8: ='급여대장(입력)'!C7 -> 아무개 | U8: =_xlfn.IFNA(VLOOKUP(T8,'급여대장(입력)'!$C$6:$V$22,20,0),0) -> 2900000 | V8: =RANK(U8,$U$7:$U$306) ->  | W8: =$V8+COUNTIFS($V$7:$V$306,$V8,$S$7:$S$306,"<"&S8) ->  | X8: =IFERROR(VLOOKUP(T8,표1[[사원명]:[열3]],11,0),0) -> 0 | Y8: =U8-X8 -> 2900000 | Z8: =RANK(Y8,$Y$7:$Y$306) ->  | AA8: =$Z8+COUNTIFS($Z$7:$Z$306,$Z8,$S$7:$S$306,"<"&S8) ->  | AC8: =INDEX($S$7:$W$60,MATCH(2,$W$7:$W$60,0),2) ->  | AD8: =VLOOKUP(AC8,$T:$U,2,0) ->  | AE8: =IFERROR(VLOOKUP(AC8,'급여대장(입력)'!$C$6:$G$282,5,0),0) -> 0 | AF8: =AD8-AE8 -> 
A9: 노인장기요양 | S9: 3 | T9: ='급여대장(입력)'!C8 -> 김 | U9: =_xlfn.IFNA(VLOOKUP(T9,'급여대장(입력)'!$C$6:$V$22,20,0),0) -> 4000000 | X9: =IFERROR(VLOOKUP(T9,표1[[사원명]:[열3]],11,0),0) -> 0 | Y9: 4000000 | AC9: =INDEX($S$7:$W$60,MATCH(3,$W$7:$W$60,0),2) ->  | AE9: =IFERROR(VLOOKUP(AC9,'급여대장(입력)'!$C$6:$G$282,5,0),0) -> 0
A10: 고용보험 | S10: 4 | T10: ='급여대장(입력)'!C9 -> 이 | U10: =_xlfn.IFNA(VLOOKUP(T10,'급여대장(입력)'!$C$6:$V$22,20,0),0) -> 3900000 | X10: =IFERROR(VLOOKUP(T10,표1[[사원명]:[열3]],11,0),0) -> 0 | Y10: 3900000 | AC10: =INDEX($S$7:$W$60,MATCH(4,$W$7:$W$60,0),2) ->  | AE10: =IFERROR(VLOOKUP(AC10,'급여대장(입력)'!$C$6:$G$282,5,0),0) -> 0
S11: 5 | T11: ='급여대장(입력)'!C10 -> 박 | U11: =_xlfn.IFNA(VLOOKUP(T11,'급여대장(입력)'!$C$6:$V$22,20,0),0) -> 3800000 | X11: =IFERROR(VLOOKUP(T11,표1[[사원명]:[열3]],11,0),0) -> 0 | Y11: 3800000 | AC11: =INDEX($S$7:$W$60,MATCH(5,$W$7:$W$60,0),2) ->  | AE11: =IFERROR(VLOOKUP(AC11,'급여대장(입력)'!$C$6:$G$282,5,0),0) -> 0
A12: 없음 | S12: 6 | T12: ='급여대장(입력)'!C22 -> 0 | U12: =_xlfn.IFNA(VLOOKUP(T12,'급여대장(입력)'!$C$6:$V$22,20,0),0) -> 0 | X12: =IFERROR(VLOOKUP(T12,표1[[사원명]:[열3]],11,0),0) -> 0 | Y12: 0
A13: 원단위 | S13: 7 | T13: ='급여대장(입력)'!#REF! ->  | U13: =_xlfn.IFNA(VLOOKUP(T13,'급여대장(입력)'!$C$6:$V$22,20,0),0) ->  | X13: =IFERROR(VLOOKUP(T13,표1[[사원명]:[열3]],11,0),0) -> 0 | AC13: 기본급 외 지급액 상위 5인 | AD13: 지급액합계
A14: 십단위 | S14: 8 | T14: ='급여대장(입력)'!#REF! ->  | U14: =_xlfn.IFNA(VLOOKUP(T14,'급여대장(입력)'!$C$6:$V$22,20,0),0) ->  | X14: =IFERROR(VLOOKUP(T14,표1[[사원명]:[열3]],11,0),0) -> 0 | AC14: =INDEX($S$7:$AA$306,MATCH(1,$AA$7:$AA$60,0),2) ->  | AD14: =VLOOKUP(AC14,T:Y,6,0) -> 
A15: 백단위 | S15: 9 | T15: ='급여대장(입력)'!#REF! ->  | U15: =_xlfn.IFNA(VLOOKUP(T15,'급여대장(입력)'!$C$6:$V$22,20,0),0) ->  | X15: =IFERROR(VLOOKUP(T15,표1[[사원명]:[열3]],11,0),0) -> 0 | AC15: =INDEX($S$7:$AA$306,MATCH(2,$AA$7:$AA$60,0),2) ->  | AD15: =VLOOKUP(AC15,T:Y,6,0) -> 
A16: 천단위 | S16: 10 | T16: ='급여대장(입력)'!#REF! ->  | U16: =_xlfn.IFNA(VLOOKUP(T16,'급여대장(입력)'!$C$6:$V$22,20,0),0) ->  | X16: =IFERROR(VLOOKUP(T16,표1[[사원명]:[열3]],11,0),0) -> 0 | AC16: =INDEX($S$7:$AA$306,MATCH(3,$AA$7:$AA$60,0),2) -> 
S17: 11 | T17: ='급여대장(입력)'!#REF! ->  | U17: =_xlfn.IFNA(VLOOKUP(T17,'급여대장(입력)'!$C$6:$V$22,20,0),0) ->  | X17: =IFERROR(VLOOKUP(T17,표1[[사원명]:[열3]],11,0),0) -> 0 | AC17: =INDEX($S$7:$AA$306,MATCH(4,$AA$7:$AA$60,0),2) -> 
A18: 20 | S18: 12 | T18: ='급여대장(입력)'!#REF! ->  | U18: =_xlfn.IFNA(VLOOKUP(T18,'급여대장(입력)'!$C$6:$V$22,20,0),0) ->  | X18: =IFERROR(VLOOKUP(T18,표1[[사원명]:[열3]],11,0),0) -> 0 | AC18: =INDEX($S$7:$AA$306,MATCH(5,$AA$7:$AA$60,0),2) -> 
S19: 13 | T19: ='급여대장(입력)'!#REF! ->  | U19: =_xlfn.IFNA(VLOOKUP(T19,'급여대장(입력)'!$C$6:$V$22,20,0),0) ->  | X19: =IFERROR(VLOOKUP(T19,표1[[사원명]:[열3]],11,0),0) -> 0
S20: 14 | T20: ='급여대장(입력)'!#REF! ->  | U20: =_xlfn.IFNA(VLOOKUP(T20,'급여대장(입력)'!$C$6:$V$22,20,0),0) ->  | X20: =IFERROR(VLOOKUP(T20,표1[[사원명]:[열3]],11,0),0) -> 0
S21: 15 | T21: ='급여대장(입력)'!#REF! ->  | U21: =_xlfn.IFNA(VLOOKUP(T21,'급여대장(입력)'!$C$6:$V$22,20,0),0) ->  | X21: =IFERROR(VLOOKUP(T21,표1[[사원명]:[열3]],11,0),0) -> 0
S22: 16 | T22: ='급여대장(입력)'!#REF! ->  | U22: =_xlfn.IFNA(VLOOKUP(T22,'급여대장(입력)'!$C$6:$V$22,20,0),0) ->  | X22: =IFERROR(VLOOKUP(T22,표1[[사원명]:[열3]],11,0),0) -> 0
S23: 17 | T23: ='급여대장(입력)'!#REF! ->  | U23: =_xlfn.IFNA(VLOOKUP(T23,'급여대장(입력)'!$C$6:$V$22,20,0),0) ->  | X23: =IFERROR(VLOOKUP(T23,표1[[사원명]:[열3]],11,0),0) -> 0
S24: 18 | T24: ='급여대장(입력)'!#REF! ->  | U24: =_xlfn.IFNA(VLOOKUP(T24,'급여대장(입력)'!$C$6:$V$22,20,0),0) ->  | X24: =IFERROR(VLOOKUP(T24,표1[[사원명]:[열3]],11,0),0) -> 0
S25: 19 | T25: ='급여대장(입력)'!#REF! ->  | U25: =_xlfn.IFNA(VLOOKUP(T25,'급여대장(입력)'!$C$6:$V$22,20,0),0) ->  | X25: =IFERROR(VLOOKUP(T25,표1[[사원명]:[열3]],11,0),0) -> 0
S26: 20 | T26: ='급여대장(입력)'!#REF! ->  | U26: =_xlfn.IFNA(VLOOKUP(T26,'급여대장(입력)'!$C$6:$V$22,20,0),0) ->  | X26: =IFERROR(VLOOKUP(T26,표1[[사원명]:[열3]],11,0),0) -> 0
S27: 21 | T27: ='급여대장(입력)'!#REF! ->  | U27: =_xlfn.IFNA(VLOOKUP(T27,'급여대장(입력)'!$C$6:$V$22,20,0),0) ->  | X27: =IFERROR(VLOOKUP(T27,표1[[사원명]:[열3]],11,0),0) -> 0
S28: 22 | T28: ='급여대장(입력)'!#REF! ->  | U28: =_xlfn.IFNA(VLOOKUP(T28,'급여대장(입력)'!$C$6:$V$22,20,0),0) ->  | X28: =IFERROR(VLOOKUP(T28,표1[[사원명]:[열3]],11,0),0) -> 0
S29: 23 | T29: ='급여대장(입력)'!#REF! ->  | U29: =_xlfn.IFNA(VLOOKUP(T29,'급여대장(입력)'!$C$6:$V$22,20,0),0) ->  | X29: =IFERROR(VLOOKUP(T29,표1[[사원명]:[열3]],11,0),0) -> 0
S30: 24 | T30: ='급여대장(입력)'!#REF! ->  | U30: =_xlfn.IFNA(VLOOKUP(T30,'급여대장(입력)'!$C$6:$V$22,20,0),0) ->  | X30: =IFERROR(VLOOKUP(T30,표1[[사원명]:[열3]],11,0),0) -> 0
S31: 25 | T31: ='급여대장(입력)'!#REF! ->  | U31: =_xlfn.IFNA(VLOOKUP(T31,'급여대장(입력)'!$C$6:$V$22,20,0),0) ->  | X31: =IFERROR(VLOOKUP(T31,표1[[사원명]:[열3]],11,0),0) -> 0
S32: 26 | T32: ='급여대장(입력)'!#REF! ->  | U32: =_xlfn.IFNA(VLOOKUP(T32,'급여대장(입력)'!$C$6:$V$22,20,0),0) ->  | X32: =IFERROR(VLOOKUP(T32,표1[[사원명]:[열3]],11,0),0) -> 0
S33: 27 | T33: ='급여대장(입력)'!#REF! ->  | U33: =_xlfn.IFNA(VLOOKUP(T33,'급여대장(입력)'!$C$6:$V$22,20,0),0) ->  | X33: =IFERROR(VLOOKUP(T33,표1[[사원명]:[열3]],11,0),0) -> 0
S34: 28 | T34: ='급여대장(입력)'!#REF! ->  | U34: =_xlfn.IFNA(VLOOKUP(T34,'급여대장(입력)'!$C$6:$V$22,20,0),0) ->  | X34: =IFERROR(VLOOKUP(T34,표1[[사원명]:[열3]],11,0),0) -> 0
S35: 29 | T35: ='급여대장(입력)'!#REF! ->  | U35: =_xlfn.IFNA(VLOOKUP(T35,'급여대장(입력)'!$C$6:$V$22,20,0),0) ->  | X35: =IFERROR(VLOOKUP(T35,표1[[사원명]:[열3]],11,0),0) -> 0
S36: 30 | T36: ='급여대장(입력)'!#REF! ->  | U36: =_xlfn.IFNA(VLOOKUP(T36,'급여대장(입력)'!$C$6:$V$22,20,0),0) ->  | X36: =IFERROR(VLOOKUP(T36,표1[[사원명]:[열3]],11,0),0) -> 0
S37: 31 | T37: ='급여대장(입력)'!#REF! ->  | U37: =_xlfn.IFNA(VLOOKUP(T37,'급여대장(입력)'!$C$6:$V$22,20,0),0) ->  | X37: =IFERROR(VLOOKUP(T37,표1[[사원명]:[열3]],11,0),0) -> 0
B38: 0-2.사원 급여 통계 | S38: 32 | T38: ='급여대장(입력)'!#REF! ->  | U38: =_xlfn.IFNA(VLOOKUP(T38,'급여대장(입력)'!$C$6:$V$22,20,0),0) ->  | X38: =IFERROR(VLOOKUP(T38,표1[[사원명]:[열3]],11,0),0) -> 0
B39: 기본급 | C39: 식대 | D39: 차량유지비 | E39: 연장수당 | F39: 근속수당 | G39: 소득세 | H39: 지방소득세 | I39: 국민연금 | J39: 건강보험 | K39: 노인장기요양 | L39: 고용보험 | M39: 상조회 | N39: 지급합계 | O39: 공제합계 | P39: 차인지급액 | S39: 33 | T39: ='급여대장(입력)'!#REF! ->  | U39: =_xlfn.IFNA(VLOOKUP(T39,'급여대장(입력)'!$C$6:$V$22,20,0),0) ->  | X39: =IFERROR(VLOOKUP(T39,표1[[사원명]:[열3]],11,0),0) -> 0
A40: 직급평균 | B40: =IFERROR(AVERAGEIF('급여대장(입력)'!$F$6:$F$288,option!$G$8,'급여대장(입력)'!G6:G288),0) -> 2500000 | C40: =IFERROR(AVERAGEIF('급여대장(입력)'!$F$6:$F$288,option!$G$8,'급여대장(입력)'!H6:H288),0) -> 100000 | D40: =IFERROR(AVERAGEIF('급여대장(입력)'!$F$6:$F$288,option!$G$8,'급여대장(입력)'!I6:I288),0) -> 0 | E40: =IFERROR(AVERAGEIF('급여대장(입력)'!$F$6:$F$288,option!$G$8,'급여대장(입력)'!J6:J288),0) -> 0 | F40: =IFERROR(AVERAGEIF('급여대장(입력)'!$F$6:$F$288,option!$G$8,'급여대장(입력)'!K6:K288),0) -> 0 | G40: =IFERROR(AVERAGEIF('급여대장(입력)'!$F$6:$F$288,option!$G$8,'급여대장(입력)'!W37:W288),0) -> 0 | H40: =IFERROR(AVERAGEIF('급여대장(입력)'!$F$6:$F$288,option!$G$8,'급여대장(입력)'!X37:X290),0) -> 0 | I40: =IFERROR(AVERAGEIF('급여대장(입력)'!$F$6:$F$288,option!$G$8,'급여대장(입력)'!Y37:Y290),0) -> 0 | J40: =IFERROR(AVERAGEIF('급여대장(입력)'!$F$6:$F$288,option!$G$8,'급여대장(입력)'!Z37:Z290),0) -> 0 | K40: =IFERROR(AVERAGEIF('급여대장(입력)'!$F$6:$F$288,option!$G$8,'급여대장(입력)'!AA37:AA290),0) -> 0 | L40: =IFERROR(AVERAGEIF('급여대장(입력)'!$F$6:$F$288,option!$G$8,'급여대장(입력)'!AB37:AB290),0) -> 0 | M40: =IFERROR(AVERAGEIF('급여대장(입력)'!$F$6:$F$288,option!$G$8,'급여대장(입력)'!AC37:AC290),0) -> 0 | N40: =SUM(B40:F40) -> 2600000 | O40: =SUM(G40:M40) -> 0 | P40: =N40-O40 -> 2600000 | S40: 34 | T40: ='급여대장(입력)'!#REF! ->  | U40: =_xlfn.IFNA(VLOOKUP(T40,'급여대장(입력)'!$C$6:$V$22,20,0),0) ->  | X40: =IFERROR(VLOOKUP(T40,표1[[사원명]:[열3]],11,0),0) -> 0
S41: 35 | T41: ='급여대장(입력)'!#REF! ->  | U41: =_xlfn.IFNA(VLOOKUP(T41,'급여대장(입력)'!$C$6:$V$22,20,0),0) ->  | X41: =IFERROR(VLOOKUP(T41,표1[[사원명]:[열3]],11,0),0) -> 0
S42: 36 | T42: ='급여대장(입력)'!#REF! ->  | U42: =_xlfn.IFNA(VLOOKUP(T42,'급여대장(입력)'!$C$6:$V$22,20,0),0) ->  | X42: =IFERROR(VLOOKUP(T42,표1[[사원명]:[열3]],11,0),0) -> 0
S43: 37 | T43: ='급여대장(입력)'!#REF! ->  | U43: =_xlfn.IFNA(VLOOKUP(T43,'급여대장(입력)'!$C$6:$V$22,20,0),0) ->  | X43: =IFERROR(VLOOKUP(T43,표1[[사원명]:[열3]],11,0),0) -> 0
S44: 38 | T44: ='급여대장(입력)'!#REF! ->  | U44: =_xlfn.IFNA(VLOOKUP(T44,'급여대장(입력)'!$C$6:$V$22,20,0),0) ->  | X44: =IFERROR(VLOOKUP(T44,표1[[사원명]:[열3]],11,0),0) -> 0
S45: 39 | T45: ='급여대장(입력)'!#REF! ->  | U45: =_xlfn.IFNA(VLOOKUP(T45,'급여대장(입력)'!$C$6:$V$22,20,0),0) ->  | X45: =IFERROR(VLOOKUP(T45,표1[[사원명]:[열3]],11,0),0) -> 0
S46: 40 | T46: ='급여대장(입력)'!#REF! ->  | U46: =_xlfn.IFNA(VLOOKUP(T46,'급여대장(입력)'!$C$6:$V$22,20,0),0) ->  | X46: =IFERROR(VLOOKUP(T46,표1[[사원명]:[열3]],11,0),0) -> 0
S47: 41 | T47: ='급여대장(입력)'!#REF! ->  | U47: =_xlfn.IFNA(VLOOKUP(T47,'급여대장(입력)'!$C$6:$V$22,20,0),0) ->  | X47: =IFERROR(VLOOKUP(T47,표1[[사원명]:[열3]],11,0),0) -> 0
S48: 42 | T48: ='급여대장(입력)'!#REF! ->  | U48: =_xlfn.IFNA(VLOOKUP(T48,'급여대장(입력)'!$C$6:$V$22,20,0),0) ->  | X48: =IFERROR(VLOOKUP(T48,표1[[사원명]:[열3]],11,0),0) -> 0
S49: 43 | T49: ='급여대장(입력)'!#REF! ->  | U49: =_xlfn.IFNA(VLOOKUP(T49,'급여대장(입력)'!$C$6:$V$22,20,0),0) ->  | X49: =IFERROR(VLOOKUP(T49,표1[[사원명]:[열3]],11,0),0) -> 0
S50: 44 | T50: ='급여대장(입력)'!#REF! ->  | U50: =_xlfn.IFNA(VLOOKUP(T50,'급여대장(입력)'!$C$6:$V$22,20,0),0) ->  | X50: =IFERROR(VLOOKUP(T50,표1[[사원명]:[열3]],11,0),0) -> 0
S51: 45 | T51: ='급여대장(입력)'!#REF! ->  | U51: =_xlfn.IFNA(VLOOKUP(T51,'급여대장(입력)'!$C$6:$V$22,20,0),0) ->  | X51: =IFERROR(VLOOKUP(T51,표1[[사원명]:[열3]],11,0),0) -> 0
S52: 46 | T52: ='급여대장(입력)'!C23 -> 0 | U52: =_xlfn.IFNA(VLOOKUP(T52,'급여대장(입력)'!$C$6:$V$22,20,0),0) -> 0 | X52: =IFERROR(VLOOKUP(T52,표1[[사원명]:[열3]],11,0),0) -> 0 | Y52: 0
S53: 47 | T53: ='급여대장(입력)'!C36 -> 0 | U53: =_xlfn.IFNA(VLOOKUP(T53,'급여대장(입력)'!$C$6:$V$22,20,0),0) -> 0 | X53: =IFERROR(VLOOKUP(T53,표1[[사원명]:[열3]],11,0),0) -> 0 | Y53: 0
S54: 48 | T54: ='급여대장(입력)'!C37 -> 0 | U54: =_xlfn.IFNA(VLOOKUP(T54,'급여대장(입력)'!$C$6:$V$22,20,0),0) -> 0 | X54: =IFERROR(VLOOKUP(T54,표1[[사원명]:[열3]],11,0),0) -> 0 | Y54: 0
S55: 49 | T55: ='급여대장(입력)'!#REF! ->  | U55: =_xlfn.IFNA(VLOOKUP(T55,'급여대장(입력)'!$C$6:$V$22,20,0),0) ->  | X55: =IFERROR(VLOOKUP(T55,표1[[사원명]:[열3]],11,0),0) -> 0
S56: 50 | T56: ='급여대장(입력)'!#REF! ->  | U56: =_xlfn.IFNA(VLOOKUP(T56,'급여대장(입력)'!$C$6:$V$22,20,0),0) ->  | X56: =IFERROR(VLOOKUP(T56,표1[[사원명]:[열3]],11,0),0) -> 0
S57: 51 | T57: ='급여대장(입력)'!C38 -> 0 | U57: =_xlfn.IFNA(VLOOKUP(T57,'급여대장(입력)'!$C$6:$V$22,20,0),0) -> 0 | X57: =IFERROR(VLOOKUP(T57,표1[[사원명]:[열3]],11,0),0) -> 0 | Y57: 0
S58: 52 | T58: ='급여대장(입력)'!C39 -> 0 | U58: =_xlfn.IFNA(VLOOKUP(T58,'급여대장(입력)'!$C$6:$V$22,20,0),0) -> 0 | X58: =IFERROR(VLOOKUP(T58,표1[[사원명]:[열3]],11,0),0) -> 0 | Y58: 0
S59: 53 | T59: ='급여대장(입력)'!C40 -> 0 | U59: =_xlfn.IFNA(VLOOKUP(T59,'급여대장(입력)'!$C$6:$V$22,20,0),0) -> 0 | X59: =IFERROR(VLOOKUP(T59,표1[[사원명]:[열3]],11,0),0) -> 0 | Y59: 0
S60: 54 | T60: ='급여대장(입력)'!C41 -> 0 | U60: =_xlfn.IFNA(VLOOKUP(T60,'급여대장(입력)'!$C$6:$V$22,20,0),0) -> 0 | X60: =IFERROR(VLOOKUP(T60,표1[[사원명]:[열3]],11,0),0) -> 0 | Y60: 0
S61: 55 | T61: ='급여대장(입력)'!C42 -> 0 | U61: =_xlfn.IFNA(VLOOKUP(T61,'급여대장(입력)'!$C$6:$V$22,20,0),0) -> 0 | X61: =IFERROR(VLOOKUP(T61,표1[[사원명]:[열3]],11,0),0) -> 0 | Y61: 0
S62: 56 | T62: ='급여대장(입력)'!C43 -> 0 | U62: =_xlfn.IFNA(VLOOKUP(T62,'급여대장(입력)'!$C$6:$V$22,20,0),0) -> 0 | X62: =IFERROR(VLOOKUP(T62,표1[[사원명]:[열3]],11,0),0) -> 0 | Y62: 0
S63: 57 | T63: ='급여대장(입력)'!C44 -> 0 | U63: =_xlfn.IFNA(VLOOKUP(T63,'급여대장(입력)'!$C$6:$V$22,20,0),0) -> 0 | X63: =IFERROR(VLOOKUP(T63,표1[[사원명]:[열3]],11,0),0) -> 0 | Y63: 0
S64: 58 | T64: ='급여대장(입력)'!C45 -> 0 | U64: =_xlfn.IFNA(VLOOKUP(T64,'급여대장(입력)'!$C$6:$V$22,20,0),0) -> 0 | X64: =IFERROR(VLOOKUP(T64,표1[[사원명]:[열3]],11,0),0) -> 0 | Y64: 0
S65: 59 | T65: ='급여대장(입력)'!C46 -> 0 | U65: =_xlfn.IFNA(VLOOKUP(T65,'급여대장(입력)'!$C$6:$V$22,20,0),0) -> 0 | X65: =IFERROR(VLOOKUP(T65,표1[[사원명]:[열3]],11,0),0) -> 0 | Y65: 0
S66: 60 | T66: ='급여대장(입력)'!C47 -> 0 | U66: =_xlfn.IFNA(VLOOKUP(T66,'급여대장(입력)'!$C$6:$V$22,20,0),0) -> 0 | X66: =IFERROR(VLOOKUP(T66,표1[[사원명]:[열3]],11,0),0) -> 0 | Y66: 0
S67: 61 | T67: ='급여대장(입력)'!C48 -> 0 | U67: =_xlfn.IFNA(VLOOKUP(T67,'급여대장(입력)'!$C$6:$V$22,20,0),0) -> 0 | X67: =IFERROR(VLOOKUP(T67,표1[[사원명]:[열3]],11,0),0) -> 0 | Y67: 0
S68: 62 | T68: ='급여대장(입력)'!C49 -> 0 | U68: =_xlfn.IFNA(VLOOKUP(T68,'급여대장(입력)'!$C$6:$V$22,20,0),0) -> 0 | X68: =IFERROR(VLOOKUP(T68,표1[[사원명]:[열3]],11,0),0) -> 0 | Y68: 0
S69: 63 | T69: ='급여대장(입력)'!C50 -> 0 | U69: =_xlfn.IFNA(VLOOKUP(T69,'급여대장(입력)'!$C$6:$V$22,20,0),0) -> 0 | X69: =IFERROR(VLOOKUP(T69,표1[[사원명]:[열3]],11,0),0) -> 0 | Y69: 0
S70: 64 | T70: ='급여대장(입력)'!C51 -> 0 | U70: =_xlfn.IFNA(VLOOKUP(T70,'급여대장(입력)'!$C$6:$V$22,20,0),0) -> 0 | X70: =IFERROR(VLOOKUP(T70,표1[[사원명]:[열3]],11,0),0) -> 0 | Y70: 0
S71: 65 | T71: ='급여대장(입력)'!C52 -> 0 | U71: =_xlfn.IFNA(VLOOKUP(T71,'급여대장(입력)'!$C$6:$V$22,20,0),0) -> 0 | X71: =IFERROR(VLOOKUP(T71,표1[[사원명]:[열3]],11,0),0) -> 0 | Y71: 0
S72: 66 | T72: ='급여대장(입력)'!C53 -> 0 | U72: =_xlfn.IFNA(VLOOKUP(T72,'급여대장(입력)'!$C$6:$V$22,20,0),0) -> 0 | V72: =RANK(U72,$U$7:$U$306) ->  | W72: =$V72+COUNTIFS($V$7:$V$306,$V72,$S$7:$S$306,"<"&S72) ->  | X72: =IFERROR(VLOOKUP(T72,표1[[사원명]:[열3]],11,0),0) -> 0 | Y72: =U72-X72 -> 0 | Z72: =RANK(Y72,$Y$7:$Y$306) ->  | AA72: =$Z72+COUNTIFS($Z$7:$Z$306,$Z72,$S$7:$S$306,"<"&S72) -> 
S73: 67 | T73: ='급여대장(입력)'!C54 -> 0 | U73: =_xlfn.IFNA(VLOOKUP(T73,'급여대장(입력)'!$C$6:$V$22,20,0),0) -> 0 | X73: =IFERROR(VLOOKUP(T73,표1[[사원명]:[열3]],11,0),0) -> 0 | Y73: 0
S74: 68 | T74: ='급여대장(입력)'!C55 -> 0 | U74: =_xlfn.IFNA(VLOOKUP(T74,'급여대장(입력)'!$C$6:$V$22,20,0),0) -> 0 | X74: =IFERROR(VLOOKUP(T74,표1[[사원명]:[열3]],11,0),0) -> 0 | Y74: 0
S75: 69 | T75: ='급여대장(입력)'!C56 -> 0 | U75: =_xlfn.IFNA(VLOOKUP(T75,'급여대장(입력)'!$C$6:$V$22,20,0),0) -> 0 | X75: =IFERROR(VLOOKUP(T75,표1[[사원명]:[열3]],11,0),0) -> 0 | Y75: 0
S76: 70 | T76: ='급여대장(입력)'!C57 -> 0 | U76: =_xlfn.IFNA(VLOOKUP(T76,'급여대장(입력)'!$C$6:$V$22,20,0),0) -> 0 | X76: =IFERROR(VLOOKUP(T76,표1[[사원명]:[열3]],11,0),0) -> 0 | Y76: 0
S77: 71 | T77: ='급여대장(입력)'!C58 -> 0 | U77: =_xlfn.IFNA(VLOOKUP(T77,'급여대장(입력)'!$C$6:$V$22,20,0),0) -> 0 | X77: =IFERROR(VLOOKUP(T77,표1[[사원명]:[열3]],11,0),0) -> 0 | Y77: 0
S78: 72 | T78: ='급여대장(입력)'!C59 -> 0 | U78: =_xlfn.IFNA(VLOOKUP(T78,'급여대장(입력)'!$C$6:$V$22,20,0),0) -> 0 | X78: =IFERROR(VLOOKUP(T78,표1[[사원명]:[열3]],11,0),0) -> 0 | Y78: 0
S79: 73 | T79: ='급여대장(입력)'!C60 -> 0 | U79: =_xlfn.IFNA(VLOOKUP(T79,'급여대장(입력)'!$C$6:$V$22,20,0),0) -> 0 | X79: =IFERROR(VLOOKUP(T79,표1[[사원명]:[열3]],11,0),0) -> 0 | Y79: 0
S80: 74 | T80: ='급여대장(입력)'!C61 -> 0 | U80: =_xlfn.IFNA(VLOOKUP(T80,'급여대장(입력)'!$C$6:$V$22,20,0),0) -> 0 | X80: =IFERROR(VLOOKUP(T80,표1[[사원명]:[열3]],11,0),0) -> 0 | Y80: 0
S81: 75 | T81: ='급여대장(입력)'!C62 -> 0 | U81: =_xlfn.IFNA(VLOOKUP(T81,'급여대장(입력)'!$C$6:$V$22,20,0),0) -> 0 | X81: =IFERROR(VLOOKUP(T81,표1[[사원명]:[열3]],11,0),0) -> 0 | Y81: 0
S82: 76 | T82: ='급여대장(입력)'!C63 -> 0 | U82: =_xlfn.IFNA(VLOOKUP(T82,'급여대장(입력)'!$C$6:$V$22,20,0),0) -> 0 | X82: =IFERROR(VLOOKUP(T82,표1[[사원명]:[열3]],11,0),0) -> 0 | Y82: 0
S83: 77 | T83: ='급여대장(입력)'!C64 -> 0 | U83: =_xlfn.IFNA(VLOOKUP(T83,'급여대장(입력)'!$C$6:$V$22,20,0),0) -> 0 | X83: =IFERROR(VLOOKUP(T83,표1[[사원명]:[열3]],11,0),0) -> 0 | Y83: 0
S84: 78 | T84: ='급여대장(입력)'!C65 -> 0 | U84: =_xlfn.IFNA(VLOOKUP(T84,'급여대장(입력)'!$C$6:$V$22,20,0),0) -> 0 | X84: =IFERROR(VLOOKUP(T84,표1[[사원명]:[열3]],11,0),0) -> 0 | Y84: 0
S85: 79 | T85: ='급여대장(입력)'!C66 -> 0 | U85: =_xlfn.IFNA(VLOOKUP(T85,'급여대장(입력)'!$C$6:$V$22,20,0),0) -> 0 | X85: =IFERROR(VLOOKUP(T85,표1[[사원명]:[열3]],11,0),0) -> 0 | Y85: 0
S86: 80 | T86: ='급여대장(입력)'!C67 -> 0 | U86: =_xlfn.IFNA(VLOOKUP(T86,'급여대장(입력)'!$C$6:$V$22,20,0),0) -> 0 | X86: =IFERROR(VLOOKUP(T86,표1[[사원명]:[열3]],11,0),0) -> 0 | Y86: 0
S87: 81 | T87: ='급여대장(입력)'!C68 -> 0 | U87: =_xlfn.IFNA(VLOOKUP(T87,'급여대장(입력)'!$C$6:$V$22,20,0),0) -> 0 | X87: =IFERROR(VLOOKUP(T87,표1[[사원명]:[열3]],11,0),0) -> 0 | Y87: 0
S88: 82 | T88: ='급여대장(입력)'!C69 -> 0 | U88: =_xlfn.IFNA(VLOOKUP(T88,'급여대장(입력)'!$C$6:$V$22,20,0),0) -> 0 | X88: =IFERROR(VLOOKUP(T88,표1[[사원명]:[열3]],11,0),0) -> 0 | Y88: 0
S89: 83 | T89: ='급여대장(입력)'!C70 -> 0 | U89: =_xlfn.IFNA(VLOOKUP(T89,'급여대장(입력)'!$C$6:$V$22,20,0),0) -> 0 | X89: =IFERROR(VLOOKUP(T89,표1[[사원명]:[열3]],11,0),0) -> 0 | Y89: 0
S90: 84 | T90: ='급여대장(입력)'!C71 -> 0 | U90: =_xlfn.IFNA(VLOOKUP(T90,'급여대장(입력)'!$C$6:$V$22,20,0),0) -> 0 | X90: =IFERROR(VLOOKUP(T90,표1[[사원명]:[열3]],11,0),0) -> 0 | Y90: 0
S91: 85 | T91: ='급여대장(입력)'!C72 -> 0 | U91: =_xlfn.IFNA(VLOOKUP(T91,'급여대장(입력)'!$C$6:$V$22,20,0),0) -> 0 | X91: =IFERROR(VLOOKUP(T91,표1[[사원명]:[열3]],11,0),0) -> 0 | Y91: 0
S92: 86 | T92: ='급여대장(입력)'!C73 -> 0 | U92: =_xlfn.IFNA(VLOOKUP(T92,'급여대장(입력)'!$C$6:$V$22,20,0),0) -> 0 | X92: =IFERROR(VLOOKUP(T92,표1[[사원명]:[열3]],11,0),0) -> 0 | Y92: 0
S93: 87 | T93: ='급여대장(입력)'!C74 -> 0 | U93: =_xlfn.IFNA(VLOOKUP(T93,'급여대장(입력)'!$C$6:$V$22,20,0),0) -> 0 | X93: =IFERROR(VLOOKUP(T93,표1[[사원명]:[열3]],11,0),0) -> 0 | Y93: 0
S94: 88 | T94: ='급여대장(입력)'!C75 -> 0 | U94: =_xlfn.IFNA(VLOOKUP(T94,'급여대장(입력)'!$C$6:$V$22,20,0),0) -> 0 | X94: =IFERROR(VLOOKUP(T94,표1[[사원명]:[열3]],11,0),0) -> 0 | Y94: 0
S95: 89 | T95: ='급여대장(입력)'!C76 -> 0 | U95: =_xlfn.IFNA(VLOOKUP(T95,'급여대장(입력)'!$C$6:$V$22,20,0),0) -> 0 | X95: =IFERROR(VLOOKUP(T95,표1[[사원명]:[열3]],11,0),0) -> 0 | Y95: 0
S96: 90 | T96: ='급여대장(입력)'!C77 -> 0 | U96: =_xlfn.IFNA(VLOOKUP(T96,'급여대장(입력)'!$C$6:$V$22,20,0),0) -> 0 | X96: =IFERROR(VLOOKUP(T96,표1[[사원명]:[열3]],11,0),0) -> 0 | Y96: 0
S97: 91 | T97: ='급여대장(입력)'!C78 -> 0 | U97: =_xlfn.IFNA(VLOOKUP(T97,'급여대장(입력)'!$C$6:$V$22,20,0),0) -> 0 | X97: =IFERROR(VLOOKUP(T97,표1[[사원명]:[열3]],11,0),0) -> 0 | Y97: 0
S98: 92 | T98: ='급여대장(입력)'!C79 -> 0 | U98: =_xlfn.IFNA(VLOOKUP(T98,'급여대장(입력)'!$C$6:$V$22,20,0),0) -> 0 | X98: =IFERROR(VLOOKUP(T98,표1[[사원명]:[열3]],11,0),0) -> 0 | Y98: 0
S99: 93 | T99: ='급여대장(입력)'!C80 -> 0 | U99: =_xlfn.IFNA(VLOOKUP(T99,'급여대장(입력)'!$C$6:$V$22,20,0),0) -> 0 | X99: =IFERROR(VLOOKUP(T99,표1[[사원명]:[열3]],11,0),0) -> 0 | Y99: 0
S100: 94 | T100: ='급여대장(입력)'!C81 -> 0 | U100: =_xlfn.IFNA(VLOOKUP(T100,'급여대장(입력)'!$C$6:$V$22,20,0),0) -> 0 | X100: =IFERROR(VLOOKUP(T100,표1[[사원명]:[열3]],11,0),0) -> 0 | Y100: 0
S101: 95 | T101: ='급여대장(입력)'!C82 -> 0 | U101: =_xlfn.IFNA(VLOOKUP(T101,'급여대장(입력)'!$C$6:$V$22,20,0),0) -> 0 | X101: =IFERROR(VLOOKUP(T101,표1[[사원명]:[열3]],11,0),0) -> 0 | Y101: 0
S102: 96 | T102: ='급여대장(입력)'!C83 -> 0 | U102: =_xlfn.IFNA(VLOOKUP(T102,'급여대장(입력)'!$C$6:$V$22,20,0),0) -> 0 | X102: =IFERROR(VLOOKUP(T102,표1[[사원명]:[열3]],11,0),0) -> 0 | Y102: 0
S103: 97 | T103: ='급여대장(입력)'!C84 -> 0 | U103: =_xlfn.IFNA(VLOOKUP(T103,'급여대장(입력)'!$C$6:$V$22,20,0),0) -> 0 | X103: =IFERROR(VLOOKUP(T103,표1[[사원명]:[열3]],11,0),0) -> 0 | Y103: 0
S104: 98 | T104: ='급여대장(입력)'!C85 -> 0 | U104: =_xlfn.IFNA(VLOOKUP(T104,'급여대장(입력)'!$C$6:$V$22,20,0),0) -> 0 | X104: =IFERROR(VLOOKUP(T104,표1[[사원명]:[열3]],11,0),0) -> 0 | Y104: 0
S105: 99 | T105: ='급여대장(입력)'!C86 -> 0 | U105: =_xlfn.IFNA(VLOOKUP(T105,'급여대장(입력)'!$C$6:$V$22,20,0),0) -> 0 | X105: =IFERROR(VLOOKUP(T105,표1[[사원명]:[열3]],11,0),0) -> 0 | Y105: 0
S106: 100 | T106: ='급여대장(입력)'!C87 -> 0 | U106: =_xlfn.IFNA(VLOOKUP(T106,'급여대장(입력)'!$C$6:$V$22,20,0),0) -> 0 | X106: =IFERROR(VLOOKUP(T106,표1[[사원명]:[열3]],11,0),0) -> 0 | Y106: 0
S107: 101 | T107: ='급여대장(입력)'!C88 -> 0 | U107: =_xlfn.IFNA(VLOOKUP(T107,'급여대장(입력)'!$C$6:$V$22,20,0),0) -> 0 | X107: =IFERROR(VLOOKUP(T107,표1[[사원명]:[열3]],11,0),0) -> 0 | Y107: 0
S108: 102 | T108: ='급여대장(입력)'!C89 -> 0 | U108: =_xlfn.IFNA(VLOOKUP(T108,'급여대장(입력)'!$C$6:$V$22,20,0),0) -> 0 | X108: =IFERROR(VLOOKUP(T108,표1[[사원명]:[열3]],11,0),0) -> 0 | Y108: 0
S109: 103 | T109: ='급여대장(입력)'!C90 -> 0 | U109: =_xlfn.IFNA(VLOOKUP(T109,'급여대장(입력)'!$C$6:$V$22,20,0),0) -> 0 | X109: =IFERROR(VLOOKUP(T109,표1[[사원명]:[열3]],11,0),0) -> 0 | Y109: 0
S110: 104 | T110: ='급여대장(입력)'!C91 -> 0 | U110: =_xlfn.IFNA(VLOOKUP(T110,'급여대장(입력)'!$C$6:$V$22,20,0),0) -> 0 | X110: =IFERROR(VLOOKUP(T110,표1[[사원명]:[열3]],11,0),0) -> 0 | Y110: 0
S111: 105 | T111: ='급여대장(입력)'!C92 -> 0 | U111: =_xlfn.IFNA(VLOOKUP(T111,'급여대장(입력)'!$C$6:$V$22,20,0),0) -> 0 | X111: =IFERROR(VLOOKUP(T111,표1[[사원명]:[열3]],11,0),0) -> 0 | Y111: 0
S112: 106 | T112: ='급여대장(입력)'!C93 -> 0 | U112: =_xlfn.IFNA(VLOOKUP(T112,'급여대장(입력)'!$C$6:$V$22,20,0),0) -> 0 | X112: =IFERROR(VLOOKUP(T112,표1[[사원명]:[열3]],11,0),0) -> 0 | Y112: 0
S113: 107 | T113: ='급여대장(입력)'!C94 -> 0 | U113: =_xlfn.IFNA(VLOOKUP(T113,'급여대장(입력)'!$C$6:$V$22,20,0),0) -> 0 | X113: =IFERROR(VLOOKUP(T113,표1[[사원명]:[열3]],11,0),0) -> 0 | Y113: 0
S114: 108 | T114: ='급여대장(입력)'!C95 -> 0 | U114: =_xlfn.IFNA(VLOOKUP(T114,'급여대장(입력)'!$C$6:$V$22,20,0),0) -> 0 | X114: =IFERROR(VLOOKUP(T114,표1[[사원명]:[열3]],11,0),0) -> 0 | Y114: 0
S115: 109 | T115: ='급여대장(입력)'!C96 -> 0 | U115: =_xlfn.IFNA(VLOOKUP(T115,'급여대장(입력)'!$C$6:$V$22,20,0),0) -> 0 | X115: =IFERROR(VLOOKUP(T115,표1[[사원명]:[열3]],11,0),0) -> 0 | Y115: 0
S116: 110 | T116: ='급여대장(입력)'!C97 -> 0 | U116: =_xlfn.IFNA(VLOOKUP(T116,'급여대장(입력)'!$C$6:$V$22,20,0),0) -> 0 | X116: =IFERROR(VLOOKUP(T116,표1[[사원명]:[열3]],11,0),0) -> 0 | Y116: 0
S117: 111 | T117: ='급여대장(입력)'!C98 -> 0 | U117: =_xlfn.IFNA(VLOOKUP(T117,'급여대장(입력)'!$C$6:$V$22,20,0),0) -> 0 | X117: =IFERROR(VLOOKUP(T117,표1[[사원명]:[열3]],11,0),0) -> 0 | Y117: 0
S118: 112 | T118: ='급여대장(입력)'!C99 -> 0 | U118: =_xlfn.IFNA(VLOOKUP(T118,'급여대장(입력)'!$C$6:$V$22,20,0),0) -> 0 | X118: =IFERROR(VLOOKUP(T118,표1[[사원명]:[열3]],11,0),0) -> 0 | Y118: 0
S119: 113 | T119: ='급여대장(입력)'!C100 -> 0 | U119: =_xlfn.IFNA(VLOOKUP(T119,'급여대장(입력)'!$C$6:$V$22,20,0),0) -> 0 | X119: =IFERROR(VLOOKUP(T119,표1[[사원명]:[열3]],11,0),0) -> 0 | Y119: 0
S120: 114 | T120: ='급여대장(입력)'!C101 -> 0 | U120: =_xlfn.IFNA(VLOOKUP(T120,'급여대장(입력)'!$C$6:$V$22,20,0),0) -> 0 | X120: =IFERROR(VLOOKUP(T120,표1[[사원명]:[열3]],11,0),0) -> 0 | Y120: 0
S121: 115 | T121: ='급여대장(입력)'!C102 -> 0 | U121: =_xlfn.IFNA(VLOOKUP(T121,'급여대장(입력)'!$C$6:$V$22,20,0),0) -> 0 | X121: =IFERROR(VLOOKUP(T121,표1[[사원명]:[열3]],11,0),0) -> 0 | Y121: 0
S122: 116 | T122: ='급여대장(입력)'!C103 -> 0 | U122: =_xlfn.IFNA(VLOOKUP(T122,'급여대장(입력)'!$C$6:$V$22,20,0),0) -> 0 | X122: =IFERROR(VLOOKUP(T122,표1[[사원명]:[열3]],11,0),0) -> 0 | Y122: 0
S123: 117 | T123: ='급여대장(입력)'!C104 -> 0 | U123: =_xlfn.IFNA(VLOOKUP(T123,'급여대장(입력)'!$C$6:$V$22,20,0),0) -> 0 | X123: =IFERROR(VLOOKUP(T123,표1[[사원명]:[열3]],11,0),0) -> 0 | Y123: 0
S124: 118 | T124: ='급여대장(입력)'!C105 -> 0 | U124: =_xlfn.IFNA(VLOOKUP(T124,'급여대장(입력)'!$C$6:$V$22,20,0),0) -> 0 | X124: =IFERROR(VLOOKUP(T124,표1[[사원명]:[열3]],11,0),0) -> 0 | Y124: 0
S125: 119 | T125: ='급여대장(입력)'!C106 -> 0 | U125: =_xlfn.IFNA(VLOOKUP(T125,'급여대장(입력)'!$C$6:$V$22,20,0),0) -> 0 | X125: =IFERROR(VLOOKUP(T125,표1[[사원명]:[열3]],11,0),0) -> 0 | Y125: 0
S126: 120 | T126: ='급여대장(입력)'!C107 -> 0 | U126: =_xlfn.IFNA(VLOOKUP(T126,'급여대장(입력)'!$C$6:$V$22,20,0),0) -> 0 | X126: =IFERROR(VLOOKUP(T126,표1[[사원명]:[열3]],11,0),0) -> 0 | Y126: 0
S127: 121 | T127: ='급여대장(입력)'!C108 -> 0 | U127: =_xlfn.IFNA(VLOOKUP(T127,'급여대장(입력)'!$C$6:$V$22,20,0),0) -> 0 | X127: =IFERROR(VLOOKUP(T127,표1[[사원명]:[열3]],11,0),0) -> 0 | Y127: 0
S128: 122 | T128: ='급여대장(입력)'!C109 -> 0 | U128: =_xlfn.IFNA(VLOOKUP(T128,'급여대장(입력)'!$C$6:$V$22,20,0),0) -> 0 | X128: =IFERROR(VLOOKUP(T128,표1[[사원명]:[열3]],11,0),0) -> 0 | Y128: 0
S129: 123 | T129: ='급여대장(입력)'!C110 -> 0 | U129: =_xlfn.IFNA(VLOOKUP(T129,'급여대장(입력)'!$C$6:$V$22,20,0),0) -> 0 | X129: =IFERROR(VLOOKUP(T129,표1[[사원명]:[열3]],11,0),0) -> 0 | Y129: 0
S130: 124 | T130: ='급여대장(입력)'!C111 -> 0 | U130: =_xlfn.IFNA(VLOOKUP(T130,'급여대장(입력)'!$C$6:$V$22,20,0),0) -> 0 | X130: =IFERROR(VLOOKUP(T130,표1[[사원명]:[열3]],11,0),0) -> 0 | Y130: 0
S131: 125 | T131: ='급여대장(입력)'!C112 -> 0 | U131: =_xlfn.IFNA(VLOOKUP(T131,'급여대장(입력)'!$C$6:$V$22,20,0),0) -> 0 | X131: =IFERROR(VLOOKUP(T131,표1[[사원명]:[열3]],11,0),0) -> 0 | Y131: 0
S132: 126 | T132: ='급여대장(입력)'!C113 -> 0 | U132: =_xlfn.IFNA(VLOOKUP(T132,'급여대장(입력)'!$C$6:$V$22,20,0),0) -> 0 | X132: =IFERROR(VLOOKUP(T132,표1[[사원명]:[열3]],11,0),0) -> 0 | Y132: 0
S133: 127 | T133: ='급여대장(입력)'!C114 -> 0 | U133: =_xlfn.IFNA(VLOOKUP(T133,'급여대장(입력)'!$C$6:$V$22,20,0),0) -> 0 | X133: =IFERROR(VLOOKUP(T133,표1[[사원명]:[열3]],11,0),0) -> 0 | Y133: 0
S134: 128 | T134: ='급여대장(입력)'!C115 -> 0 | U134: =_xlfn.IFNA(VLOOKUP(T134,'급여대장(입력)'!$C$6:$V$22,20,0),0) -> 0 | X134: =IFERROR(VLOOKUP(T134,표1[[사원명]:[열3]],11,0),0) -> 0 | Y134: 0
S135: 129 | T135: ='급여대장(입력)'!C116 -> 0 | U135: =_xlfn.IFNA(VLOOKUP(T135,'급여대장(입력)'!$C$6:$V$22,20,0),0) -> 0 | X135: =IFERROR(VLOOKUP(T135,표1[[사원명]:[열3]],11,0),0) -> 0 | Y135: 0
S136: 130 | T136: ='급여대장(입력)'!C117 -> 0 | U136: =_xlfn.IFNA(VLOOKUP(T136,'급여대장(입력)'!$C$6:$V$22,20,0),0) -> 0 | V136: =RANK(U136,$U$7:$U$306) ->  | W136: =$V136+COUNTIFS($V$7:$V$306,$V136,$S$7:$S$306,"<"&S136) ->  | X136: =IFERROR(VLOOKUP(T136,표1[[사원명]:[열3]],11,0),0) -> 0 | Y136: =U136-X136 -> 0 | Z136: =RANK(Y136,$Y$7:$Y$306) ->  | AA136: =$Z136+COUNTIFS($Z$7:$Z$306,$Z136,$S$7:$S$306,"<"&S136) -> 
S137: 131 | T137: ='급여대장(입력)'!C118 -> 0 | U137: =_xlfn.IFNA(VLOOKUP(T137,'급여대장(입력)'!$C$6:$V$22,20,0),0) -> 0 | X137: =IFERROR(VLOOKUP(T137,표1[[사원명]:[열3]],11,0),0) -> 0 | Y137: 0
S138: 132 | T138: ='급여대장(입력)'!C119 -> 0 | U138: =_xlfn.IFNA(VLOOKUP(T138,'급여대장(입력)'!$C$6:$V$22,20,0),0) -> 0 | X138: =IFERROR(VLOOKUP(T138,표1[[사원명]:[열3]],11,0),0) -> 0 | Y138: 0
S139: 133 | T139: ='급여대장(입력)'!C120 -> 0 | U139: =_xlfn.IFNA(VLOOKUP(T139,'급여대장(입력)'!$C$6:$V$22,20,0),0) -> 0 | X139: =IFERROR(VLOOKUP(T139,표1[[사원명]:[열3]],11,0),0) -> 0 | Y139: 0
S140: 134 | T140: ='급여대장(입력)'!C121 -> 0 | U140: =_xlfn.IFNA(VLOOKUP(T140,'급여대장(입력)'!$C$6:$V$22,20,0),0) -> 0 | X140: =IFERROR(VLOOKUP(T140,표1[[사원명]:[열3]],11,0),0) -> 0 | Y140: 0
S141: 135 | T141: ='급여대장(입력)'!C122 -> 0 | U141: =_xlfn.IFNA(VLOOKUP(T141,'급여대장(입력)'!$C$6:$V$22,20,0),0) -> 0 | X141: =IFERROR(VLOOKUP(T141,표1[[사원명]:[열3]],11,0),0) -> 0 | Y141: 0
S142: 136 | T142: ='급여대장(입력)'!C123 -> 0 | U142: =_xlfn.IFNA(VLOOKUP(T142,'급여대장(입력)'!$C$6:$V$22,20,0),0) -> 0 | X142: =IFERROR(VLOOKUP(T142,표1[[사원명]:[열3]],11,0),0) -> 0 | Y142: 0
S143: 137 | T143: ='급여대장(입력)'!C124 -> 0 | U143: =_xlfn.IFNA(VLOOKUP(T143,'급여대장(입력)'!$C$6:$V$22,20,0),0) -> 0 | X143: =IFERROR(VLOOKUP(T143,표1[[사원명]:[열3]],11,0),0) -> 0 | Y143: 0
S144: 138 | T144: ='급여대장(입력)'!C125 -> 0 | U144: =_xlfn.IFNA(VLOOKUP(T144,'급여대장(입력)'!$C$6:$V$22,20,0),0) -> 0 | X144: =IFERROR(VLOOKUP(T144,표1[[사원명]:[열3]],11,0),0) -> 0 | Y144: 0
S145: 139 | T145: ='급여대장(입력)'!C126 -> 0 | U145: =_xlfn.IFNA(VLOOKUP(T145,'급여대장(입력)'!$C$6:$V$22,20,0),0) -> 0 | X145: =IFERROR(VLOOKUP(T145,표1[[사원명]:[열3]],11,0),0) -> 0 | Y145: 0
S146: 140 | T146: ='급여대장(입력)'!C127 -> 0 | U146: =_xlfn.IFNA(VLOOKUP(T146,'급여대장(입력)'!$C$6:$V$22,20,0),0) -> 0 | X146: =IFERROR(VLOOKUP(T146,표1[[사원명]:[열3]],11,0),0) -> 0 | Y146: 0
S147: 141 | T147: ='급여대장(입력)'!C128 -> 0 | U147: =_xlfn.IFNA(VLOOKUP(T147,'급여대장(입력)'!$C$6:$V$22,20,0),0) -> 0 | X147: =IFERROR(VLOOKUP(T147,표1[[사원명]:[열3]],11,0),0) -> 0 | Y147: 0
S148: 142 | T148: ='급여대장(입력)'!C129 -> 0 | U148: =_xlfn.IFNA(VLOOKUP(T148,'급여대장(입력)'!$C$6:$V$22,20,0),0) -> 0 | X148: =IFERROR(VLOOKUP(T148,표1[[사원명]:[열3]],11,0),0) -> 0 | Y148: 0
S149: 143 | T149: ='급여대장(입력)'!C130 -> 0 | U149: =_xlfn.IFNA(VLOOKUP(T149,'급여대장(입력)'!$C$6:$V$22,20,0),0) -> 0 | X149: =IFERROR(VLOOKUP(T149,표1[[사원명]:[열3]],11,0),0) -> 0 | Y149: 0
S150: 144 | T150: ='급여대장(입력)'!C131 -> 0 | U150: =_xlfn.IFNA(VLOOKUP(T150,'급여대장(입력)'!$C$6:$V$22,20,0),0) -> 0 | X150: =IFERROR(VLOOKUP(T150,표1[[사원명]:[열3]],11,0),0) -> 0 | Y150: 0
S151: 145 | T151: ='급여대장(입력)'!C132 -> 0 | U151: =_xlfn.IFNA(VLOOKUP(T151,'급여대장(입력)'!$C$6:$V$22,20,0),0) -> 0 | X151: =IFERROR(VLOOKUP(T151,표1[[사원명]:[열3]],11,0),0) -> 0 | Y151: 0
S152: 146 | T152: ='급여대장(입력)'!C133 -> 0 | U152: =_xlfn.IFNA(VLOOKUP(T152,'급여대장(입력)'!$C$6:$V$22,20,0),0) -> 0 | X152: =IFERROR(VLOOKUP(T152,표1[[사원명]:[열3]],11,0),0) -> 0 | Y152: 0
S153: 147 | T153: ='급여대장(입력)'!C134 -> 0 | U153: =_xlfn.IFNA(VLOOKUP(T153,'급여대장(입력)'!$C$6:$V$22,20,0),0) -> 0 | X153: =IFERROR(VLOOKUP(T153,표1[[사원명]:[열3]],11,0),0) -> 0 | Y153: 0
S154: 148 | T154: ='급여대장(입력)'!C135 -> 0 | U154: =_xlfn.IFNA(VLOOKUP(T154,'급여대장(입력)'!$C$6:$V$22,20,0),0) -> 0 | X154: =IFERROR(VLOOKUP(T154,표1[[사원명]:[열3]],11,0),0) -> 0 | Y154: 0
S155: 149 | T155: ='급여대장(입력)'!C136 -> 0 | U155: =_xlfn.IFNA(VLOOKUP(T155,'급여대장(입력)'!$C$6:$V$22,20,0),0) -> 0 | X155: =IFERROR(VLOOKUP(T155,표1[[사원명]:[열3]],11,0),0) -> 0 | Y155: 0
S156: 150 | T156: ='급여대장(입력)'!C137 -> 0 | U156: =_xlfn.IFNA(VLOOKUP(T156,'급여대장(입력)'!$C$6:$V$22,20,0),0) -> 0 | X156: =IFERROR(VLOOKUP(T156,표1[[사원명]:[열3]],11,0),0) -> 0 | Y156: 0
S157: 151 | T157: ='급여대장(입력)'!C138 -> 0 | U157: =_xlfn.IFNA(VLOOKUP(T157,'급여대장(입력)'!$C$6:$V$22,20,0),0) -> 0 | X157: =IFERROR(VLOOKUP(T157,표1[[사원명]:[열3]],11,0),0) -> 0 | Y157: 0
S158: 152 | T158: ='급여대장(입력)'!C139 -> 0 | U158: =_xlfn.IFNA(VLOOKUP(T158,'급여대장(입력)'!$C$6:$V$22,20,0),0) -> 0 | X158: =IFERROR(VLOOKUP(T158,표1[[사원명]:[열3]],11,0),0) -> 0 | Y158: 0
S159: 153 | T159: ='급여대장(입력)'!C140 -> 0 | U159: =_xlfn.IFNA(VLOOKUP(T159,'급여대장(입력)'!$C$6:$V$22,20,0),0) -> 0 | X159: =IFERROR(VLOOKUP(T159,표1[[사원명]:[열3]],11,0),0) -> 0 | Y159: 0
S160: 154 | T160: ='급여대장(입력)'!C141 -> 0 | U160: =_xlfn.IFNA(VLOOKUP(T160,'급여대장(입력)'!$C$6:$V$22,20,0),0) -> 0 | X160: =IFERROR(VLOOKUP(T160,표1[[사원명]:[열3]],11,0),0) -> 0 | Y160: 0
S161: 155 | T161: ='급여대장(입력)'!C142 -> 0 | U161: =_xlfn.IFNA(VLOOKUP(T161,'급여대장(입력)'!$C$6:$V$22,20,0),0) -> 0 | X161: =IFERROR(VLOOKUP(T161,표1[[사원명]:[열3]],11,0),0) -> 0 | Y161: 0
S162: 156 | T162: ='급여대장(입력)'!C143 -> 0 | U162: =_xlfn.IFNA(VLOOKUP(T162,'급여대장(입력)'!$C$6:$V$22,20,0),0) -> 0 | X162: =IFERROR(VLOOKUP(T162,표1[[사원명]:[열3]],11,0),0) -> 0 | Y162: 0
S163: 157 | T163: ='급여대장(입력)'!C144 -> 0 | U163: =_xlfn.IFNA(VLOOKUP(T163,'급여대장(입력)'!$C$6:$V$22,20,0),0) -> 0 | X163: =IFERROR(VLOOKUP(T163,표1[[사원명]:[열3]],11,0),0) -> 0 | Y163: 0
S164: 158 | T164: ='급여대장(입력)'!C145 -> 0 | U164: =_xlfn.IFNA(VLOOKUP(T164,'급여대장(입력)'!$C$6:$V$22,20,0),0) -> 0 | X164: =IFERROR(VLOOKUP(T164,표1[[사원명]:[열3]],11,0),0) -> 0 | Y164: 0
S165: 159 | T165: ='급여대장(입력)'!C146 -> 0 | U165: =_xlfn.IFNA(VLOOKUP(T165,'급여대장(입력)'!$C$6:$V$22,20,0),0) -> 0 | X165: =IFERROR(VLOOKUP(T165,표1[[사원명]:[열3]],11,0),0) -> 0 | Y165: 0
S166: 160 | T166: ='급여대장(입력)'!C147 -> 0 | U166: =_xlfn.IFNA(VLOOKUP(T166,'급여대장(입력)'!$C$6:$V$22,20,0),0) -> 0 | X166: =IFERROR(VLOOKUP(T166,표1[[사원명]:[열3]],11,0),0) -> 0 | Y166: 0
S167: 161 | T167: ='급여대장(입력)'!C148 -> 0 | U167: =_xlfn.IFNA(VLOOKUP(T167,'급여대장(입력)'!$C$6:$V$22,20,0),0) -> 0 | X167: =IFERROR(VLOOKUP(T167,표1[[사원명]:[열3]],11,0),0) -> 0 | Y167: 0
S168: 162 | T168: ='급여대장(입력)'!C149 -> 0 | U168: =_xlfn.IFNA(VLOOKUP(T168,'급여대장(입력)'!$C$6:$V$22,20,0),0) -> 0 | X168: =IFERROR(VLOOKUP(T168,표1[[사원명]:[열3]],11,0),0) -> 0 | Y168: 0
S169: 163 | T169: ='급여대장(입력)'!C150 -> 0 | U169: =_xlfn.IFNA(VLOOKUP(T169,'급여대장(입력)'!$C$6:$V$22,20,0),0) -> 0 | X169: =IFERROR(VLOOKUP(T169,표1[[사원명]:[열3]],11,0),0) -> 0 | Y169: 0
S170: 164 | T170: ='급여대장(입력)'!C151 -> 0 | U170: =_xlfn.IFNA(VLOOKUP(T170,'급여대장(입력)'!$C$6:$V$22,20,0),0) -> 0 | X170: =IFERROR(VLOOKUP(T170,표1[[사원명]:[열3]],11,0),0) -> 0 | Y170: 0
S171: 165 | T171: ='급여대장(입력)'!C152 -> 0 | U171: =_xlfn.IFNA(VLOOKUP(T171,'급여대장(입력)'!$C$6:$V$22,20,0),0) -> 0 | X171: =IFERROR(VLOOKUP(T171,표1[[사원명]:[열3]],11,0),0) -> 0 | Y171: 0
S172: 166 | T172: ='급여대장(입력)'!C153 -> 0 | U172: =_xlfn.IFNA(VLOOKUP(T172,'급여대장(입력)'!$C$6:$V$22,20,0),0) -> 0 | X172: =IFERROR(VLOOKUP(T172,표1[[사원명]:[열3]],11,0),0) -> 0 | Y172: 0
S173: 167 | T173: ='급여대장(입력)'!C154 -> 0 | U173: =_xlfn.IFNA(VLOOKUP(T173,'급여대장(입력)'!$C$6:$V$22,20,0),0) -> 0 | X173: =IFERROR(VLOOKUP(T173,표1[[사원명]:[열3]],11,0),0) -> 0 | Y173: 0
S174: 168 | T174: ='급여대장(입력)'!C155 -> 0 | U174: =_xlfn.IFNA(VLOOKUP(T174,'급여대장(입력)'!$C$6:$V$22,20,0),0) -> 0 | X174: =IFERROR(VLOOKUP(T174,표1[[사원명]:[열3]],11,0),0) -> 0 | Y174: 0
S175: 169 | T175: ='급여대장(입력)'!C156 -> 0 | U175: =_xlfn.IFNA(VLOOKUP(T175,'급여대장(입력)'!$C$6:$V$22,20,0),0) -> 0 | X175: =IFERROR(VLOOKUP(T175,표1[[사원명]:[열3]],11,0),0) -> 0 | Y175: 0
S176: 170 | T176: ='급여대장(입력)'!C157 -> 0 | U176: =_xlfn.IFNA(VLOOKUP(T176,'급여대장(입력)'!$C$6:$V$22,20,0),0) -> 0 | X176: =IFERROR(VLOOKUP(T176,표1[[사원명]:[열3]],11,0),0) -> 0 | Y176: 0
S177: 171 | T177: ='급여대장(입력)'!C158 -> 0 | U177: =_xlfn.IFNA(VLOOKUP(T177,'급여대장(입력)'!$C$6:$V$22,20,0),0) -> 0 | X177: =IFERROR(VLOOKUP(T177,표1[[사원명]:[열3]],11,0),0) -> 0 | Y177: 0
S178: 172 | T178: ='급여대장(입력)'!C159 -> 0 | U178: =_xlfn.IFNA(VLOOKUP(T178,'급여대장(입력)'!$C$6:$V$22,20,0),0) -> 0 | X178: =IFERROR(VLOOKUP(T178,표1[[사원명]:[열3]],11,0),0) -> 0 | Y178: 0
S179: 173 | T179: ='급여대장(입력)'!C160 -> 0 | U179: =_xlfn.IFNA(VLOOKUP(T179,'급여대장(입력)'!$C$6:$V$22,20,0),0) -> 0 | X179: =IFERROR(VLOOKUP(T179,표1[[사원명]:[열3]],11,0),0) -> 0 | Y179: 0
S180: 174 | T180: ='급여대장(입력)'!C161 -> 0 | U180: =_xlfn.IFNA(VLOOKUP(T180,'급여대장(입력)'!$C$6:$V$22,20,0),0) -> 0 | X180: =IFERROR(VLOOKUP(T180,표1[[사원명]:[열3]],11,0),0) -> 0 | Y180: 0
S181: 175 | T181: ='급여대장(입력)'!C162 -> 0 | U181: =_xlfn.IFNA(VLOOKUP(T181,'급여대장(입력)'!$C$6:$V$22,20,0),0) -> 0 | X181: =IFERROR(VLOOKUP(T181,표1[[사원명]:[열3]],11,0),0) -> 0 | Y181: 0
S182: 176 | T182: ='급여대장(입력)'!C163 -> 0 | U182: =_xlfn.IFNA(VLOOKUP(T182,'급여대장(입력)'!$C$6:$V$22,20,0),0) -> 0 | X182: =IFERROR(VLOOKUP(T182,표1[[사원명]:[열3]],11,0),0) -> 0 | Y182: 0
S183: 177 | T183: ='급여대장(입력)'!C164 -> 0 | U183: =_xlfn.IFNA(VLOOKUP(T183,'급여대장(입력)'!$C$6:$V$22,20,0),0) -> 0 | X183: =IFERROR(VLOOKUP(T183,표1[[사원명]:[열3]],11,0),0) -> 0 | Y183: 0
S184: 178 | T184: ='급여대장(입력)'!C165 -> 0 | U184: =_xlfn.IFNA(VLOOKUP(T184,'급여대장(입력)'!$C$6:$V$22,20,0),0) -> 0 | X184: =IFERROR(VLOOKUP(T184,표1[[사원명]:[열3]],11,0),0) -> 0 | Y184: 0
S185: 179 | T185: ='급여대장(입력)'!C166 -> 0 | U185: =_xlfn.IFNA(VLOOKUP(T185,'급여대장(입력)'!$C$6:$V$22,20,0),0) -> 0 | X185: =IFERROR(VLOOKUP(T185,표1[[사원명]:[열3]],11,0),0) -> 0 | Y185: 0
S186: 180 | T186: ='급여대장(입력)'!C167 -> 0 | U186: =_xlfn.IFNA(VLOOKUP(T186,'급여대장(입력)'!$C$6:$V$22,20,0),0) -> 0 | X186: =IFERROR(VLOOKUP(T186,표1[[사원명]:[열3]],11,0),0) -> 0 | Y186: 0
S187: 181 | T187: ='급여대장(입력)'!C168 -> 0 | U187: =_xlfn.IFNA(VLOOKUP(T187,'급여대장(입력)'!$C$6:$V$22,20,0),0) -> 0 | X187: =IFERROR(VLOOKUP(T187,표1[[사원명]:[열3]],11,0),0) -> 0 | Y187: 0
S188: 182 | T188: ='급여대장(입력)'!C169 -> 0 | U188: =_xlfn.IFNA(VLOOKUP(T188,'급여대장(입력)'!$C$6:$V$22,20,0),0) -> 0 | X188: =IFERROR(VLOOKUP(T188,표1[[사원명]:[열3]],11,0),0) -> 0 | Y188: 0
S189: 183 | T189: ='급여대장(입력)'!C170 -> 0 | U189: =_xlfn.IFNA(VLOOKUP(T189,'급여대장(입력)'!$C$6:$V$22,20,0),0) -> 0 | X189: =IFERROR(VLOOKUP(T189,표1[[사원명]:[열3]],11,0),0) -> 0 | Y189: 0
S190: 184 | T190: ='급여대장(입력)'!C171 -> 0 | U190: =_xlfn.IFNA(VLOOKUP(T190,'급여대장(입력)'!$C$6:$V$22,20,0),0) -> 0 | X190: =IFERROR(VLOOKUP(T190,표1[[사원명]:[열3]],11,0),0) -> 0 | Y190: 0
S191: 185 | T191: ='급여대장(입력)'!C172 -> 0 | U191: =_xlfn.IFNA(VLOOKUP(T191,'급여대장(입력)'!$C$6:$V$22,20,0),0) -> 0 | X191: =IFERROR(VLOOKUP(T191,표1[[사원명]:[열3]],11,0),0) -> 0 | Y191: 0
S192: 186 | T192: ='급여대장(입력)'!C173 -> 0 | U192: =_xlfn.IFNA(VLOOKUP(T192,'급여대장(입력)'!$C$6:$V$22,20,0),0) -> 0 | X192: =IFERROR(VLOOKUP(T192,표1[[사원명]:[열3]],11,0),0) -> 0 | Y192: 0
S193: 187 | T193: ='급여대장(입력)'!C174 -> 0 | U193: =_xlfn.IFNA(VLOOKUP(T193,'급여대장(입력)'!$C$6:$V$22,20,0),0) -> 0 | X193: =IFERROR(VLOOKUP(T193,표1[[사원명]:[열3]],11,0),0) -> 0 | Y193: 0
S194: 188 | T194: ='급여대장(입력)'!C175 -> 0 | U194: =_xlfn.IFNA(VLOOKUP(T194,'급여대장(입력)'!$C$6:$V$22,20,0),0) -> 0 | X194: =IFERROR(VLOOKUP(T194,표1[[사원명]:[열3]],11,0),0) -> 0 | Y194: 0
S195: 189 | T195: ='급여대장(입력)'!C176 -> 0 | U195: =_xlfn.IFNA(VLOOKUP(T195,'급여대장(입력)'!$C$6:$V$22,20,0),0) -> 0 | X195: =IFERROR(VLOOKUP(T195,표1[[사원명]:[열3]],11,0),0) -> 0 | Y195: 0
S196: 190 | T196: ='급여대장(입력)'!C177 -> 0 | U196: =_xlfn.IFNA(VLOOKUP(T196,'급여대장(입력)'!$C$6:$V$22,20,0),0) -> 0 | X196: =IFERROR(VLOOKUP(T196,표1[[사원명]:[열3]],11,0),0) -> 0 | Y196: 0
S197: 191 | T197: ='급여대장(입력)'!C178 -> 0 | U197: =_xlfn.IFNA(VLOOKUP(T197,'급여대장(입력)'!$C$6:$V$22,20,0),0) -> 0 | X197: =IFERROR(VLOOKUP(T197,표1[[사원명]:[열3]],11,0),0) -> 0 | Y197: 0
S198: 192 | T198: ='급여대장(입력)'!C179 -> 0 | U198: =_xlfn.IFNA(VLOOKUP(T198,'급여대장(입력)'!$C$6:$V$22,20,0),0) -> 0 | X198: =IFERROR(VLOOKUP(T198,표1[[사원명]:[열3]],11,0),0) -> 0 | Y198: 0
S199: 193 | T199: ='급여대장(입력)'!C180 -> 0 | U199: =_xlfn.IFNA(VLOOKUP(T199,'급여대장(입력)'!$C$6:$V$22,20,0),0) -> 0 | X199: =IFERROR(VLOOKUP(T199,표1[[사원명]:[열3]],11,0),0) -> 0 | Y199: 0
S200: 194 | T200: ='급여대장(입력)'!C181 -> 0 | U200: =_xlfn.IFNA(VLOOKUP(T200,'급여대장(입력)'!$C$6:$V$22,20,0),0) -> 0 | V200: =RANK(U200,$U$7:$U$306) ->  | W200: =$V200+COUNTIFS($V$7:$V$306,$V200,$S$7:$S$306,"<"&S200) ->  | X200: =IFERROR(VLOOKUP(T200,표1[[사원명]:[열3]],11,0),0) -> 0 | Y200: =U200-X200 -> 0 | Z200: =RANK(Y200,$Y$7:$Y$306) ->  | AA200: =$Z200+COUNTIFS($Z$7:$Z$306,$Z200,$S$7:$S$306,"<"&S200) -> 
... 106 more rows
